Body Name,Body,Service Label,Service Code,Service Division Label,Service Division Code,Expenditure Category,Expenditure Code,CIPFA Detailed Expenditure Type,CIPFA Detailed Expenditure Code,Date,Transaction Number,Net Amount,Capital and Revenue,Creditor Name
Brighton & Hove City Council,http://statistics.data.gov.uk/id/local-authority/00ML,Non BVACOP,BVANON,Cap - Housing Services - GF,4HG,Capital Grants,PF,Level not required,NR5012,01/04/2011,PAY00372509,7232.00,Capital,Payment to Individual
Brighton & Hove City Council,http://statistics.data.gov.uk/id/local-authority/00ML,Non BVACOP,BVANON,Cap - Transport,4TR,New Construction n Conversion,PB,Level not required,NR5026,01/04/2011,PAY00372511,2191.00,Capital,MVA Consultancy Ltd
Brighton & Hove City Council,http://statistics.data.gov.uk/id/local-authority/00ML,Housing Services General Fund,BVAHOG,Homelessness,HML,Premises Related,C,Rents Payable,CC,01/04/2011,PAY00372513,780.00,Revenue,Lincoln Estates Ltd
Brighton & Hove City Council,http://statistics.data.gov.uk/id/local-authority/00ML,Children�s Social Care,BVACSC,Child Srvcs - Adoption,FAA,Third Party Payments,F,Other Establishments,FH,01/04/2011,PAY00372514,28903.20,Revenue,Medway Council
Brighton & Hove City Council,http://statistics.data.gov.uk/id/local-authority/00ML,Adult Social Care,BVASOC,S Svcs - Mental Health,MHT,Customer n Client Receipts,M,Fees n Charges,MB,01/04/2011,PAY00372515,-467.23,Revenue,Payment to Individual
Brighton & Hove City Council,http://statistics.data.gov.uk/id/local-authority/00ML,Adult Social Care,BVASOC,S Svcs - Mental Health,MHT,Third Party Payments,F,Other Establishments,FH,01/04/2011,PAY00372515,1176.00,Revenue,Payment to Individual
Brighton & Hove City Council,http://statistics.data.gov.uk/id/local-authority/00ML,Education Services,BVAEDU,Ed Mgmt and Support Services,EMG,Supplies and Services,E,Services,EF,01/04/2011,PAY00372517,2351.25,Revenue,Association of Directors of Children Services Ltd
Brighton & Hove City Council,http://statistics.data.gov.uk/id/local-authority/00ML,Cultural Environment Planning,BVACEP,Culture & Heritage,CHG,Customer n Client Receipts,M,Fees n Charges,MB,01/04/2011,PAY00372520,51.45,Revenue,The Vault Imaging Ltd
Brighton & Hove City Council,http://statistics.data.gov.uk/id/local-authority/00ML,Cultural Environment Planning,BVACEP,Culture & Heritage,CHG,Supplies and Services,E,Services,EF,01/04/2011,PAY00372520,724.43,Revenue,The Vault Imaging Ltd
Brighton & Hove City Council,http://statistics.data.gov.uk/id/local-authority/00ML,Housing Services General Fund,BVAHOG,Homelessness,HML,Premises Related,C,Rents Payable,CC,01/04/2011,PAY00372521,750.00,Revenue,Payment to Individual
Brighton & Hove City Council,http://statistics.data.gov.uk/id/local-authority/00ML,Adult Social Care,BVASOC,S Svcs - Older People Svcs,PPL,Customer n Client Receipts,M,Fees n Charges,MB,01/04/2011,PAY00372522,-228.00,Revenue,Payment to Individual
Brighton & Hove City Council,http://statistics.data.gov.uk/id/local-authority/00ML,Adult Social Care,BVASOC,S Svcs - Older People Svcs,PPL,Third Party Payments,F,Other Establishments,FH,01/04/2011,PAY00372522,786.88,Revenue,Payment to Individual
Brighton & Hove City Council,http://statistics.data.gov.uk/id/local-authority/00ML,Adult Social Care,BVASOC,S Svcs - Learning Disability,LDY,Third Party Payments,F,Other Establishments,FH,01/04/2011,PAY00372523,1833.58,Revenue,Payment to Individual
Brighton & Hove City Council,http://statistics.data.gov.uk/id/local-authority/00ML,Adult Social Care,BVASOC,S Svcs - Older People Svcs,PPL,Third Party Payments,F,Other Establishments,FH,01/04/2011,PAY00372525,529.60,Revenue,Payment to Individual
Brighton & Hove City Council,http://statistics.data.gov.uk/id/local-authority/00ML,Adult Social Care,BVASOC,S Svcs - Learning Disability,LDY,Third Party Payments,F,Other Establishments,FH,01/04/2011,PAY00372526,789.44,Revenue,Payment to Individual
Brighton & Hove City Council,http://statistics.data.gov.uk/id/local-authority/00ML,Adult Social Care,BVASOC,S Svcs - Physical Disability,PDY,Third Party Payments,F,Other Establishments,FH,01/04/2011,PAY00372528,4000.12,Revenue,Payment to Individual
Brighton & Hove City Council,http://statistics.data.gov.uk/id/local-authority/00ML,Housing Services General Fund,BVAHOG,Homelessness,HML,Premises Related,C,Rents Payable,CC,01/04/2011,PAY00372529,530.00,Revenue,Payment to Individual
Brighton & Hove City Council,http://statistics.data.gov.uk/id/local-authority/00ML,Housing Services General Fund,BVAHOG,Homelessness,HML,Premises Related,C,Rents Payable,CC,01/04/2011,PAY00372530,850.00,Revenue,Edmonds Letting
Brighton & Hove City Council,http://statistics.data.gov.uk/id/local-authority/00ML,Adult Social Care,BVASOC,S Svcs - Older People Svcs,PPL,Customer n Client Receipts,M,Fees n Charges,MB,01/04/2011,PAY00372533,-100.00,Revenue,Payment to Individual
Brighton & Hove City Council,http://statistics.data.gov.uk/id/local-authority/00ML,Adult Social Care,BVASOC,S Svcs - Older People Svcs,PPL,Third Party Payments,F,Other Establishments,FH,01/04/2011,PAY00372533,2199.60,Revenue,Payment to Individual
Brighton & Hove City Council,http://statistics.data.gov.uk/id/local-authority/00ML,Adult Social Care,BVASOC,S Svcs - Older People Svcs,PPL,Third Party Payments,F,Other Establishments,FH,01/04/2011,PAY00372535,1731.16,Revenue,Payment to Individual
Brighton & Hove City Council,http://statistics.data.gov.uk/id/local-authority/00ML,Children�s Social Care,BVACSC,Child Srvcs - Fostering,FLF,Third Party Payments,F,Other Establishments,FH,01/04/2011,PAY00372537,622.00,Revenue,Payment to Individual
Brighton & Hove City Council,http://statistics.data.gov.uk/id/local-authority/00ML,Children�s Social Care,BVACSC,Child Srvcs - Fostering,FLF,Third Party Payments,F,Other Establishments,FH,01/04/2011,PAY00372539,714.00,Revenue,Payment to Individual
Brighton & Hove City Council,http://statistics.data.gov.uk/id/local-authority/00ML,Housing Services General Fund,BVAHOG,Homelessness,HML,Supplies and Services,E,Services,EF,01/04/2011,PAY00372542,550.00,Revenue,Hove Wardley Company Ltd
Brighton & Hove City Council,http://statistics.data.gov.uk/id/local-authority/00ML,Housing Services General Fund,BVAHOG,Homelessness,HML,Premises Related,C,Rents Payable,CC,01/04/2011,PAY00372544,700.00,Revenue,Payment to Individual
Brighton & Hove City Council,http://statistics.data.gov.uk/id/local-authority/00ML,Central Services To The Public,BVACEN,Support Services (SSC),PPT,Transport Related,D,Direct Transport Costs,DA,01/04/2011,PAY00372545,558.05,Revenue,Caffyns Plc
Brighton & Hove City Council,http://statistics.data.gov.uk/id/local-authority/00ML,Adult Social Care,BVASOC,S Svcs - Learning Disability,LDY,Customer n Client Receipts,M,Fees n Charges,MB,01/04/2011,PAY00372546,-29.28,Revenue,Mears
Brighton & Hove City Council,http://statistics.data.gov.uk/id/local-authority/00ML,Adult Social Care,BVASOC,S Svcs - Learning Disability,LDY,Third Party Payments,F,Other Establishments,FH,01/04/2011,PAY00372546,210.09,Revenue,Mears
Brighton & Hove City Council,http://statistics.data.gov.uk/id/local-authority/00ML,Adult Social Care,BVASOC,S Svcs - Older People Svcs,PPL,Customer n Client Receipts,M,Fees n Charges,MB,01/04/2011,PAY00372546,-4417.00,Revenue,Mears
Brighton & Hove City Council,http://statistics.data.gov.uk/id/local-authority/00ML,Adult Social Care,BVASOC,S Svcs - Older People Svcs,PPL,Third Party Payments,F,Other Establishments,FH,01/04/2011,PAY00372546,19445.58,Revenue,Mears
Brighton & Hove City Council,http://statistics.data.gov.uk/id/local-authority/00ML,Adult Social Care,BVASOC,S Svcs - Physical Disability,PDY,Customer n Client Receipts,M,Fees n Charges,MB,01/04/2011,PAY00372546,-184.00,Revenue,Mears
Brighton & Hove City Council,http://statistics.data.gov.uk/id/local-authority/00ML,Adult Social Care,BVASOC,S Svcs - Physical Disability,PDY,Third Party Payments,F,Other Establishments,FH,01/04/2011,PAY00372546,7000.67,Revenue,Mears
Brighton & Hove City Council,http://statistics.data.gov.uk/id/local-authority/00ML,Adult Social Care,BVASOC,S Svcs - Physical Disability,PDY,Third Party Payments,F,Other Establishments,FH,01/04/2011,PAY00372549,1115.64,Revenue,Payment to Individual
Brighton & Hove City Council,http://statistics.data.gov.uk/id/local-authority/00ML,Adult Social Care,BVASOC,S Svcs - Learning Disability,LDY,Customer n Client Receipts,M,Fees n Charges,MB,01/04/2011,PAY00372552,-287.20,Revenue,Cerrig Camu Ltd
Brighton & Hove City Council,http://statistics.data.gov.uk/id/local-authority/00ML,Adult Social Care,BVASOC,S Svcs - Learning Disability,LDY,Third Party Payments,F,Other Establishments,FH,01/04/2011,PAY00372552,3950.00,Revenue,Cerrig Camu Ltd
Brighton & Hove City Council,http://statistics.data.gov.uk/id/local-authority/00ML,Adult Social Care,BVASOC,S Svcs - Learning Disability,LDY,Premises Related,C,Cleaning n Domestic Supps,CH,01/04/2011,PAY00372553,29.17,Revenue,The Imprest Holder
Brighton & Hove City Council,http://statistics.data.gov.uk/id/local-authority/00ML,Adult Social Care,BVASOC,S Svcs - Learning Disability,LDY,Supplies and Services,E,Catering,EB,01/04/2011,PAY00372553,781.88,Revenue,The Imprest Holder
Brighton & Hove City Council,http://statistics.data.gov.uk/id/local-authority/00ML,Adult Social Care,BVASOC,S Svcs - Learning Disability,LDY,Supplies and Services,E,Communications n Computing,EH,01/04/2011,PAY00372553,4.92,Revenue,The Imprest Holder
Brighton & Hove City Council,http://statistics.data.gov.uk/id/local-authority/00ML,Adult Social Care,BVASOC,S Svcs - Learning Disability,LDY,Supplies and Services,E,Expenses,EJ,01/04/2011,PAY00372553,57.06,Revenue,The Imprest Holder
Brighton & Hove City Council,http://statistics.data.gov.uk/id/local-authority/00ML,Adult Social Care,BVASOC,S Svcs - Learning Disability,LDY,Supplies and Services,E,Print Stat & Gen Office Exps,ED,01/04/2011,PAY00372553,6.81,Revenue,The Imprest Holder
Brighton & Hove City Council,http://statistics.data.gov.uk/id/local-authority/00ML,Adult Social Care,BVASOC,S Svcs - Learning Disability,LDY,Transport Related,D,Public Transport,DD,01/04/2011,PAY00372553,6.20,Revenue,The Imprest Holder
Brighton & Hove City Council,http://statistics.data.gov.uk/id/local-authority/00ML,Central Services To The Public,BVACEN,Support Services (SSC),PPT,Supplies and Services,E,Equip't Furniture n Materials,EA,01/04/2011,PAY00372556,1472.32,Revenue,Portsdown Office Furniture
Brighton & Hove City Council,http://statistics.data.gov.uk/id/local-authority/00ML,Cultural Environment Planning,BVACEP,Culture & Heritage,CHG,Supplies and Services,E,Equip't Furniture n Materials,EA,01/04/2011,PAY00372556,347.00,Revenue,Portsdown Office Furniture
Brighton & Hove City Council,http://statistics.data.gov.uk/id/local-authority/00ML,Education Services,BVAEDU,Ed - Nursery Ed,EAE,Supplies and Services,E,Miscellaneous Expenses,EM,01/04/2011,PAY00372557,2754.00,Revenue,Triangle Services Limited
Brighton & Hove City Council,http://statistics.data.gov.uk/id/local-authority/00ML,Highways and Transportation,BVAHRT,Highways and Roads - Mntnce,HRM,Supplies and Services,E,Services,EF,01/04/2011,PAY00372558,1479.25,Revenue,Amey OW Limited
Brighton & Hove City Council,http://statistics.data.gov.uk/id/local-authority/00ML,Adult Social Care,BVASOC,S Svcs - Physical Disability,PDY,Customer n Client Receipts,M,Fees n Charges,MB,01/04/2011,PAY00372563,-2382.40,Revenue,Payment to Individual
Brighton & Hove City Council,http://statistics.data.gov.uk/id/local-authority/00ML,Adult Social Care,BVASOC,S Svcs - Physical Disability,PDY,Third Party Payments,F,Other Establishments,FH,01/04/2011,PAY00372563,7664.80,Revenue,Payment to Individual
Brighton & Hove City Council,http://statistics.data.gov.uk/id/local-authority/00ML,Housing Services Revnue Acc,BVAHOU,Hsing Strategy - HRA,HGT,Premises Related,C,Energy Costs,CB,01/04/2011,PAY00372564,712.71,Revenue,EDF Energy - London Energy
Brighton & Hove City Council,http://statistics.data.gov.uk/id/local-authority/00ML,Adult Social Care,BVASOC,S Svcs - Learning Disability,LDY,Third Party Payments,F,Other Establishments,FH,01/04/2011,PAY00372565,776.00,Revenue,Payment to Individual
Brighton & Hove City Council,http://statistics.data.gov.uk/id/local-authority/00ML,Cultural Environment Planning,BVACEP,Court Services,CRT,Supplies and Services,E,Equip't Furniture n Materials,EA,01/04/2011,PAY00372569,968.00,Revenue,Payment to Individual
Brighton & Hove City Council,http://statistics.data.gov.uk/id/local-authority/00ML,Adult Social Care,BVASOC,S Svcs - Older People Svcs,PPL,Customer n Client Receipts,M,Fees n Charges,MB,01/04/2011,PAY00372570,6579.76,Revenue,Seaway Nursing Home Ltd
Brighton & Hove City Council,http://statistics.data.gov.uk/id/local-authority/00ML,Non BVACOP,BVANON,Cap - Housing Services - GF,4HG,Capital Grants,PF,Level not required,NR5012,01/04/2011,PAY00372571,7377.77,Capital,P G Bish Ltd T/As Access Mobility
Brighton & Hove City Council,http://statistics.data.gov.uk/id/local-authority/00ML,Central Services To The Public,BVACEN,Support Services (SSC),PPT,Premises Related,C,Repair Maint n Alterations,CA,01/04/2011,PAY00372575,518.00,Revenue,A J Taylor Electrical Contractors Ltd
Brighton & Hove City Council,http://statistics.data.gov.uk/id/local-authority/00ML,Cultural Environment Planning,BVACEP,Management Services (DEC),MGT,Supplies and Services,E,Equip't Furniture n Materials,EA,01/04/2011,PAY00372577,765.44,Revenue,Greenham Trading Ltd
Brighton & Hove City Council,http://statistics.data.gov.uk/id/local-authority/00ML,Adult Social Care,BVASOC,S Svcs - Physical Disability,PDY,Customer n Client Receipts,M,Fees n Charges,MB,01/04/2011,PAY00372579,-1556.00,Revenue,Payment to Individual
Brighton & Hove City Council,http://statistics.data.gov.uk/id/local-authority/00ML,Adult Social Care,BVASOC,S Svcs - Physical Disability,PDY,Third Party Payments,F,Other Establishments,FH,01/04/2011,PAY00372579,5062.00,Revenue,Payment to Individual
Brighton & Hove City Council,http://statistics.data.gov.uk/id/local-authority/00ML,Housing Services General Fund,BVAHOG,Building & Development Control,BDC,Premises Related,C,Rents Payable,CC,01/04/2011,PAY00372581,11946.42,Revenue,Forward Properties Limited
Brighton & Hove City Council,http://statistics.data.gov.uk/id/local-authority/00ML,Non BVACOP,BVANON,Cap - Libs Culture & Hertage,4LH,New Construction n Conversion,PB,Level not required,NR5026,01/04/2011,PAY00372582,2100.00,Capital,Baqus Group Plc t/a Baqus Boxall Sayer 
Brighton & Hove City Council,http://statistics.data.gov.uk/id/local-authority/00ML,Education Services,BVAEDU,Ed- Non Sch Fnd -Ad & Cmty Ln,ENA,Premises Related,C,Energy Costs,CB,01/04/2011,PAY00372583,1286.94,Revenue,E.ON UK plc
Brighton & Hove City Council,http://statistics.data.gov.uk/id/local-authority/00ML,Adult Social Care,BVASOC,S Svcs - Learning Disability,LDY,Customer n Client Receipts,M,Fees n Charges,MB,01/04/2011,PAY00372588,-287.20,Revenue,The Regard Partnership Ltd
Brighton & Hove City Council,http://statistics.data.gov.uk/id/local-authority/00ML,Adult Social Care,BVASOC,S Svcs - Learning Disability,LDY,Premises Related,C,Rates,CD,01/04/2011,PAY00372588,1834.56,Revenue,The Regard Partnership Ltd
Brighton & Hove City Council,http://statistics.data.gov.uk/id/local-authority/00ML,Adult Social Care,BVASOC,S Svcs - Learning Disability,LDY,Third Party Payments,F,Other Establishments,FH,01/04/2011,PAY00372588,5544.72,Revenue,The Regard Partnership Ltd
Brighton & Hove City Council,http://statistics.data.gov.uk/id/local-authority/00ML,Adult Social Care,BVASOC,S Svcs - Learning Disability,LDY,Premises Related,C,Energy Costs,CB,01/04/2011,PAY00372589,1615.62,Revenue,Southern Electric
Brighton & Hove City Council,http://statistics.data.gov.uk/id/local-authority/00ML,Adult Social Care,BVASOC,S Svcs - Older People Svcs,PPL,Premises Related,C,Energy Costs,CB,01/04/2011,PAY00372589,1785.16,Revenue,Southern Electric
Brighton & Hove City Council,http://statistics.data.gov.uk/id/local-authority/00ML,Adult Social Care,BVASOC,S Svcs - Physical Disability,PDY,Premises Related,C,Energy Costs,CB,01/04/2011,PAY00372589,167.68,Revenue,Southern Electric
Brighton & Hove City Council,http://statistics.data.gov.uk/id/local-authority/00ML,Central Services To The Public,BVACEN,Holding Accounts,PPH,Premises Related,C,Energy Costs,CB,01/04/2011,PAY00372589,5031.73,Revenue,Southern Electric
Brighton & Hove City Council,http://statistics.data.gov.uk/id/local-authority/00ML,Central Services To The Public,BVACEN,Support Services (SSC),PPT,Premises Related,C,Energy Costs,CB,01/04/2011,PAY00372589,2264.22,Revenue,Southern Electric
Brighton & Hove City Council,http://statistics.data.gov.uk/id/local-authority/00ML,Central Services To The Public,BVACEN,Trading Services,TRD,Premises Related,C,Energy Costs,CB,01/04/2011,PAY00372589,1177.83,Revenue,Southern Electric
Brighton & Hove City Council,http://statistics.data.gov.uk/id/local-authority/00ML,Children�s Social Care,BVACSC,Child Srvcs - Com & Scl Work,FCW,Premises Related,C,Energy Costs,CB,01/04/2011,PAY00372589,1715.04,Revenue,Southern Electric
Brighton & Hove City Council,http://statistics.data.gov.uk/id/local-authority/00ML,Children�s Social Care,BVACSC,Child Srvcs - Family Centres,FFF,Premises Related,C,Energy Costs,CB,01/04/2011,PAY00372589,95.15,Revenue,Southern Electric
Brighton & Hove City Council,http://statistics.data.gov.uk/id/local-authority/00ML,Children�s Social Care,BVACSC,Child Srvcs - Residential Svcs,FLR,Premises Related,C,Energy Costs,CB,01/04/2011,PAY00372589,536.72,Revenue,Southern Electric
Brighton & Hove City Council,http://statistics.data.gov.uk/id/local-authority/00ML,Children�s Social Care,BVACSC,Ed - Non Sch Fnd - Strat Mgmt,ENM,Premises Related,C,Energy Costs,CB,01/04/2011,PAY00372589,964.03,Revenue,Southern Electric
Brighton & Hove City Council,http://statistics.data.gov.uk/id/local-authority/00ML,Cultural Environment Planning,BVACEP,Cem Crem and Mortuary Services,CCM,Premises Related,C,Energy Costs,CB,01/04/2011,PAY00372589,4152.84,Revenue,Southern Electric
Brighton & Hove City Council,http://statistics.data.gov.uk/id/local-authority/00ML,Cultural Environment Planning,BVACEP,Culture & Heritage,CHG,Premises Related,C,Energy Costs,CB,01/04/2011,PAY00372589,1479.78,Revenue,Southern Electric
Brighton & Hove City Council,http://statistics.data.gov.uk/id/local-authority/00ML,Cultural Environment Planning,BVACEP,Economic Development,ECD,Premises Related,C,Energy Costs,CB,01/04/2011,PAY00372589,70.14,Revenue,Southern Electric
Brighton & Hove City Council,http://statistics.data.gov.uk/id/local-authority/00ML,Cultural Environment Planning,BVACEP,Environmental Health,EVH,Premises Related,C,Energy Costs,CB,01/04/2011,PAY00372589,497.96,Revenue,Southern Electric
Brighton & Hove City Council,http://statistics.data.gov.uk/id/local-authority/00ML,Cultural Environment Planning,BVACEP,Highways and Roads - Mntnce,HRM,Premises Related,C,Energy Costs,CB,01/04/2011,PAY00372589,2709.77,Revenue,Southern Electric
Brighton & Hove City Council,http://statistics.data.gov.uk/id/local-authority/00ML,Cultural Environment Planning,BVACEP,Library Service,LBR,Premises Related,C,Energy Costs,CB,01/04/2011,PAY00372589,4075.06,Revenue,Southern Electric
Brighton & Hove City Council,http://statistics.data.gov.uk/id/local-authority/00ML,Cultural Environment Planning,BVACEP,Management Services (DEC),MGT,Premises Related,C,Energy Costs,CB,01/04/2011,PAY00372589,1699.98,Revenue,Southern Electric
Brighton & Hove City Council,http://statistics.data.gov.uk/id/local-authority/00ML,Cultural Environment Planning,BVACEP,Open Spaces,PEN,Premises Related,C,Energy Costs,CB,01/04/2011,PAY00372589,135.72,Revenue,Southern Electric
Brighton & Hove City Council,http://statistics.data.gov.uk/id/local-authority/00ML,Education Services,BVAEDU,Ed - Non Sch Fnd - Yth Svcs,ENY,Premises Related,C,Energy Costs,CB,01/04/2011,PAY00372589,-5396.16,Revenue,Southern Electric
Brighton & Hove City Council,http://statistics.data.gov.uk/id/local-authority/00ML,Education Services,BVAEDU,Ed - Nursery Ed,EAE,Premises Related,C,Energy Costs,CB,01/04/2011,PAY00372589,1710.28,Revenue,Southern Electric
Brighton & Hove City Council,http://statistics.data.gov.uk/id/local-authority/00ML,Education Services,BVAEDU,Ed - Nursery schools,EAA,Premises Related,C,Energy Costs,CB,01/04/2011,PAY00372589,396.29,Revenue,Southern Electric
Brighton & Hove City Council,http://statistics.data.gov.uk/id/local-authority/00ML,Education Services,BVAEDU,Ed - Primary Ed,EHE,Premises Related,C,Energy Costs,CB,01/04/2011,PAY00372589,815.66,Revenue,Southern Electric
Brighton & Hove City Council,http://statistics.data.gov.uk/id/local-authority/00ML,Education Services,BVAEDU,Ed - Primary schools,EHH,Premises Related,C,Energy Costs,CB,01/04/2011,PAY00372589,18664.95,Revenue,Southern Electric
Brighton & Hove City Council,http://statistics.data.gov.uk/id/local-authority/00ML,Education Services,BVAEDU,Ed - Secondary Schools,EJJ,Premises Related,C,Energy Costs,CB,01/04/2011,PAY00372589,290.46,Revenue,Southern Electric
Brighton & Hove City Council,http://statistics.data.gov.uk/id/local-authority/00ML,Education Services,BVAEDU,Ed - Special Ed,EKE,Premises Related,C,Energy Costs,CB,01/04/2011,PAY00372589,440.35,Revenue,Southern Electric
Brighton & Hove City Council,http://statistics.data.gov.uk/id/local-authority/00ML,Education Services,BVAEDU,Ed - Special Schools,EKK,Premises Related,C,Energy Costs,CB,01/04/2011,PAY00372589,3934.21,Revenue,Southern Electric
Brighton & Hove City Council,http://statistics.data.gov.uk/id/local-authority/00ML,Highways and Transportation,BVAHRT,Highways and Roads - Mntnce,HRM,Premises Related,C,Energy Costs,CB,01/04/2011,PAY00372589,2650.76,Revenue,Southern Electric
Brighton & Hove City Council,http://statistics.data.gov.uk/id/local-authority/00ML,Highways and Transportation,BVAHRT,Parking Services,PRK,Premises Related,C,Energy Costs,CB,01/04/2011,PAY00372589,2452.99,Revenue,Southern Electric
Brighton & Hove City Council,http://statistics.data.gov.uk/id/local-authority/00ML,Housing Services Revnue Acc,BVAHOU,Hsing Management - HRA,HGM,Premises Related,C,Energy Costs,CB,01/04/2011,PAY00372589,30859.75,Revenue,Southern Electric
Brighton & Hove City Council,http://statistics.data.gov.uk/id/local-authority/00ML,Housing Services Revnue Acc,BVAHOU,Hsing Strategy - HRA,HGT,Premises Related,C,Energy Costs,CB,01/04/2011,PAY00372589,1662.58,Revenue,Southern Electric
Brighton & Hove City Council,http://statistics.data.gov.uk/id/local-authority/00ML,Adult Social Care,BVASOC,S Svcs - Learning Disability,LDY,Supplies and Services,E,Communications n Computing,EH,01/04/2011,PAY00372592,4.95,Revenue,Logotron Ltd
Brighton & Hove City Council,http://statistics.data.gov.uk/id/local-authority/00ML,Adult Social Care,BVASOC,S Svcs - Learning Disability,LDY,Supplies and Services,E,Miscellaneous Expenses,EM,01/04/2011,PAY00372592,499.00,Revenue,Logotron Ltd
Brighton & Hove City Council,http://statistics.data.gov.uk/id/local-authority/00ML,Children�s Social Care,BVACSC,Child Srvcs - Other Fam Supp,FFX,Third Party Payments,F,Other Establishments,FH,01/04/2011,PAY00372594,4550.00,Revenue,Frameworks 4 Change Ltd
Brighton & Hove City Council,http://statistics.data.gov.uk/id/local-authority/00ML,Children�s Social Care,BVACSC,Child Srvcs - Other Fam Supp,FFX,Supplies and Services,E,Miscellaneous Expenses,EM,01/04/2011,PAY00372595,1950.00,Revenue,Primary Matters T/A Primary Times
Brighton & Hove City Council,http://statistics.data.gov.uk/id/local-authority/00ML,Central Services To The Public,BVACEN,Support Services (SSC),PPT,Supplies and Services,E,Communications n Computing,EH,01/04/2011,PAY00372601,2150.08,Revenue,Virgin Media Business
Brighton & Hove City Council,http://statistics.data.gov.uk/id/local-authority/00ML,Highways and Transportation,BVAHRT,Highways and Roads - Mntnce,HRM,Supplies and Services,E,Communications n Computing,EH,01/04/2011,PAY00372601,43.26,Revenue,Virgin Media Business
Brighton & Hove City Council,http://statistics.data.gov.uk/id/local-authority/00ML,Education Services,BVAEDU,Ed - Nursery Ed,EAE,Third Party Payments,F,Other Establishments,FH,01/04/2011,PAY00372602,2000.00,Revenue,Brighton Day Nursery
Brighton & Hove City Council,http://statistics.data.gov.uk/id/local-authority/00ML,Education Services,BVAEDU,Ed Mgmt and Support Services,EMG,Premises Related,C,Repair Maint n Alterations,CA,01/04/2011,PAY00372605,2190.00,Revenue,Waterpride Ltd T/A AquAid (West Sussex)
Brighton & Hove City Council,http://statistics.data.gov.uk/id/local-authority/00ML,Children�s Social Care,BVACSC,Child Srvcs - Com & Scl Work,FCW,Supplies and Services,E,Equip't Furniture n Materials,EA,01/04/2011,PAY00372606,3846.99,Revenue,Hands-Free Computing Limited
Brighton & Hove City Council,http://statistics.data.gov.uk/id/local-authority/00ML,Central Services To The Public,BVACEN,Support Services (SSC),PPT,Premises Related,C,Repair Maint n Alterations,CA,01/04/2011,PAY00372607,176.08,Revenue,Fireline Ltd
Brighton & Hove City Council,http://statistics.data.gov.uk/id/local-authority/00ML,Cultural Environment Planning,BVACEP,Community Safety,CMY,Premises Related,C,Repair Maint n Alterations,CA,01/04/2011,PAY00372607,106.58,Revenue,Fireline Ltd
Brighton & Hove City Council,http://statistics.data.gov.uk/id/local-authority/00ML,Cultural Environment Planning,BVACEP,Library Service,LBR,Premises Related,C,Repair Maint n Alterations,CA,01/04/2011,PAY00372607,234.85,Revenue,Fireline Ltd
Brighton & Hove City Council,http://statistics.data.gov.uk/id/local-authority/00ML,Housing Services Revnue Acc,BVAHOU,Hsing Management - HRA,HGM,Premises Related,C,Repair Maint n Alterations,CA,01/04/2011,PAY00372607,72.84,Revenue,Fireline Ltd
Brighton & Hove City Council,http://statistics.data.gov.uk/id/local-authority/00ML,Non BVACOP,BVANON,Cap - Education Services,4ED,Plant Machinery n Equipment,PE2,Level not required,NR5025,01/04/2011,PAY00372607,190.88,Capital,Fireline Ltd
Brighton & Hove City Council,http://statistics.data.gov.uk/id/local-authority/00ML,Adult Social Care,BVASOC,S Svcs - Physical Disability,PDY,Customer n Client Receipts,M,Fees n Charges,MB,01/04/2011,PAY00372612,-2155.40,Revenue,MACS
Brighton & Hove City Council,http://statistics.data.gov.uk/id/local-authority/00ML,Adult Social Care,BVASOC,S Svcs - Physical Disability,PDY,Third Party Payments,F,Other Establishments,FH,01/04/2011,PAY00372612,6829.20,Revenue,MACS
Brighton & Hove City Council,http://statistics.data.gov.uk/id/local-authority/00ML,Adult Social Care,BVASOC,Hsing Welfare,HGW,Supplies and Services,E,Communications n Computing,EH,01/04/2011,PAY00372613,50.00,Revenue,Royal Mail Group Ltd
Brighton & Hove City Council,http://statistics.data.gov.uk/id/local-authority/00ML,Central Services To The Public,BVACEN,Elections,ELE,Supplies and Services,E,Communications n Computing,EH,01/04/2011,PAY00372613,298.59,Revenue,Royal Mail Group Ltd
Brighton & Hove City Council,http://statistics.data.gov.uk/id/local-authority/00ML,Central Services To The Public,BVACEN,Holding Accounts,PPH,Supplies and Services,E,Communications n Computing,EH,01/04/2011,PAY00372613,10040.22,Revenue,Royal Mail Group Ltd
Brighton & Hove City Council,http://statistics.data.gov.uk/id/local-authority/00ML,Central Services To The Public,BVACEN,Support Services (SSC),PPT,Supplies and Services,E,Miscellaneous Expenses,EM,01/04/2011,PAY00372613,36.78,Revenue,Royal Mail Group Ltd
Brighton & Hove City Council,http://statistics.data.gov.uk/id/local-authority/00ML,Children�s Social Care,BVACSC,Child Srvcs - Fostering,FLF,Supplies and Services,E,Communications n Computing,EH,01/04/2011,PAY00372613,20.00,Revenue,Royal Mail Group Ltd
Brighton & Hove City Council,http://statistics.data.gov.uk/id/local-authority/00ML,Cultural Environment Planning,BVACEP,Cem Crem and Mortuary Services,CCM,Supplies and Services,E,Communications n Computing,EH,01/04/2011,PAY00372613,80.00,Revenue,Royal Mail Group Ltd
Brighton & Hove City Council,http://statistics.data.gov.uk/id/local-authority/00ML,Education Services,BVAEDU,Ed - Nursery Ed,EAE,Supplies and Services,E,Communications n Computing,EH,01/04/2011,PAY00372613,80.00,Revenue,Royal Mail Group Ltd
Brighton & Hove City Council,http://statistics.data.gov.uk/id/local-authority/00ML,Housing Services General Fund,BVAHOG,Homelessness,HML,Supplies and Services,E,Communications n Computing,EH,01/04/2011,PAY00372613,0.56,Revenue,Royal Mail Group Ltd
Brighton & Hove City Council,http://statistics.data.gov.uk/id/local-authority/00ML,Housing Services Revnue Acc,BVAHOU,Hsing Management - HRA,HGM,Supplies and Services,E,Communications n Computing,EH,01/04/2011,PAY00372613,0.56,Revenue,Royal Mail Group Ltd
Brighton & Hove City Council,http://statistics.data.gov.uk/id/local-authority/00ML,Cultural Environment Planning,BVACEP,Recreation and sport,REC,Premises Related,C,Cleaning n Domestic Supps,CH,01/04/2011,PAY00372614,414.58,Revenue,JMS Janitorial Supplies Ltd
Brighton & Hove City Council,http://statistics.data.gov.uk/id/local-authority/00ML,Education Services,BVAEDU,Ed- Non Sch Fnd -Ad & Cmty Ln,ENA,Premises Related,C,Cleaning n Domestic Supps,CH,01/04/2011,PAY00372614,510.08,Revenue,JMS Janitorial Supplies Ltd
Brighton & Hove City Council,http://statistics.data.gov.uk/id/local-authority/00ML,Housing Services General Fund,BVAHOG,Homelessness,HML,Premises Related,C,Rents Payable,CC,01/04/2011,PAY00372617,2090.00,Revenue,Payment to Individual
Brighton & Hove City Council,http://statistics.data.gov.uk/id/local-authority/00ML,Education Services,BVAEDU,Ed Mgmt and Support Services,EMG,Supplies and Services,E,Equip't Furniture n Materials,EA,01/04/2011,PAY00372619,504.00,Revenue,National Governors Association
Brighton & Hove City Council,http://statistics.data.gov.uk/id/local-authority/00ML,Adult Social Care,BVASOC,S Svcs - Physical Disability,PDY,Third Party Payments,F,Other Establishments,FH,01/04/2011,PAY00372621,1577.60,Revenue,Payment to Individual
Brighton & Hove City Council,http://statistics.data.gov.uk/id/local-authority/00ML,Housing Services General Fund,BVAHOG,Homelessness,HML,Premises Related,C,Rents Payable,CC,01/04/2011,PAY00372623,850.00,Revenue,Payment to Individual
Brighton & Hove City Council,http://statistics.data.gov.uk/id/local-authority/00ML,Children�s Social Care,BVACSC,Child Srvcs - Com & Scl Work,FCW,Premises Related,C,Rents Payable,CC,01/04/2011,PAY00372624,830.00,Revenue,Salvation Army Brighton Congress Hall
Brighton & Hove City Council,http://statistics.data.gov.uk/id/local-authority/00ML,Central Services To The Public,BVACEN,Holding Accounts,PPH,Transport Related,D,Contract Hire n Operating Leas,DB,01/04/2011,PAY00372625,1254.75,Revenue,Enterprise Rent-a-Car UK Ltd
Brighton & Hove City Council,http://statistics.data.gov.uk/id/local-authority/00ML,Cultural Environment Planning,BVACEP,Waste Management,WMT,Third Party Payments,F,Private Contractors,FJ,01/04/2011,PAY00372625,1097.54,Revenue,Enterprise Rent-a-Car UK Ltd
Brighton & Hove City Council,http://statistics.data.gov.uk/id/local-authority/00ML,Education Services,BVAEDU,Ed - Standard Fund Grants,ENN,Indirect Employees,B,Training,BM,01/04/2011,PAY00372626,8798.00,Revenue,Bracknell Forest Borough Council
Brighton & Hove City Council,http://statistics.data.gov.uk/id/local-authority/00ML,Education Services,BVAEDU,Ed - Nursery Ed,EAE,Supplies and Services,E,Miscellaneous Expenses,EM,01/04/2011,PAY00372627,1200.00,Revenue,Safety Net
Brighton & Hove City Council,http://statistics.data.gov.uk/id/local-authority/00ML,Cultural Environment Planning,BVACEP,Culture & Heritage,CHG,Premises Related,C,Repair Maint n Alterations,CA,01/04/2011,PAY00372631,550.00,Revenue,Payment to Individual
Brighton & Hove City Council,http://statistics.data.gov.uk/id/local-authority/00ML,Adult Social Care,BVASOC,S Svcs - Physical Disability,PDY,Third Party Payments,F,Other Establishments,FH,01/04/2011,PAY00372632,4450.92,Revenue,Payment to Individual
Brighton & Hove City Council,http://statistics.data.gov.uk/id/local-authority/00ML,Adult Social Care,BVASOC,S Svcs - Older People Svcs,PPL,Customer n Client Receipts,M,Fees n Charges,MB,01/04/2011,PAY00372633,-128.00,Revenue,Payment to Individual
Brighton & Hove City Council,http://statistics.data.gov.uk/id/local-authority/00ML,Adult Social Care,BVASOC,S Svcs - Older People Svcs,PPL,Third Party Payments,F,Other Establishments,FH,01/04/2011,PAY00372633,804.36,Revenue,Payment to Individual
Brighton & Hove City Council,http://statistics.data.gov.uk/id/local-authority/00ML,Adult Social Care,BVASOC,S Svcs - Other Adult Services,ADT,Third Party Payments,F,Other Establishments,FH,01/04/2011,PAY00372634,665.84,Revenue,Payment to Individual
Brighton & Hove City Council,http://statistics.data.gov.uk/id/local-authority/00ML,Adult Social Care,BVASOC,S Svcs - Physical Disability,PDY,Third Party Payments,F,Other Establishments,FH,01/04/2011,PAY00372636,2080.56,Revenue,Payment to Individual
Brighton & Hove City Council,http://statistics.data.gov.uk/id/local-authority/00ML,Education Services,BVAEDU,Ed - Nursery Ed,EAE,Direct Employees,A,Salaries,AA,01/04/2011,PAY00372637,425.50,Revenue,Hays Specialist Recruitment Ltd
Brighton & Hove City Council,http://statistics.data.gov.uk/id/local-authority/00ML,Cultural Environment Planning,BVACEP,Recreation and sport,REC,Supplies and Services,E,Contributions to Provisions,EL,01/04/2011,PAY00372639,5000.00,Revenue,Sussex Central YMCA
Brighton & Hove City Council,http://statistics.data.gov.uk/id/local-authority/00ML,Housing Services General Fund,BVAHOG,Homelessness,HML,Premises Related,C,Rents Payable,CC,01/04/2011,PAY00372639,5631.83,Revenue,Sussex Central YMCA
Brighton & Hove City Council,http://statistics.data.gov.uk/id/local-authority/00ML,Adult Social Care,BVASOC,S Svcs - Physical Disability,PDY,Third Party Payments,F,Other Establishments,FH,01/04/2011,PAY00372641,5068.28,Revenue,Payment to Individual
Brighton & Hove City Council,http://statistics.data.gov.uk/id/local-authority/00ML,Education Services,BVAEDU,Ed - Nursery Ed,EAE,Supplies and Services,E,Miscellaneous Expenses,EM,01/04/2011,PAY00372642,1380.00,Revenue,Class Of Their Own Ltd
Brighton & Hove City Council,http://statistics.data.gov.uk/id/local-authority/00ML,Education Services,BVAEDU,Ed - Nursery Ed,EAE,Supplies and Services,E,Miscellaneous Expenses,EM,01/04/2011,PAY00372644,240.00,Revenue,Honeycroft
Brighton & Hove City Council,http://statistics.data.gov.uk/id/local-authority/00ML,Education Services,BVAEDU,Ed - Nursery Ed,EAE,Supplies and Services,E,Services,EF,01/04/2011,PAY00372644,327.00,Revenue,Honeycroft
Brighton & Hove City Council,http://statistics.data.gov.uk/id/local-authority/00ML,Adult Social Care,BVASOC,S Svcs - Physical Disability,PDY,Customer n Client Receipts,M,Fees n Charges,MB,01/04/2011,PAY00372646,-2154.56,Revenue,Payment to Individual
Brighton & Hove City Council,http://statistics.data.gov.uk/id/local-authority/00ML,Adult Social Care,BVASOC,S Svcs - Physical Disability,PDY,Third Party Payments,F,Other Establishments,FH,01/04/2011,PAY00372646,3706.36,Revenue,Payment to Individual
Brighton & Hove City Council,http://statistics.data.gov.uk/id/local-authority/00ML,Adult Social Care,BVASOC,S Svcs - Physical Disability,PDY,Third Party Payments,F,Other Establishments,FH,01/04/2011,PAY00372647,918.36,Revenue,Payment to Individual
Brighton & Hove City Council,http://statistics.data.gov.uk/id/local-authority/00ML,Cultural Environment Planning,BVACEP,Management Services (DEC),MGT,Transport Related,D,Direct Transport Costs,DA,01/04/2011,PAY00372648,646.78,Revenue,Barnes DAF
Brighton & Hove City Council,http://statistics.data.gov.uk/id/local-authority/00ML,Housing Services General Fund,BVAHOG,Homelessness,HML,Premises Related,C,Repair Maint n Alterations,CA,01/04/2011,PAY00372649,775.51,Revenue,B & Q Plc
Brighton & Hove City Council,http://statistics.data.gov.uk/id/local-authority/00ML,Education Services,BVAEDU,Ed - Nursery Ed,EAE,Supplies and Services,E,Miscellaneous Expenses,EM,01/04/2011,PAY00372650,600.00,Revenue,Tarnerland General Account
Brighton & Hove City Council,http://statistics.data.gov.uk/id/local-authority/00ML,Adult Social Care,BVASOC,S Svcs - Older People Svcs,PPL,Third Party Payments,F,Other Establishments,FH,01/04/2011,PAY00372651,2639.92,Revenue,Payment to Individual
Brighton & Hove City Council,http://statistics.data.gov.uk/id/local-authority/00ML,Cultural Environment Planning,BVACEP,Community Development,CDV,Supplies and Services,E,Miscellaneous Expenses,EM,01/04/2011,PAY00372652,31021.54,Revenue,The Hangleton & Knoll Project
Brighton & Hove City Council,http://statistics.data.gov.uk/id/local-authority/00ML,Adult Social Care,BVASOC,S Svcs - Learning Disability,LDY,Third Party Payments,F,Other Establishments,FH,01/04/2011,PAY00372655,2171.36,Revenue,Payment to Individual
Brighton & Hove City Council,http://statistics.data.gov.uk/id/local-authority/00ML,Adult Social Care,BVASOC,S Svcs - Physical Disability,PDY,Third Party Payments,F,Other Establishments,FH,01/04/2011,PAY00372657,5326.08,Revenue,Payment to Individual
Brighton & Hove City Council,http://statistics.data.gov.uk/id/local-authority/00ML,Adult Social Care,BVASOC,S Svcs - Mental Health,MHT,Third Party Payments,F,Other Establishments,FH,01/04/2011,PAY00372660,1389.92,Revenue,St Andrews Lodge
Brighton & Hove City Council,http://statistics.data.gov.uk/id/local-authority/00ML,Education Services,BVAEDU,Ed - Nursery Ed,EAE,Supplies and Services,E,Grants n Subscriptions,EK,01/04/2011,PAY00372661,2905.00,Revenue,Digaprint Limited t/a One Digital
Brighton & Hove City Council,http://statistics.data.gov.uk/id/local-authority/00ML,Adult Social Care,BVASOC,S Svcs - Physical Disability,PDY,Customer n Client Receipts,M,Fees n Charges,MB,01/04/2011,PAY00372662,-1687.80,Revenue,Payment to Individual
Brighton & Hove City Council,http://statistics.data.gov.uk/id/local-authority/00ML,Adult Social Care,BVASOC,S Svcs - Physical Disability,PDY,Third Party Payments,F,Other Establishments,FH,01/04/2011,PAY00372662,4637.60,Revenue,Payment to Individual
Brighton & Hove City Council,http://statistics.data.gov.uk/id/local-authority/00ML,Adult Social Care,BVASOC,S Svcs - Learning Disability,LDY,Customer n Client Receipts,M,Fees n Charges,MB,01/04/2011,PAY00372663,-287.20,Revenue,Independence Homes 
Brighton & Hove City Council,http://statistics.data.gov.uk/id/local-authority/00ML,Adult Social Care,BVASOC,S Svcs - Learning Disability,LDY,Third Party Payments,F,Other Establishments,FH,01/04/2011,PAY00372663,5026.56,Revenue,Independence Homes 
Brighton & Hove City Council,http://statistics.data.gov.uk/id/local-authority/00ML,Cultural Environment Planning,BVACEP,Economic Development,ECD,Supplies and Services,E,Miscellaneous Expenses,EM,01/04/2011,PAY00372666,1960.08,Revenue,Brighton Photo Biennial
Brighton & Hove City Council,http://statistics.data.gov.uk/id/local-authority/00ML,Education Services,BVAEDU,Ed - Nursery Ed,EAE,Supplies and Services,E,Miscellaneous Expenses,EM,01/04/2011,PAY00372668,2700.00,Revenue,Extratime Ltd
Brighton & Hove City Council,http://statistics.data.gov.uk/id/local-authority/00ML,Education Services,BVAEDU,Ed - Standard Fund Grants,ENN,Supplies and Services,E,Contributions to Provisions,EL,01/04/2011,PAY00372668,7000.00,Revenue,Extratime Ltd
Brighton & Hove City Council,http://statistics.data.gov.uk/id/local-authority/00ML,Non BVACOP,BVANON,Cap - Mgmnt & Support Services,4PT,Plant Machinery n Equipment,PE2,Level not required,NR5025,01/04/2011,PAY00372671,750.00,Capital,Aviation Projects Ltd
Brighton & Hove City Council,http://statistics.data.gov.uk/id/local-authority/00ML,Adult Social Care,BVASOC,S Svcs - Older People Svcs,PPL,Supplies and Services,E,Catering,EB,01/04/2011,PAY00372672,540.92,Revenue,K D Catering Butchers Ltd
Brighton & Hove City Council,http://statistics.data.gov.uk/id/local-authority/00ML,Adult Social Care,BVASOC,S Svcs - Physical Disability,PDY,Supplies and Services,E,Equip't Furniture n Materials,EA,01/04/2011,PAY00372673,421.26,Revenue,AKW Medi-Care Ltd
Brighton & Hove City Council,http://statistics.data.gov.uk/id/local-authority/00ML,Non BVACOP,BVANON,Cap - Transport,4TR,New Construction n Conversion,PB,Level not required,NR5026,01/04/2011,PAY00372676,28168.05,Capital,DW Windsor Lighting
Brighton & Hove City Council,http://statistics.data.gov.uk/id/local-authority/00ML,Adult Social Care,BVASOC,S Svcs - Older People Svcs,PPL,Third Party Payments,F,Other Establishments,FH,01/04/2011,PAY00372679,1075.60,Revenue,Payment to Individual
Brighton & Hove City Council,http://statistics.data.gov.uk/id/local-authority/00ML,Housing Services General Fund,BVAHOG,Homelessness,HML,Premises Related,C,Rents Payable,CC,01/04/2011,PAY00372680,84920.08,Revenue,KEM Property Services Ltd
Brighton & Hove City Council,http://statistics.data.gov.uk/id/local-authority/00ML,Adult Social Care,BVASOC,S Svcs - Older People Svcs,PPL,Indirect Employees,B,Misc Employee Costs,BP,01/04/2011,PAY00372682,25.90,Revenue,Corporate Petty Cash
Brighton & Hove City Council,http://statistics.data.gov.uk/id/local-authority/00ML,Adult Social Care,BVASOC,S Svcs - Older People Svcs,PPL,Transport Related,D,Other Transport Costs,DG,01/04/2011,PAY00372682,5.00,Revenue,Corporate Petty Cash
Brighton & Hove City Council,http://statistics.data.gov.uk/id/local-authority/00ML,Adult Social Care,BVASOC,Support Services (SSC),PPT,Transport Related,D,Public Transport,DD,01/04/2011,PAY00372682,25.90,Revenue,Corporate Petty Cash
Brighton & Hove City Council,http://statistics.data.gov.uk/id/local-authority/00ML,Central Services To The Public,BVACEN,Support Services (SSC),PPT,Customer n Client Receipts,M,Fees n Charges,MB,01/04/2011,PAY00372682,7.67,Revenue,Corporate Petty Cash
Brighton & Hove City Council,http://statistics.data.gov.uk/id/local-authority/00ML,Central Services To The Public,BVACEN,Support Services (SSC),PPT,Indirect Employees,B,Misc Employee Costs,BP,01/04/2011,PAY00372682,16.50,Revenue,Corporate Petty Cash
Brighton & Hove City Council,http://statistics.data.gov.uk/id/local-authority/00ML,Central Services To The Public,BVACEN,Support Services (SSC),PPT,Supplies and Services,E,Catering,EB,01/04/2011,PAY00372682,5.22,Revenue,Corporate Petty Cash
Brighton & Hove City Council,http://statistics.data.gov.uk/id/local-authority/00ML,Central Services To The Public,BVACEN,Support Services (SSC),PPT,Supplies and Services,E,Print Stat & Gen Office Exps,ED,01/04/2011,PAY00372682,44.73,Revenue,Corporate Petty Cash
Brighton & Hove City Council,http://statistics.data.gov.uk/id/local-authority/00ML,Cultural Environment Planning,BVACEP,Building & Development Control,BDC,Indirect Employees,B,Misc Employee Costs,BP,01/04/2011,PAY00372682,21.00,Revenue,Corporate Petty Cash
Brighton & Hove City Council,http://statistics.data.gov.uk/id/local-authority/00ML,Cultural Environment Planning,BVACEP,Building & Development Control,BDC,Supplies and Services,E,Print Stat & Gen Office Exps,ED,01/04/2011,PAY00372682,30.27,Revenue,Corporate Petty Cash
Brighton & Hove City Council,http://statistics.data.gov.uk/id/local-authority/00ML,Cultural Environment Planning,BVACEP,Building & Development Control,BDC,Transport Related,D,Public Transport,DD,01/04/2011,PAY00372682,5.30,Revenue,Corporate Petty Cash
Brighton & Hove City Council,http://statistics.data.gov.uk/id/local-authority/00ML,Cultural Environment Planning,BVACEP,Environmental Health,EVH,Supplies and Services,E,Equip't Furniture n Materials,EA,01/04/2011,PAY00372682,12.34,Revenue,Corporate Petty Cash
Brighton & Hove City Council,http://statistics.data.gov.uk/id/local-authority/00ML,Cultural Environment Planning,BVACEP,Environmental Health,EVH,Transport Related,D,Other Transport Costs,DG,01/04/2011,PAY00372682,13.32,Revenue,Corporate Petty Cash
Brighton & Hove City Council,http://statistics.data.gov.uk/id/local-authority/00ML,Cultural Environment Planning,BVACEP,Environmental Health,EVH,Transport Related,D,Public Transport,DD,01/04/2011,PAY00372682,41.60,Revenue,Corporate Petty Cash
Brighton & Hove City Council,http://statistics.data.gov.uk/id/local-authority/00ML,Cultural Environment Planning,BVACEP,Flood Drainage and Coast Prtn,FDC,Premises Related,C,Repair Maint n Alterations,CA,01/04/2011,PAY00372682,9.17,Revenue,Corporate Petty Cash
Brighton & Hove City Council,http://statistics.data.gov.uk/id/local-authority/00ML,Cultural Environment Planning,BVACEP,Management Services (DEC),MGT,Indirect Employees,B,Misc Employee Costs,BP,01/04/2011,PAY00372682,66.99,Revenue,Corporate Petty Cash
Brighton & Hove City Council,http://statistics.data.gov.uk/id/local-authority/00ML,Cultural Environment Planning,BVACEP,Management Services (DEC),MGT,Supplies and Services,E,Miscellaneous Expenses,EM,01/04/2011,PAY00372682,5.76,Revenue,Corporate Petty Cash
Brighton & Hove City Council,http://statistics.data.gov.uk/id/local-authority/00ML,Cultural Environment Planning,BVACEP,Management Services (DEC),MGT,Supplies and Services,E,Print Stat & Gen Office Exps,ED,01/04/2011,PAY00372682,13.30,Revenue,Corporate Petty Cash
Brighton & Hove City Council,http://statistics.data.gov.uk/id/local-authority/00ML,Cultural Environment Planning,BVACEP,Management Services (DEC),MGT,Transport Related,D,Public Transport,DD,01/04/2011,PAY00372682,75.45,Revenue,Corporate Petty Cash
Brighton & Hove City Council,http://statistics.data.gov.uk/id/local-authority/00ML,Cultural Environment Planning,BVACEP,Planning policy,PLP,Supplies and Services,E,Services,EF,01/04/2011,PAY00372682,41.67,Revenue,Corporate Petty Cash
Brighton & Hove City Council,http://statistics.data.gov.uk/id/local-authority/00ML,Cultural Environment Planning,BVACEP,Tourism,TRM,Supplies and Services,E,Miscellaneous Expenses,EM,01/04/2011,PAY00372682,53.90,Revenue,Corporate Petty Cash
Brighton & Hove City Council,http://statistics.data.gov.uk/id/local-authority/00ML,Education Services,BVAEDU,Ed - Nursery Ed,EAE,Transport Related,D,Public Transport,DD,01/04/2011,PAY00372682,3.70,Revenue,Corporate Petty Cash
Brighton & Hove City Council,http://statistics.data.gov.uk/id/local-authority/00ML,Highways and Transportation,BVAHRT,Highways and Roads - Mntnce,HRM,Supplies and Services,E,Services,EF,01/04/2011,PAY00372682,5.83,Revenue,Corporate Petty Cash
Brighton & Hove City Council,http://statistics.data.gov.uk/id/local-authority/00ML,Highways and Transportation,BVAHRT,Highways and Roads - Mntnce,HRM,Transport Related,D,Other Transport Costs,DG,01/04/2011,PAY00372682,7.33,Revenue,Corporate Petty Cash
Brighton & Hove City Council,http://statistics.data.gov.uk/id/local-authority/00ML,Highways and Transportation,BVAHRT,Parking Services,PRK,Supplies and Services,E,Equip't Furniture n Materials,EA,01/04/2011,PAY00372682,30.80,Revenue,Corporate Petty Cash
Brighton & Hove City Council,http://statistics.data.gov.uk/id/local-authority/00ML,Highways and Transportation,BVAHRT,Parking Services,PRK,Supplies and Services,E,Print Stat & Gen Office Exps,ED,01/04/2011,PAY00372682,14.97,Revenue,Corporate Petty Cash
Brighton & Hove City Council,http://statistics.data.gov.uk/id/local-authority/00ML,Highways and Transportation,BVAHRT,Parking Services,PRK,Transport Related,D,Direct Transport Costs,DA,01/04/2011,PAY00372682,33.33,Revenue,Corporate Petty Cash
Brighton & Hove City Council,http://statistics.data.gov.uk/id/local-authority/00ML,Highways and Transportation,BVAHRT,Parking Services,PRK,Transport Related,D,Other Transport Costs,DG,01/04/2011,PAY00372682,10.00,Revenue,Corporate Petty Cash
Brighton & Hove City Council,http://statistics.data.gov.uk/id/local-authority/00ML,Highways and Transportation,BVAHRT,Parking Services,PRK,Transport Related,D,Public Transport,DD,01/04/2011,PAY00372682,6.90,Revenue,Corporate Petty Cash
Brighton & Hove City Council,http://statistics.data.gov.uk/id/local-authority/00ML,Highways and Transportation,BVAHRT,Public transport,PTR,Transport Related,D,Public Transport,DD,01/04/2011,PAY00372682,8.00,Revenue,Corporate Petty Cash
Brighton & Hove City Council,http://statistics.data.gov.uk/id/local-authority/00ML,Highways and Transportation,BVAHRT,Traffic Mgmnt and Road Safety,TMR,Supplies and Services,E,Miscellaneous Expenses,EM,01/04/2011,PAY00372682,16.65,Revenue,Corporate Petty Cash
Brighton & Hove City Council,http://statistics.data.gov.uk/id/local-authority/00ML,Highways and Transportation,BVAHRT,Traffic Mgmnt and Road Safety,TMR,Transport Related,D,Other Transport Costs,DG,01/04/2011,PAY00372682,104.64,Revenue,Corporate Petty Cash
Brighton & Hove City Council,http://statistics.data.gov.uk/id/local-authority/00ML,Highways and Transportation,BVAHRT,Traffic Mgmnt and Road Safety,TMR,Transport Related,D,Public Transport,DD,01/04/2011,PAY00372682,45.10,Revenue,Corporate Petty Cash
Brighton & Hove City Council,http://statistics.data.gov.uk/id/local-authority/00ML,Highways and Transportation,BVAHRT,Transport plan policy strategy,TPP,Supplies and Services,E,Print Stat & Gen Office Exps,ED,01/04/2011,PAY00372682,2.99,Revenue,Corporate Petty Cash
Brighton & Hove City Council,http://statistics.data.gov.uk/id/local-authority/00ML,Highways and Transportation,BVAHRT,Transport plan policy strategy,TPP,Transport Related,D,Public Transport,DD,01/04/2011,PAY00372682,98.80,Revenue,Corporate Petty Cash
Brighton & Hove City Council,http://statistics.data.gov.uk/id/local-authority/00ML,Housing Services General Fund,BVAHOG,Homelessness,HML,Premises Related,C,Energy Costs,CB,01/04/2011,PAY00372682,23.00,Revenue,Corporate Petty Cash
Brighton & Hove City Council,http://statistics.data.gov.uk/id/local-authority/00ML,Housing Services General Fund,BVAHOG,Homelessness,HML,Supplies and Services,E,Print Stat & Gen Office Exps,ED,01/04/2011,PAY00372682,5.00,Revenue,Corporate Petty Cash
Brighton & Hove City Council,http://statistics.data.gov.uk/id/local-authority/00ML,Housing Services General Fund,BVAHOG,Homelessness,HML,Transport Related,D,Other Transport Costs,DG,01/04/2011,PAY00372682,29.60,Revenue,Corporate Petty Cash
Brighton & Hove City Council,http://statistics.data.gov.uk/id/local-authority/00ML,Housing Services General Fund,BVAHOG,Hsing Benefits,HGB,Indirect Employees,B,Misc Employee Costs,BP,01/04/2011,PAY00372682,16.50,Revenue,Corporate Petty Cash
Brighton & Hove City Council,http://statistics.data.gov.uk/id/local-authority/00ML,Housing Services General Fund,BVAHOG,Hsing Benefits,HGB,Transport Related,D,Public Transport,DD,01/04/2011,PAY00372682,3.70,Revenue,Corporate Petty Cash
Brighton & Hove City Council,http://statistics.data.gov.uk/id/local-authority/00ML,Housing Services General Fund,BVAHOG,Hsing Welfare,HGW,Supplies and Services,E,Print Stat & Gen Office Exps,ED,01/04/2011,PAY00372682,14.23,Revenue,Corporate Petty Cash
Brighton & Hove City Council,http://statistics.data.gov.uk/id/local-authority/00ML,Housing Services General Fund,BVAHOG,Private Sector Hsing Renewal,PHR,Supplies and Services,E,Equip't Furniture n Materials,EA,01/04/2011,PAY00372682,12.77,Revenue,Corporate Petty Cash
Brighton & Hove City Council,http://statistics.data.gov.uk/id/local-authority/00ML,Housing Services General Fund,BVAHOG,Private Sector Hsing Renewal,PHR,Supplies and Services,E,Print Stat & Gen Office Exps,ED,01/04/2011,PAY00372682,0.83,Revenue,Corporate Petty Cash
Brighton & Hove City Council,http://statistics.data.gov.uk/id/local-authority/00ML,Housing Services General Fund,BVAHOG,Private Sector Hsing Renewal,PHR,Transport Related,D,Car Allowances,DE,01/04/2011,PAY00372682,3.30,Revenue,Corporate Petty Cash
Brighton & Hove City Council,http://statistics.data.gov.uk/id/local-authority/00ML,Housing Services General Fund,BVAHOG,Private Sector Hsing Renewal,PHR,Transport Related,D,Public Transport,DD,01/04/2011,PAY00372682,20.80,Revenue,Corporate Petty Cash
Brighton & Hove City Council,http://statistics.data.gov.uk/id/local-authority/00ML,Non BVACOP,BVANON,Cap - Transport,4TR,New Construction n Conversion,PB,Level not required,NR5026,01/04/2011,PAY00372682,3.70,Capital,Corporate Petty Cash
Brighton & Hove City Council,http://statistics.data.gov.uk/id/local-authority/00ML,Adult Social Care,BVASOC,S Svcs - Older People Svcs,PPL,Customer n Client Receipts,M,Fees n Charges,MB,01/04/2011,PAY00372685,-848.00,Revenue,Payment to Individual
Brighton & Hove City Council,http://statistics.data.gov.uk/id/local-authority/00ML,Adult Social Care,BVASOC,S Svcs - Older People Svcs,PPL,Third Party Payments,F,Other Establishments,FH,01/04/2011,PAY00372685,2576.52,Revenue,Payment to Individual
Brighton & Hove City Council,http://statistics.data.gov.uk/id/local-authority/00ML,Adult Social Care,BVASOC,S Svcs - Learning Disability,LDY,Third Party Payments,F,Other Establishments,FH,01/04/2011,PAY00372687,67.40,Revenue,Allied Healthcare Brighton Domicillary
Brighton & Hove City Council,http://statistics.data.gov.uk/id/local-authority/00ML,Adult Social Care,BVASOC,S Svcs - Mental Health,MHT,Customer n Client Receipts,M,Fees n Charges,MB,01/04/2011,PAY00372687,-53.00,Revenue,Allied Healthcare Brighton Domicillary
Brighton & Hove City Council,http://statistics.data.gov.uk/id/local-authority/00ML,Adult Social Care,BVASOC,S Svcs - Mental Health,MHT,Third Party Payments,F,Other Establishments,FH,01/04/2011,PAY00372687,95.10,Revenue,Allied Healthcare Brighton Domicillary
Brighton & Hove City Council,http://statistics.data.gov.uk/id/local-authority/00ML,Adult Social Care,BVASOC,S Svcs - Older People Svcs,PPL,Customer n Client Receipts,M,Fees n Charges,MB,01/04/2011,PAY00372687,-710.00,Revenue,Allied Healthcare Brighton Domicillary
Brighton & Hove City Council,http://statistics.data.gov.uk/id/local-authority/00ML,Adult Social Care,BVASOC,S Svcs - Older People Svcs,PPL,Third Party Payments,F,Other Establishments,FH,01/04/2011,PAY00372687,3954.59,Revenue,Allied Healthcare Brighton Domicillary
Brighton & Hove City Council,http://statistics.data.gov.uk/id/local-authority/00ML,Adult Social Care,BVASOC,S Svcs - Physical Disability,PDY,Customer n Client Receipts,M,Fees n Charges,MB,01/04/2011,PAY00372687,-87.00,Revenue,Allied Healthcare Brighton Domicillary
Brighton & Hove City Council,http://statistics.data.gov.uk/id/local-authority/00ML,Adult Social Care,BVASOC,S Svcs - Physical Disability,PDY,Third Party Payments,F,Other Establishments,FH,01/04/2011,PAY00372687,871.31,Revenue,Allied Healthcare Brighton Domicillary
Brighton & Hove City Council,http://statistics.data.gov.uk/id/local-authority/00ML,Non BVACOP,BVANON,Cap - Transport,4TR,New Construction n Conversion,PB,Level not required,NR5026,01/04/2011,PAY00372688,24075.60,Capital,Peter Brett Associates LLP
Brighton & Hove City Council,http://statistics.data.gov.uk/id/local-authority/00ML,Housing Services General Fund,BVAHOG,Homelessness,HML,Premises Related,C,Rents Payable,CC,01/04/2011,PAY00372691,11360.00,Revenue,W P Properties Ltd
Brighton & Hove City Council,http://statistics.data.gov.uk/id/local-authority/00ML,Housing Services General Fund,BVAHOG,Homelessness,HML,Premises Related,C,Rents Payable,CC,01/04/2011,PAY00372692,1125.00,Revenue,Payment to Individual
Brighton & Hove City Council,http://statistics.data.gov.uk/id/local-authority/00ML,Adult Social Care,BVASOC,S Svcs - Learning Disability,LDY,Third Party Payments,F,Other Establishments,FH,01/04/2011,PAY00372696,813.96,Revenue,Payment to Individual
Brighton & Hove City Council,http://statistics.data.gov.uk/id/local-authority/00ML,Adult Social Care,BVASOC,S Svcs - Physical Disability,PDY,Third Party Payments,F,Other Establishments,FH,01/04/2011,PAY00372697,3996.00,Revenue,Payment to Individual
Brighton & Hove City Council,http://statistics.data.gov.uk/id/local-authority/00ML,Adult Social Care,BVASOC,S Svcs - Physical Disability,PDY,Customer n Client Receipts,M,Fees n Charges,MB,01/04/2011,PAY00372699,-2220.28,Revenue,Payment to Individual
Brighton & Hove City Council,http://statistics.data.gov.uk/id/local-authority/00ML,Adult Social Care,BVASOC,S Svcs - Physical Disability,PDY,Third Party Payments,F,Other Establishments,FH,01/04/2011,PAY00372699,4047.84,Revenue,Payment to Individual
Brighton & Hove City Council,http://statistics.data.gov.uk/id/local-authority/00ML,Adult Social Care,BVASOC,S Svcs - Learning Disability,LDY,Third Party Payments,F,Other Establishments,FH,01/04/2011,PAY00372701,3284.76,Revenue,Payment to Individual
Brighton & Hove City Council,http://statistics.data.gov.uk/id/local-authority/00ML,Housing Services General Fund,BVAHOG,Homelessness,HML,Premises Related,C,Rents Payable,CC,01/04/2011,PAY00372702,725.00,Revenue,Payment to Individual
Brighton & Hove City Council,http://statistics.data.gov.uk/id/local-authority/00ML,Cultural Environment Planning,BVACEP,Culture & Heritage,CHG,Supplies and Services,E,Equip't Furniture n Materials,EA,01/04/2011,PAY00372704,1810.00,Revenue,Format Display Ltd
Brighton & Hove City Council,http://statistics.data.gov.uk/id/local-authority/00ML,Cultural Environment Planning,BVACEP,Culture & Heritage,CHG,Supplies and Services,E,Miscellaneous Expenses,EM,01/04/2011,PAY00372704,60.00,Revenue,Format Display Ltd
Brighton & Hove City Council,http://statistics.data.gov.uk/id/local-authority/00ML,Central Services To The Public,BVACEN,Support Services (SSC),PPT,Supplies and Services,E,Communications n Computing,EH,01/04/2011,PAY00372705,6033.00,Revenue,Voice Connect Ltd
Brighton & Hove City Council,http://statistics.data.gov.uk/id/local-authority/00ML,Education Services,BVAEDU,Ed - Nursery Ed,EAE,Premises Related,C,Rents Payable,CC,01/04/2011,PAY00372707,500.00,Revenue,Cornerstone Community Centre (Hove)
Brighton & Hove City Council,http://statistics.data.gov.uk/id/local-authority/00ML,Children�s Social Care,BVACSC,Child Srvcs - Leaving Care,FAL,Transfer Payments,G,Other Transfer Payments,GD,01/04/2011,PAY00372708,810.87,Revenue,Seven Ways (Support) Ltd
Brighton & Hove City Council,http://statistics.data.gov.uk/id/local-authority/00ML,Adult Social Care,BVASOC,S Svcs - Physical Disability,PDY,Third Party Payments,F,Other Establishments,FH,01/04/2011,PAY00372709,615.40,Revenue,Payment to Individual
Brighton & Hove City Council,http://statistics.data.gov.uk/id/local-authority/00ML,Cultural Environment Planning,BVACEP,Open Spaces,PEN,Supplies and Services,E,Clothing Uniforms n Laundry,EC,01/04/2011,PAY00372710,598.50,Revenue,D M Chainsaws Ltd
Brighton & Hove City Council,http://statistics.data.gov.uk/id/local-authority/00ML,Non BVACOP,BVANON,Cap - Housing Services - GF,4HG,Capital Grants,PF,Level not required,NR5012,01/04/2011,PAY00372712,20988.32,Capital,Climate Energy Ltd
Brighton & Hove City Council,http://statistics.data.gov.uk/id/local-authority/00ML,Cultural Environment Planning,BVACEP,Economic Development,ECD,Supplies and Services,E,Miscellaneous Expenses,EM,01/04/2011,PAY00372713,653.36,Revenue,Photoworks
Brighton & Hove City Council,http://statistics.data.gov.uk/id/local-authority/00ML,Children�s Social Care,BVACSC,Child Srvcs - Other Fam Supp,FFX,Premises Related,C,Rents Payable,CC,01/04/2011,PAY00372714,710.00,Revenue,The Barnard Centre
Brighton & Hove City Council,http://statistics.data.gov.uk/id/local-authority/00ML,Adult Social Care,BVASOC,S Svcs - Learning Disability,LDY,Customer n Client Receipts,M,Fees n Charges,MB,01/04/2011,PAY00372715,-616.00,Revenue,Frances Taylor Fdn B&H Home Care Service
Brighton & Hove City Council,http://statistics.data.gov.uk/id/local-authority/00ML,Adult Social Care,BVASOC,S Svcs - Learning Disability,LDY,Third Party Payments,F,Other Establishments,FH,01/04/2011,PAY00372715,10741.81,Revenue,Frances Taylor Fdn B&H Home Care Service
Brighton & Hove City Council,http://statistics.data.gov.uk/id/local-authority/00ML,Adult Social Care,BVASOC,S Svcs - Older People Svcs,PPL,Third Party Payments,F,Other Establishments,FH,01/04/2011,PAY00372715,182.21,Revenue,Frances Taylor Fdn B&H Home Care Service
Brighton & Hove City Council,http://statistics.data.gov.uk/id/local-authority/00ML,Central Services To The Public,BVACEN,Local Tax Collection,LTC,Supplies and Services,E,Miscellaneous Expenses,EM,01/04/2011,PAY00372717,811.97,Revenue,Lawton Communications Group Ltd
Brighton & Hove City Council,http://statistics.data.gov.uk/id/local-authority/00ML,Cultural Environment Planning,BVACEP,Management Services (DEC),MGT,Supplies and Services,E,Miscellaneous Expenses,EM,01/04/2011,PAY00372719,1233.33,Revenue,DC Leisure Management Ltd T/A Brighton
Brighton & Hove City Council,http://statistics.data.gov.uk/id/local-authority/00ML,Cultural Environment Planning,BVACEP,Recreation and sport,REC,Third Party Payments,F,Independent Units of Council,FA,01/04/2011,PAY00372719,721.50,Revenue,DC Leisure Management Ltd T/A Brighton
Brighton & Hove City Council,http://statistics.data.gov.uk/id/local-authority/00ML,Cultural Environment Planning,BVACEP,Recreation and sport,REC,Third Party Payments,F,Private Contractors,FJ,01/04/2011,PAY00372719,6095.45,Revenue,DC Leisure Management Ltd T/A Brighton
Brighton & Hove City Council,http://statistics.data.gov.uk/id/local-authority/00ML,Cultural Environment Planning,BVACEP,Library Service,LBR,Supplies and Services,E,Grants n Subscriptions,EK,01/04/2011,PAY00372720,2844.73,Revenue,OCLC (UK) Ltd
Brighton & Hove City Council,http://statistics.data.gov.uk/id/local-authority/00ML,Adult Social Care,BVASOC,S Svcs - Learning Disability,LDY,Third Party Payments,F,Other Establishments,FH,01/04/2011,PAY00372721,549.56,Revenue,Payment to Individual
Brighton & Hove City Council,http://statistics.data.gov.uk/id/local-authority/00ML,Education Services,BVAEDU,Ed - Nursery Ed,EAE,Supplies and Services,E,Equip't Furniture n Materials,EA,01/04/2011,PAY00372723,581.82,Revenue,Findel Education Ltd
Brighton & Hove City Council,http://statistics.data.gov.uk/id/local-authority/00ML,Education Services,BVAEDU,Ed - Special Ed,EKE,Supplies and Services,E,Equip't Furniture n Materials,EA,01/04/2011,PAY00372723,299.95,Revenue,Findel Education Ltd
Brighton & Hove City Council,http://statistics.data.gov.uk/id/local-authority/00ML,Non BVACOP,BVANON,Cap - Education Services,4ED,Plant Machinery n Equipment,PE2,Level not required,NR5025,01/04/2011,PAY00372723,169.95,Capital,Findel Education Ltd
Brighton & Hove City Council,http://statistics.data.gov.uk/id/local-authority/00ML,Adult Social Care,BVASOC,S Svcs - Physical Disability,PDY,Third Party Payments,F,Other Establishments,FH,01/04/2011,PAY00372726,1885.00,Revenue,Payment to Individual
Brighton & Hove City Council,http://statistics.data.gov.uk/id/local-authority/00ML,Adult Social Care,BVASOC,S Svcs - Physical Disability,PDY,Third Party Payments,F,Other Establishments,FH,01/04/2011,PAY00372727,2158.08,Revenue,Payment to Individual
Brighton & Hove City Council,http://statistics.data.gov.uk/id/local-authority/00ML,Housing Services General Fund,BVAHOG,Homelessness,HML,Premises Related,C,Rents Payable,CC,01/04/2011,PAY00372728,900.00,Revenue,Avon Estates (London) Ltd
Brighton & Hove City Council,http://statistics.data.gov.uk/id/local-authority/00ML,Adult Social Care,BVASOC,S Svcs - Older People Svcs,PPL,Customer n Client Receipts,M,Fees n Charges,MB,01/04/2011,PAY00372729,-565.72,Revenue,Barchester Healthcare Homes Ltd
Brighton & Hove City Council,http://statistics.data.gov.uk/id/local-authority/00ML,Adult Social Care,BVASOC,S Svcs - Older People Svcs,PPL,Third Party Payments,F,Other Establishments,FH,01/04/2011,PAY00372729,4315.68,Revenue,Barchester Healthcare Homes Ltd
Brighton & Hove City Council,http://statistics.data.gov.uk/id/local-authority/00ML,Cultural Environment Planning,BVACEP,Court Services,CRT,Supplies and Services,E,Equip't Furniture n Materials,EA,01/04/2011,PAY00372731,1355.20,Revenue,Payment to Individual
Brighton & Hove City Council,http://statistics.data.gov.uk/id/local-authority/00ML,Adult Social Care,BVASOC,S Svcs - Physical Disability,PDY,Third Party Payments,F,Other Establishments,FH,01/04/2011,PAY00372733,3112.00,Revenue,Payment to Individual
Brighton & Hove City Council,http://statistics.data.gov.uk/id/local-authority/00ML,Cultural Environment Planning,BVACEP,Library Service,LBR,Supplies and Services,E,Equip't Furniture n Materials,EA,01/04/2011,PAY00372734,1770.00,Revenue,Total Disc Repair
Brighton & Hove City Council,http://statistics.data.gov.uk/id/local-authority/00ML,Adult Social Care,BVASOC,S Svcs - Physical Disability,PDY,Third Party Payments,F,Other Establishments,FH,01/04/2011,PAY00372738,869.60,Revenue,Payment to Individual
Brighton & Hove City Council,http://statistics.data.gov.uk/id/local-authority/00ML,Central Services To The Public,BVACEN,Support Services (SSC),PPT,Supplies and Services,E,Communications n Computing,EH,01/04/2011,PAY00372739,1483.19,Revenue,Virgin Media Business
Brighton & Hove City Council,http://statistics.data.gov.uk/id/local-authority/00ML,Cultural Environment Planning,BVACEP,Management Services (DEC),MGT,Supplies and Services,E,Communications n Computing,EH,01/04/2011,PAY00372739,-377.94,Revenue,Virgin Media Business
Brighton & Hove City Council,http://statistics.data.gov.uk/id/local-authority/00ML,Cultural Environment Planning,BVACEP,Tourism,TRM,Supplies and Services,E,Communications n Computing,EH,01/04/2011,PAY00372739,12.62,Revenue,Virgin Media Business
Brighton & Hove City Council,http://statistics.data.gov.uk/id/local-authority/00ML,Education Services,BVAEDU,Ed - Standard Fund Grants,ENN,Supplies and Services,E,Communications n Computing,EH,01/04/2011,PAY00372739,756.49,Revenue,Virgin Media Business
Brighton & Hove City Council,http://statistics.data.gov.uk/id/local-authority/00ML,Adult Social Care,BVASOC,S Svcs - Physical Disability,PDY,Customer n Client Receipts,M,Fees n Charges,MB,01/04/2011,PAY00372740,-136.00,Revenue,Payment to Individual
Brighton & Hove City Council,http://statistics.data.gov.uk/id/local-authority/00ML,Adult Social Care,BVASOC,S Svcs - Physical Disability,PDY,Third Party Payments,F,Other Establishments,FH,01/04/2011,PAY00372740,2703.12,Revenue,Payment to Individual
Brighton & Hove City Council,http://statistics.data.gov.uk/id/local-authority/00ML,Adult Social Care,BVASOC,S Svcs - Older People Svcs,PPL,Customer n Client Receipts,M,Fees n Charges,MB,01/04/2011,PAY00372744,-120.00,Revenue,Payment to Individual
Brighton & Hove City Council,http://statistics.data.gov.uk/id/local-authority/00ML,Adult Social Care,BVASOC,S Svcs - Older People Svcs,PPL,Third Party Payments,F,Other Establishments,FH,01/04/2011,PAY00372744,1170.68,Revenue,Payment to Individual
Brighton & Hove City Council,http://statistics.data.gov.uk/id/local-authority/00ML,Adult Social Care,BVASOC,S Svcs - Older People Svcs,PPL,Customer n Client Receipts,M,Fees n Charges,MB,01/04/2011,PAY00372745,-172.00,Revenue,Payment to Individual
Brighton & Hove City Council,http://statistics.data.gov.uk/id/local-authority/00ML,Adult Social Care,BVASOC,S Svcs - Older People Svcs,PPL,Third Party Payments,F,Other Establishments,FH,01/04/2011,PAY00372745,814.64,Revenue,Payment to Individual
Brighton & Hove City Council,http://statistics.data.gov.uk/id/local-authority/00ML,Education Services,BVAEDU,Ed - Non Sch Fnd - Other,ENF,Supplies and Services,E,Equip't Furniture n Materials,EA,01/04/2011,PAY00372751,436.00,Revenue,Norseman Direct
Brighton & Hove City Council,http://statistics.data.gov.uk/id/local-authority/00ML,Non BVACOP,BVANON,Cap - Social Services,4RV,New Construction n Conversion,PB,Level not required,NR5026,01/04/2011,PAY00372752,2325.51,Capital,Tectonic Digital Systems Ltd
Brighton & Hove City Council,http://statistics.data.gov.uk/id/local-authority/00ML,Adult Social Care,BVASOC,S Svcs - Older People Svcs,PPL,Customer n Client Receipts,M,Fees n Charges,MB,01/04/2011,PAY00372757,-68.00,Revenue,Payment to Individual
Brighton & Hove City Council,http://statistics.data.gov.uk/id/local-authority/00ML,Adult Social Care,BVASOC,S Svcs - Older People Svcs,PPL,Third Party Payments,F,Other Establishments,FH,01/04/2011,PAY00372757,2041.04,Revenue,Payment to Individual
Brighton & Hove City Council,http://statistics.data.gov.uk/id/local-authority/00ML,Housing Services General Fund,BVAHOG,Homelessness,HML,Premises Related,C,Rents Payable,CC,01/04/2011,PAY00372758,22697.38,Revenue,West Pier Services Limited
Brighton & Hove City Council,http://statistics.data.gov.uk/id/local-authority/00ML,Adult Social Care,BVASOC,S Svcs - Physical Disability,PDY,Customer n Client Receipts,M,Fees n Charges,MB,01/04/2011,PAY00372760,-1039.84,Revenue,Payment to Individual
Brighton & Hove City Council,http://statistics.data.gov.uk/id/local-authority/00ML,Adult Social Care,BVASOC,S Svcs - Physical Disability,PDY,Third Party Payments,F,Other Establishments,FH,01/04/2011,PAY00372760,5488.24,Revenue,Payment to Individual
Brighton & Hove City Council,http://statistics.data.gov.uk/id/local-authority/00ML,Adult Social Care,BVASOC,S Svcs - Older People Svcs,PPL,Customer n Client Receipts,M,Fees n Charges,MB,01/04/2011,PAY00372763,-192.00,Revenue,Payment to Individual
Brighton & Hove City Council,http://statistics.data.gov.uk/id/local-authority/00ML,Adult Social Care,BVASOC,S Svcs - Older People Svcs,PPL,Third Party Payments,F,Other Establishments,FH,01/04/2011,PAY00372763,1362.72,Revenue,Payment to Individual
Brighton & Hove City Council,http://statistics.data.gov.uk/id/local-authority/00ML,Adult Social Care,BVASOC,S Svcs - Learning Disability,LDY,Third Party Payments,F,Other Establishments,FH,01/04/2011,PAY00372764,816.00,Revenue,Payment to Individual
Brighton & Hove City Council,http://statistics.data.gov.uk/id/local-authority/00ML,Non BVACOP,BVANON,Cap - Housing Services - GF,4HG,New Construction n Conversion,PB,Level not required,NR5026,01/04/2011,PAY00372765,25000.00,Capital,PriceWaterhouseCoopers LLP
Brighton & Hove City Council,http://statistics.data.gov.uk/id/local-authority/00ML,Adult Social Care,BVASOC,S Svcs - Physical Disability,PDY,Third Party Payments,F,Other Establishments,FH,01/04/2011,PAY00372770,3108.52,Revenue,Payment to Individual
Brighton & Hove City Council,http://statistics.data.gov.uk/id/local-authority/00ML,Adult Social Care,BVASOC,S Svcs - Older People Svcs,PPL,Customer n Client Receipts,M,Fees n Charges,MB,01/04/2011,PAY00372772,-60.00,Revenue,Payment to Individual
Brighton & Hove City Council,http://statistics.data.gov.uk/id/local-authority/00ML,Adult Social Care,BVASOC,S Svcs - Older People Svcs,PPL,Third Party Payments,F,Other Establishments,FH,01/04/2011,PAY00372772,840.76,Revenue,Payment to Individual
Brighton & Hove City Council,http://statistics.data.gov.uk/id/local-authority/00ML,Adult Social Care,BVASOC,Management Services (DEC),MGT,Supplies and Services,E,Miscellaneous Expenses,EM,01/04/2011,PAY00372774,6.93,Revenue,The Imprest Holder
Brighton & Hove City Council,http://statistics.data.gov.uk/id/local-authority/00ML,Adult Social Care,BVASOC,Management Services (DEC),MGT,Third Party Payments,F,Other Establishments,FH,01/04/2011,PAY00372774,20.00,Revenue,The Imprest Holder
Brighton & Hove City Council,http://statistics.data.gov.uk/id/local-authority/00ML,Adult Social Care,BVASOC,S Svcs - Mental Health,MHT,Supplies and Services,E,Miscellaneous Expenses,EM,01/04/2011,PAY00372774,152.00,Revenue,The Imprest Holder
Brighton & Hove City Council,http://statistics.data.gov.uk/id/local-authority/00ML,Adult Social Care,BVASOC,S Svcs - Older People Svcs,PPL,Supplies and Services,E,Miscellaneous Expenses,EM,01/04/2011,PAY00372774,450.00,Revenue,The Imprest Holder
Brighton & Hove City Council,http://statistics.data.gov.uk/id/local-authority/00ML,Adult Social Care,BVASOC,S Svcs - Other Adult Services,ADT,Supplies and Services,E,Miscellaneous Expenses,EM,01/04/2011,PAY00372774,34.68,Revenue,The Imprest Holder
Brighton & Hove City Council,http://statistics.data.gov.uk/id/local-authority/00ML,Adult Social Care,BVASOC,S Svcs - Other Adult Services,ADT,Transport Related,D,Public Transport,DD,01/04/2011,PAY00372774,44.53,Revenue,The Imprest Holder
Brighton & Hove City Council,http://statistics.data.gov.uk/id/local-authority/00ML,Adult Social Care,BVASOC,Support Services (SSC),PPT,Supplies and Services,E,Services,EF,01/04/2011,PAY00372774,5.00,Revenue,The Imprest Holder
Brighton & Hove City Council,http://statistics.data.gov.uk/id/local-authority/00ML,Central Services To The Public,BVACEN,Management Services (DEC),MGT,Supplies and Services,E,Equip't Furniture n Materials,EA,01/04/2011,PAY00372774,18.03,Revenue,The Imprest Holder
Brighton & Hove City Council,http://statistics.data.gov.uk/id/local-authority/00ML,Central Services To The Public,BVACEN,Management Services (DEC),MGT,Transport Related,D,Public Transport,DD,01/04/2011,PAY00372774,34.00,Revenue,The Imprest Holder
Brighton & Hove City Council,http://statistics.data.gov.uk/id/local-authority/00ML,Central Services To The Public,BVACEN,Support Services (SSC),PPT,Customer n Client Receipts,M,Fees n Charges,MB,01/04/2011,PAY00372774,100.00,Revenue,The Imprest Holder
Brighton & Hove City Council,http://statistics.data.gov.uk/id/local-authority/00ML,Central Services To The Public,BVACEN,Support Services (SSC),PPT,Indirect Employees,B,Misc Employee Costs,BP,01/04/2011,PAY00372774,62.50,Revenue,The Imprest Holder
Brighton & Hove City Council,http://statistics.data.gov.uk/id/local-authority/00ML,Central Services To The Public,BVACEN,Support Services (SSC),PPT,Indirect Employees,B,Training,BM,01/04/2011,PAY00372774,132.80,Revenue,The Imprest Holder
Brighton & Hove City Council,http://statistics.data.gov.uk/id/local-authority/00ML,Central Services To The Public,BVACEN,Support Services (SSC),PPT,Premises Related,C,Repair Maint n Alterations,CA,01/04/2011,PAY00372774,383.84,Revenue,The Imprest Holder
Brighton & Hove City Council,http://statistics.data.gov.uk/id/local-authority/00ML,Central Services To The Public,BVACEN,Support Services (SSC),PPT,Supplies and Services,E,Catering,EB,01/04/2011,PAY00372774,16.94,Revenue,The Imprest Holder
Brighton & Hove City Council,http://statistics.data.gov.uk/id/local-authority/00ML,Central Services To The Public,BVACEN,Support Services (SSC),PPT,Supplies and Services,E,Equip't Furniture n Materials,EA,01/04/2011,PAY00372774,41.67,Revenue,The Imprest Holder
Brighton & Hove City Council,http://statistics.data.gov.uk/id/local-authority/00ML,Central Services To The Public,BVACEN,Support Services (SSC),PPT,Supplies and Services,E,Expenses,EJ,01/04/2011,PAY00372774,50.68,Revenue,The Imprest Holder
Brighton & Hove City Council,http://statistics.data.gov.uk/id/local-authority/00ML,Central Services To The Public,BVACEN,Support Services (SSC),PPT,Supplies and Services,E,Miscellaneous Expenses,EM,01/04/2011,PAY00372774,120.48,Revenue,The Imprest Holder
Brighton & Hove City Council,http://statistics.data.gov.uk/id/local-authority/00ML,Central Services To The Public,BVACEN,Support Services (SSC),PPT,Supplies and Services,E,Print Stat & Gen Office Exps,ED,01/04/2011,PAY00372774,38.11,Revenue,The Imprest Holder
Brighton & Hove City Council,http://statistics.data.gov.uk/id/local-authority/00ML,Central Services To The Public,BVACEN,Support Services (SSC),PPT,Supplies and Services,E,Services,EF,01/04/2011,PAY00372774,7.50,Revenue,The Imprest Holder
Brighton & Hove City Council,http://statistics.data.gov.uk/id/local-authority/00ML,Central Services To The Public,BVACEN,Support Services (SSC),PPT,Transport Related,D,Car Allowances,DE,01/04/2011,PAY00372774,11.80,Revenue,The Imprest Holder
Brighton & Hove City Council,http://statistics.data.gov.uk/id/local-authority/00ML,Central Services To The Public,BVACEN,Support Services (SSC),PPT,Transport Related,D,Direct Transport Costs,DA,01/04/2011,PAY00372774,8.07,Revenue,The Imprest Holder
Brighton & Hove City Council,http://statistics.data.gov.uk/id/local-authority/00ML,Central Services To The Public,BVACEN,Support Services (SSC),PPT,Transport Related,D,Other Transport Costs,DG,01/04/2011,PAY00372774,16.10,Revenue,The Imprest Holder
Brighton & Hove City Council,http://statistics.data.gov.uk/id/local-authority/00ML,Central Services To The Public,BVACEN,Support Services (SSC),PPT,Transport Related,D,Public Transport,DD,01/04/2011,PAY00372774,419.37,Revenue,The Imprest Holder
Brighton & Hove City Council,http://statistics.data.gov.uk/id/local-authority/00ML,Children�s Social Care,BVACSC,Child Srvcs - Other,FAX,Supplies and Services,E,Print Stat & Gen Office Exps,ED,01/04/2011,PAY00372774,9.84,Revenue,The Imprest Holder
Brighton & Hove City Council,http://statistics.data.gov.uk/id/local-authority/00ML,Children�s Social Care,BVACSC,Child Srvcs - Other Fam Supp,FFX,Supplies and Services,E,Miscellaneous Expenses,EM,01/04/2011,PAY00372774,44.53,Revenue,The Imprest Holder
Brighton & Hove City Council,http://statistics.data.gov.uk/id/local-authority/00ML,Children�s Social Care,BVACSC,Child Srvcs - Other Fam Supp,FFX,Supplies and Services,E,Services,EF,01/04/2011,PAY00372774,52.42,Revenue,The Imprest Holder
Brighton & Hove City Council,http://statistics.data.gov.uk/id/local-authority/00ML,Children�s Social Care,BVACSC,Child Srvcs - Other Fam Supp,FFX,Transport Related,D,Car Allowances,DE,01/04/2011,PAY00372774,7.00,Revenue,The Imprest Holder
Brighton & Hove City Council,http://statistics.data.gov.uk/id/local-authority/00ML,Cultural Environment Planning,BVACEP,Community Development,CDV,Supplies and Services,E,Miscellaneous Expenses,EM,01/04/2011,PAY00372774,58.97,Revenue,The Imprest Holder
Brighton & Hove City Council,http://statistics.data.gov.uk/id/local-authority/00ML,Cultural Environment Planning,BVACEP,Community Development,CDV,Transport Related,D,Public Transport,DD,01/04/2011,PAY00372774,109.45,Revenue,The Imprest Holder
Brighton & Hove City Council,http://statistics.data.gov.uk/id/local-authority/00ML,Cultural Environment Planning,BVACEP,Culture & Heritage,CHG,Supplies and Services,E,Miscellaneous Expenses,EM,01/04/2011,PAY00372774,7.40,Revenue,The Imprest Holder
Brighton & Hove City Council,http://statistics.data.gov.uk/id/local-authority/00ML,Cultural Environment Planning,BVACEP,Economic Development,ECD,Premises Related,C,Repair Maint n Alterations,CA,01/04/2011,PAY00372774,2.99,Revenue,The Imprest Holder
Brighton & Hove City Council,http://statistics.data.gov.uk/id/local-authority/00ML,Cultural Environment Planning,BVACEP,Economic Development,ECD,Supplies and Services,E,Expenses,EJ,01/04/2011,PAY00372774,1.60,Revenue,The Imprest Holder
Brighton & Hove City Council,http://statistics.data.gov.uk/id/local-authority/00ML,Cultural Environment Planning,BVACEP,Economic Development,ECD,Supplies and Services,E,Miscellaneous Expenses,EM,01/04/2011,PAY00372774,91.02,Revenue,The Imprest Holder
Brighton & Hove City Council,http://statistics.data.gov.uk/id/local-authority/00ML,Cultural Environment Planning,BVACEP,Economic Development,ECD,Supplies and Services,E,Print Stat & Gen Office Exps,ED,01/04/2011,PAY00372774,7.97,Revenue,The Imprest Holder
Brighton & Hove City Council,http://statistics.data.gov.uk/id/local-authority/00ML,Cultural Environment Planning,BVACEP,Economic Development,ECD,Supplies and Services,E,Services,EF,01/04/2011,PAY00372774,0.84,Revenue,The Imprest Holder
Brighton & Hove City Council,http://statistics.data.gov.uk/id/local-authority/00ML,Cultural Environment Planning,BVACEP,Economic Development,ECD,Transport Related,D,Public Transport,DD,01/04/2011,PAY00372774,201.42,Revenue,The Imprest Holder
Brighton & Hove City Council,http://statistics.data.gov.uk/id/local-authority/00ML,Cultural Environment Planning,BVACEP,Environmental Health,EVH,Transport Related,D,Public Transport,DD,01/04/2011,PAY00372774,7.00,Revenue,The Imprest Holder
Brighton & Hove City Council,http://statistics.data.gov.uk/id/local-authority/00ML,Cultural Environment Planning,BVACEP,Library Service,LBR,Supplies and Services,E,Miscellaneous Expenses,EM,01/04/2011,PAY00372774,14.99,Revenue,The Imprest Holder
Brighton & Hove City Council,http://statistics.data.gov.uk/id/local-authority/00ML,Cultural Environment Planning,BVACEP,Management Services (DEC),MGT,Supplies and Services,E,Print Stat & Gen Office Exps,ED,01/04/2011,PAY00372774,14.97,Revenue,The Imprest Holder
Brighton & Hove City Council,http://statistics.data.gov.uk/id/local-authority/00ML,Cultural Environment Planning,BVACEP,Recreation and sport,REC,Customer n Client Receipts,M,Fees n Charges,MB,01/04/2011,PAY00372774,50.00,Revenue,The Imprest Holder
Brighton & Hove City Council,http://statistics.data.gov.uk/id/local-authority/00ML,Cultural Environment Planning,BVACEP,Recreation and sport,REC,Premises Related,C,Repair Maint n Alterations,CA,01/04/2011,PAY00372774,213.77,Revenue,The Imprest Holder
Brighton & Hove City Council,http://statistics.data.gov.uk/id/local-authority/00ML,Cultural Environment Planning,BVACEP,Recreation and sport,REC,Supplies and Services,E,Miscellaneous Expenses,EM,01/04/2011,PAY00372774,108.94,Revenue,The Imprest Holder
Brighton & Hove City Council,http://statistics.data.gov.uk/id/local-authority/00ML,Cultural Environment Planning,BVACEP,Recreation and sport,REC,Supplies and Services,E,Print Stat & Gen Office Exps,ED,01/04/2011,PAY00372774,24.99,Revenue,The Imprest Holder
Brighton & Hove City Council,http://statistics.data.gov.uk/id/local-authority/00ML,Cultural Environment Planning,BVACEP,Recreation and sport,REC,Transport Related,D,Public Transport,DD,01/04/2011,PAY00372774,98.60,Revenue,The Imprest Holder
Brighton & Hove City Council,http://statistics.data.gov.uk/id/local-authority/00ML,Education Services,BVAEDU,Ed - LA Exp Attrib to Schools,ELA,Transport Related,D,Public Transport,DD,01/04/2011,PAY00372774,16.00,Revenue,The Imprest Holder
Brighton & Hove City Council,http://statistics.data.gov.uk/id/local-authority/00ML,Education Services,BVAEDU,Ed Mgmt and Support Services,EMG,Transport Related,D,Other Transport Costs,DG,01/04/2011,PAY00372774,7.70,Revenue,The Imprest Holder
Brighton & Hove City Council,http://statistics.data.gov.uk/id/local-authority/00ML,Education Services,BVAEDU,Ed- Non Sch Fnd -Ad & Cmty Ln,ENA,Supplies and Services,E,Miscellaneous Expenses,EM,01/04/2011,PAY00372774,20.83,Revenue,The Imprest Holder
Brighton & Hove City Council,http://statistics.data.gov.uk/id/local-authority/00ML,Education Services,BVAEDU,Ed- Non Sch Fnd -Ad & Cmty Ln,ENA,Supplies and Services,E,Print Stat & Gen Office Exps,ED,01/04/2011,PAY00372774,4.16,Revenue,The Imprest Holder
Brighton & Hove City Council,http://statistics.data.gov.uk/id/local-authority/00ML,Education Services,BVAEDU,Ed- Non Sch Fnd -Ad & Cmty Ln,ENA,Transport Related,D,Public Transport,DD,01/04/2011,PAY00372774,12.60,Revenue,The Imprest Holder
Brighton & Hove City Council,http://statistics.data.gov.uk/id/local-authority/00ML,Education Services,BVAEDU,Ed - Non Sch Fnd - Other,ENF,Supplies and Services,E,Miscellaneous Expenses,EM,01/04/2011,PAY00372774,11.45,Revenue,The Imprest Holder
Brighton & Hove City Council,http://statistics.data.gov.uk/id/local-authority/00ML,Education Services,BVAEDU,Ed - Non Sch Fnd - Strat Mgmt,ENM,Supplies and Services,E,Miscellaneous Expenses,EM,01/04/2011,PAY00372774,2.80,Revenue,The Imprest Holder
Brighton & Hove City Council,http://statistics.data.gov.uk/id/local-authority/00ML,Highways and Transportation,BVAHRT,Traffic Mgmnt and Road Safety,TMR,Supplies and Services,E,Miscellaneous Expenses,EM,01/04/2011,PAY00372774,9.79,Revenue,The Imprest Holder
Brighton & Hove City Council,http://statistics.data.gov.uk/id/local-authority/00ML,Highways and Transportation,BVAHRT,Traffic Mgmnt and Road Safety,TMR,Transport Related,D,Public Transport,DD,01/04/2011,PAY00372774,1.20,Revenue,The Imprest Holder
Brighton & Hove City Council,http://statistics.data.gov.uk/id/local-authority/00ML,Housing Services General Fund,BVAHOG,Hsing Benefits,HGB,Supplies and Services,E,Expenses,EJ,01/04/2011,PAY00372774,237.03,Revenue,The Imprest Holder
Brighton & Hove City Council,http://statistics.data.gov.uk/id/local-authority/00ML,Housing Services General Fund,BVAHOG,Hsing Benefits,HGB,Supplies and Services,E,Print Stat & Gen Office Exps,ED,01/04/2011,PAY00372774,8.00,Revenue,The Imprest Holder
Brighton & Hove City Council,http://statistics.data.gov.uk/id/local-authority/00ML,Housing Services General Fund,BVAHOG,Hsing Strat Advice and RSLs,HGR,Supplies and Services,E,Print Stat & Gen Office Exps,ED,01/04/2011,PAY00372774,3.08,Revenue,The Imprest Holder
Brighton & Hove City Council,http://statistics.data.gov.uk/id/local-authority/00ML,Housing Services Revnue Acc,BVAHOU,Hsing Management - HRA,HGM,Supplies and Services,E,Miscellaneous Expenses,EM,01/04/2011,PAY00372774,5.13,Revenue,The Imprest Holder
Brighton & Hove City Council,http://statistics.data.gov.uk/id/local-authority/00ML,Housing Services Revnue Acc,BVAHOU,Hsing Management - HRA,HGM,Supplies and Services,E,Print Stat & Gen Office Exps,ED,01/04/2011,PAY00372774,19.28,Revenue,The Imprest Holder
Brighton & Hove City Council,http://statistics.data.gov.uk/id/local-authority/00ML,Housing Services Revnue Acc,BVAHOU,Hsing Management - HRA,HGM,Supplies and Services,E,Services,EF,01/04/2011,PAY00372774,13.75,Revenue,The Imprest Holder
Brighton & Hove City Council,http://statistics.data.gov.uk/id/local-authority/00ML,Housing Services Revnue Acc,BVAHOU,Hsing Management - HRA,HGM,Transport Related,D,Public Transport,DD,01/04/2011,PAY00372774,50.17,Revenue,The Imprest Holder
Brighton & Hove City Council,http://statistics.data.gov.uk/id/local-authority/00ML,Adult Social Care,BVASOC,S Svcs - Learning Disability,LDY,Customer n Client Receipts,M,Fees n Charges,MB,01/04/2011,PAY00372776,-92.00,Revenue,Payment to Individual
Brighton & Hove City Council,http://statistics.data.gov.uk/id/local-authority/00ML,Adult Social Care,BVASOC,S Svcs - Learning Disability,LDY,Third Party Payments,F,Other Establishments,FH,01/04/2011,PAY00372776,970.00,Revenue,Payment to Individual
Brighton & Hove City Council,http://statistics.data.gov.uk/id/local-authority/00ML,Adult Social Care,BVASOC,Management Services (DEC),MGT,Supplies and Services,E,Services,EF,01/04/2011,PAY00372777,975.00,Revenue,AJB Public Sector Consulting Ltd 
Brighton & Hove City Council,http://statistics.data.gov.uk/id/local-authority/00ML,Housing Services General Fund,BVAHOG,Homelessness,HML,Premises Related,C,Rents Payable,CC,01/04/2011,PAY00372778,900.00,Revenue,Payment to Individual
Brighton & Hove City Council,http://statistics.data.gov.uk/id/local-authority/00ML,Adult Social Care,BVASOC,S Svcs - Older People Svcs,PPL,Customer n Client Receipts,M,Fees n Charges,MB,01/04/2011,PAY00372780,-32.00,Revenue,Payment to Individual
Brighton & Hove City Council,http://statistics.data.gov.uk/id/local-authority/00ML,Adult Social Care,BVASOC,S Svcs - Older People Svcs,PPL,Third Party Payments,F,Other Establishments,FH,01/04/2011,PAY00372780,681.76,Revenue,Payment to Individual
Brighton & Hove City Council,http://statistics.data.gov.uk/id/local-authority/00ML,Adult Social Care,BVASOC,S Svcs - Learning Disability,LDY,Third Party Payments,F,Other Establishments,FH,01/04/2011,PAY00372782,513.70,Revenue,Payment to Individual
Brighton & Hove City Council,http://statistics.data.gov.uk/id/local-authority/00ML,Adult Social Care,BVASOC,S Svcs - Learning Disability,LDY,Premises Related,C,Rents Payable,CC,01/04/2011,PAY00372784,875.00,Revenue,Payment to Individual
Brighton & Hove City Council,http://statistics.data.gov.uk/id/local-authority/00ML,Education Services,BVAEDU,Ed - Nursery Ed,EAE,Supplies and Services,E,Equip't Furniture n Materials,EA,01/04/2011,PAY00372785,602.67,Revenue,Payment to Individual
Brighton & Hove City Council,http://statistics.data.gov.uk/id/local-authority/00ML,Education Services,BVAEDU,Ed - Non Sch Fnd - Other,ENF,Direct Employees,A,Salaries,AA,01/04/2011,PAY00372786,850.00,Revenue,Supply Desk Ltd
Brighton & Hove City Council,http://statistics.data.gov.uk/id/local-authority/00ML,Adult Social Care,BVASOC,S Svcs - Physical Disability,PDY,Third Party Payments,F,Other Establishments,FH,01/04/2011,PAY00372787,754.48,Revenue,Payment to Individual
Brighton & Hove City Council,http://statistics.data.gov.uk/id/local-authority/00ML,Adult Social Care,BVASOC,S Svcs - Learning Disability,LDY,Third Party Payments,F,Other Establishments,FH,01/04/2011,PAY00372788,2493.44,Revenue,Payment to Individual
Brighton & Hove City Council,http://statistics.data.gov.uk/id/local-authority/00ML,Adult Social Care,BVASOC,S Svcs - Learning Disability,LDY,Third Party Payments,F,Other Establishments,FH,01/04/2011,PAY00372790,6872.00,Revenue,Payment to Individual
Brighton & Hove City Council,http://statistics.data.gov.uk/id/local-authority/00ML,Adult Social Care,BVASOC,S Svcs - Older People Svcs,PPL,Customer n Client Receipts,M,Fees n Charges,MB,01/04/2011,PAY00372791,-40.00,Revenue,Payment to Individual
Brighton & Hove City Council,http://statistics.data.gov.uk/id/local-authority/00ML,Adult Social Care,BVASOC,S Svcs - Older People Svcs,PPL,Third Party Payments,F,Other Establishments,FH,01/04/2011,PAY00372791,632.80,Revenue,Payment to Individual
Brighton & Hove City Council,http://statistics.data.gov.uk/id/local-authority/00ML,Adult Social Care,BVASOC,S Svcs - Mental Health,MHT,Third Party Payments,F,Health Authorities,FC,01/04/2011,PAY00372792,23293.38,Revenue,Sussex Partnership NHS Foundation Trust
Brighton & Hove City Council,http://statistics.data.gov.uk/id/local-authority/00ML,Children�s Social Care,BVACSC,Child Srvcs - Other,FAX,Third Party Payments,F,Other Establishments,FH,01/04/2011,PAY00372792,15850.00,Revenue,Sussex Partnership NHS Foundation Trust
Brighton & Hove City Council,http://statistics.data.gov.uk/id/local-authority/00ML,Adult Social Care,BVASOC,S Svcs - Physical Disability,PDY,Third Party Payments,F,Other Establishments,FH,01/04/2011,PAY00372794,4104.00,Revenue,Payment to Individual
Brighton & Hove City Council,http://statistics.data.gov.uk/id/local-authority/00ML,Adult Social Care,BVASOC,S Svcs - Physical Disability,PDY,Third Party Payments,F,Other Establishments,FH,01/04/2011,PAY00372795,692.96,Revenue,Payment to Individual
Brighton & Hove City Council,http://statistics.data.gov.uk/id/local-authority/00ML,Adult Social Care,BVASOC,S Svcs - Physical Disability,PDY,Customer n Client Receipts,M,Fees n Charges,MB,01/04/2011,PAY00372796,-388.00,Revenue,Payment to Individual
Brighton & Hove City Council,http://statistics.data.gov.uk/id/local-authority/00ML,Adult Social Care,BVASOC,S Svcs - Physical Disability,PDY,Third Party Payments,F,Other Establishments,FH,01/04/2011,PAY00372796,3771.60,Revenue,Payment to Individual
Brighton & Hove City Council,http://statistics.data.gov.uk/id/local-authority/00ML,Adult Social Care,BVASOC,S Svcs - Learning Disability,LDY,Supplies and Services,E,Equip't Furniture n Materials,EA,01/04/2011,PAY00372797,277.04,Revenue,Argos Business Solutions Ltd
Brighton & Hove City Council,http://statistics.data.gov.uk/id/local-authority/00ML,Adult Social Care,BVASOC,S Svcs - Learning Disability,LDY,Supplies and Services,E,Miscellaneous Expenses,EM,01/04/2011,PAY00372797,83.32,Revenue,Argos Business Solutions Ltd
Brighton & Hove City Council,http://statistics.data.gov.uk/id/local-authority/00ML,Children�s Social Care,BVACSC,Child Srvcs - Leaving Care,FAL,Transfer Payments,G,Other Transfer Payments,GD,01/04/2011,PAY00372797,223.99,Revenue,Argos Business Solutions Ltd
Brighton & Hove City Council,http://statistics.data.gov.uk/id/local-authority/00ML,Education Services,BVAEDU,Ed - Nursery Ed,EAE,Supplies and Services,E,Equip't Furniture n Materials,EA,01/04/2011,PAY00372797,58.04,Revenue,Argos Business Solutions Ltd
Brighton & Hove City Council,http://statistics.data.gov.uk/id/local-authority/00ML,Housing Services General Fund,BVAHOG,Homelessness,HML,Supplies and Services,E,Print Stat & Gen Office Exps,ED,01/04/2011,PAY00372797,-59.12,Revenue,Argos Business Solutions Ltd
Brighton & Hove City Council,http://statistics.data.gov.uk/id/local-authority/00ML,Cultural Environment Planning,BVACEP,Management Services (DEC),MGT,Transport Related,D,Direct Transport Costs,DA,01/04/2011,PAY00372798,7139.14,Revenue,Farid UK Ltd
Brighton & Hove City Council,http://statistics.data.gov.uk/id/local-authority/00ML,Housing Services General Fund,BVAHOG,Homelessness,HML,Premises Related,C,Rents Payable,CC,01/04/2011,PAY00372799,685.00,Revenue,Marchmont Estates Ltd
Brighton & Hove City Council,http://statistics.data.gov.uk/id/local-authority/00ML,Adult Social Care,BVASOC,S Svcs - Learning Disability,LDY,Customer n Client Receipts,M,Fees n Charges,MB,01/04/2011,PAY00372802,-1251.32,Revenue,Payment to Individual
Brighton & Hove City Council,http://statistics.data.gov.uk/id/local-authority/00ML,Adult Social Care,BVASOC,S Svcs - Learning Disability,LDY,Third Party Payments,F,Other Establishments,FH,01/04/2011,PAY00372802,3594.96,Revenue,Payment to Individual
Brighton & Hove City Council,http://statistics.data.gov.uk/id/local-authority/00ML,Housing Services General Fund,BVAHOG,Homelessness,HML,Premises Related,C,Rents Payable,CC,01/04/2011,PAY00372808,550.00,Revenue,Payment to Individual
Brighton & Hove City Council,http://statistics.data.gov.uk/id/local-authority/00ML,Children�s Social Care,BVACSC,Child Srvcs - Leaving Care,FAL,Transfer Payments,G,Other Transfer Payments,GD,01/04/2011,PAY00372809,647.00,Revenue,N V Austin Ltd
Brighton & Hove City Council,http://statistics.data.gov.uk/id/local-authority/00ML,Adult Social Care,BVASOC,S Svcs - Older People Svcs,PPL,Third Party Payments,F,Voluntary Associations,FG,01/04/2011,PAY00372810,1492.28,Revenue,Hanover Housing Association
Brighton & Hove City Council,http://statistics.data.gov.uk/id/local-authority/00ML,Adult Social Care,BVASOC,S Svcs - Older People Svcs,PPL,Customer n Client Receipts,M,Fees n Charges,MB,01/04/2011,PAY00372811,4797.24,Revenue,Kings Lodge Nursing Home
Brighton & Hove City Council,http://statistics.data.gov.uk/id/local-authority/00ML,Adult Social Care,BVASOC,S Svcs - Physical Disability,PDY,Customer n Client Receipts,M,Fees n Charges,MB,01/04/2011,PAY00372811,4390.63,Revenue,Kings Lodge Nursing Home
Brighton & Hove City Council,http://statistics.data.gov.uk/id/local-authority/00ML,Housing Services General Fund,BVAHOG,Homelessness,HML,Premises Related,C,Rents Payable,CC,01/04/2011,PAY00372812,600.00,Revenue,Home & Coastal Developments Limited
Brighton & Hove City Council,http://statistics.data.gov.uk/id/local-authority/00ML,Adult Social Care,BVASOC,S Svcs - Physical Disability,PDY,Customer n Client Receipts,M,Fees n Charges,MB,01/04/2011,PAY00372815,-132.00,Revenue,Payment to Individual
Brighton & Hove City Council,http://statistics.data.gov.uk/id/local-authority/00ML,Adult Social Care,BVASOC,S Svcs - Physical Disability,PDY,Third Party Payments,F,Other Establishments,FH,01/04/2011,PAY00372815,1047.28,Revenue,Payment to Individual
Brighton & Hove City Council,http://statistics.data.gov.uk/id/local-authority/00ML,Adult Social Care,BVASOC,S Svcs - Older People Svcs,PPL,Third Party Payments,F,Other Establishments,FH,01/04/2011,PAY00372817,2281.32,Revenue,Payment to Individual
Brighton & Hove City Council,http://statistics.data.gov.uk/id/local-authority/00ML,Central Services To The Public,BVACEN,Support Services (SSC),PPT,Premises Related,C,Repair Maint n Alterations,CA,01/04/2011,PAY00372818,915.91,Revenue,J P Garrett Electrical Ltd
Brighton & Hove City Council,http://statistics.data.gov.uk/id/local-authority/00ML,Cultural Environment Planning,BVACEP,Cem Crem and Mortuary Services,CCM,Premises Related,C,Repair Maint n Alterations,CA,01/04/2011,PAY00372818,154.80,Revenue,J P Garrett Electrical Ltd
Brighton & Hove City Council,http://statistics.data.gov.uk/id/local-authority/00ML,Highways and Transportation,BVAHRT,Parking Services,PRK,Premises Related,C,Repair Maint n Alterations,CA,01/04/2011,PAY00372819,2914.00,Revenue,Lee Hire Ltd
Brighton & Hove City Council,http://statistics.data.gov.uk/id/local-authority/00ML,Cultural Environment Planning,BVACEP,Management Services (DEC),MGT,Supplies and Services,E,Services,EF,01/04/2011,PAY00372821,1256.05,Revenue,AM Security Ltd t/a AM Fire & Security Group
Brighton & Hove City Council,http://statistics.data.gov.uk/id/local-authority/00ML,Adult Social Care,BVASOC,S Svcs - Older People Svcs,PPL,Supplies and Services,E,Catering,EB,01/04/2011,PAY00372822,895.01,Revenue,3663 BFS Group Ltd
Brighton & Hove City Council,http://statistics.data.gov.uk/id/local-authority/00ML,Cultural Environment Planning,BVACEP,Culture & Heritage,CHG,Supplies and Services,E,Catering,EB,01/04/2011,PAY00372822,745.96,Revenue,3663 BFS Group Ltd
Brighton & Hove City Council,http://statistics.data.gov.uk/id/local-authority/00ML,Cultural Environment Planning,BVACEP,Court Services,CRT,Supplies and Services,E,Equip't Furniture n Materials,EA,01/04/2011,PAY00372823,4446.00,Revenue,Brighton & Sussex University Hospitals NHS Trust
Brighton & Hove City Council,http://statistics.data.gov.uk/id/local-authority/00ML,Cultural Environment Planning,BVACEP,Community Safety,CMY,Supplies and Services,E,Miscellaneous Expenses,EM,01/04/2011,PAY00372824,7391.00,Revenue,BHAFC Albion in the Community
Brighton & Hove City Council,http://statistics.data.gov.uk/id/local-authority/00ML,Cultural Environment Planning,BVACEP,Economic Development,ECD,Supplies and Services,E,Miscellaneous Expenses,EM,01/04/2011,PAY00372824,680.05,Revenue,BHAFC Albion in the Community
Brighton & Hove City Council,http://statistics.data.gov.uk/id/local-authority/00ML,Cultural Environment Planning,BVACEP,Recreation and sport,REC,Premises Related,C,Energy Costs,CB,01/04/2011,PAY00372826,5945.29,Revenue,City College Brighton and Hove
Brighton & Hove City Council,http://statistics.data.gov.uk/id/local-authority/00ML,Cultural Environment Planning,BVACEP,Recreation and sport,REC,Premises Related,C,Water Services,CE,01/04/2011,PAY00372826,557.47,Revenue,City College Brighton and Hove
Brighton & Hove City Council,http://statistics.data.gov.uk/id/local-authority/00ML,Education Services,BVAEDU,Ed - Non Sch Fnd - Yth Svcs,ENY,Supplies and Services,E,Miscellaneous Expenses,EM,01/04/2011,PAY00372826,28.60,Revenue,City College Brighton and Hove
Brighton & Hove City Council,http://statistics.data.gov.uk/id/local-authority/00ML,Education Services,BVAEDU,Ed - Nursery Ed,EAE,Supplies and Services,E,Grants n Subscriptions,EK,01/04/2011,PAY00372826,1120.00,Revenue,City College Brighton and Hove
Brighton & Hove City Council,http://statistics.data.gov.uk/id/local-authority/00ML,Cultural Environment Planning,BVACEP,Economic Development,ECD,Supplies and Services,E,Miscellaneous Expenses,EM,01/04/2011,PAY00372828,3265.52,Revenue,Brighton & Hove Federation of Disabled People 
Brighton & Hove City Council,http://statistics.data.gov.uk/id/local-authority/00ML,Adult Social Care,BVASOC,S Svcs - Learning Disability,LDY,Supplies and Services,E,Equip't Furniture n Materials,EA,01/04/2011,PAY00372832,558.74,Revenue,Comet Group Plc
Brighton & Hove City Council,http://statistics.data.gov.uk/id/local-authority/00ML,Highways and Transportation,BVAHRT,Public transport,PTR,Third Party Payments,F,Private Contractors,FJ,01/04/2011,PAY00372833,3403.35,Revenue,Community Transport(Bton Hove & Area)Ltd
Brighton & Hove City Council,http://statistics.data.gov.uk/id/local-authority/00ML,Highways and Transportation,BVAHRT,Public transport,PTR,Transport Related,D,Public Transport,DD,01/04/2011,PAY00372833,26.25,Revenue,Community Transport(Bton Hove & Area)Ltd
Brighton & Hove City Council,http://statistics.data.gov.uk/id/local-authority/00ML,Cultural Environment Planning,BVACEP,Culture & Heritage,CHG,Supplies and Services,E,Miscellaneous Expenses,EM,01/04/2011,PAY00372834,1100.00,Revenue,Coastline Poster Services Ltd
Brighton & Hove City Council,http://statistics.data.gov.uk/id/local-authority/00ML,Cultural Environment Planning,BVACEP,Culture & Heritage,CHG,Supplies and Services,E,Equip't Furniture n Materials,EA,01/04/2011,PAY00372835,800.00,Revenue,Crawley Mechanical Handling Ltd
Brighton & Hove City Council,http://statistics.data.gov.uk/id/local-authority/00ML,Cultural Environment Planning,BVACEP,Recreation and sport,REC,Supplies and Services,E,Services,EF,01/04/2011,PAY00372836,550.00,Revenue,The Crown Estate Commissioners Cash Acc
Brighton & Hove City Council,http://statistics.data.gov.uk/id/local-authority/00ML,Adult Social Care,BVASOC,S Svcs - Physical Disability,PDY,Customer n Client Receipts,M,Fees n Charges,MB,01/04/2011,PAY00372837,-48.00,Revenue,Payment to Individual
Brighton & Hove City Council,http://statistics.data.gov.uk/id/local-authority/00ML,Adult Social Care,BVASOC,S Svcs - Physical Disability,PDY,Third Party Payments,F,Other Establishments,FH,01/04/2011,PAY00372837,589.28,Revenue,Payment to Individual
Brighton & Hove City Council,http://statistics.data.gov.uk/id/local-authority/00ML,Housing Services General Fund,BVAHOG,Homelessness,HML,Premises Related,C,Rents Payable,CC,01/04/2011,PAY00372838,900.00,Revenue,Payment to Individual
Brighton & Hove City Council,http://statistics.data.gov.uk/id/local-authority/00ML,Non BVACOP,BVANON,Cap - Libs Culture & Hertage,4LH,Plant Machinery n Equipment,PE2,Level not required,NR5025,01/04/2011,PAY00372842,4914.36,Capital,Dell Computer Corporation Ltd
Brighton & Hove City Council,http://statistics.data.gov.uk/id/local-authority/00ML,Cultural Environment Planning,BVACEP,Library Service,LBR,Supplies and Services,E,Miscellaneous Expenses,EM,01/04/2011,PAY00372844,974.05,Revenue,Demco Europe Ltd
Brighton & Hove City Council,http://statistics.data.gov.uk/id/local-authority/00ML,Adult Social Care,BVASOC,S Svcs - Mental Health,MHT,Premises Related,C,Rates,CD,01/04/2011,PAY00372848,858.65,Revenue,East Sussex County Council
Brighton & Hove City Council,http://statistics.data.gov.uk/id/local-authority/00ML,Central Services To The Public,BVACEN,Holding Accounts,PPH,Transport Related,D,Contract Hire n Operating Leas,DB,01/04/2011,PAY00372848,4043.11,Revenue,East Sussex County Council
Brighton & Hove City Council,http://statistics.data.gov.uk/id/local-authority/00ML,Central Services To The Public,BVACEN,Holding Accounts,PPH,Transport Related,D,Direct Transport Costs,DA,01/04/2011,PAY00372848,10051.36,Revenue,East Sussex County Council
Brighton & Hove City Council,http://statistics.data.gov.uk/id/local-authority/00ML,Highways and Transportation,BVAHRT,Highways and Roads - Mntnce,HRM,Supplies and Services,E,Highways,EN,01/04/2011,PAY00372848,3315.00,Revenue,East Sussex County Council
Brighton & Hove City Council,http://statistics.data.gov.uk/id/local-authority/00ML,Housing Services General Fund,BVAHOG,Homelessness,HML,Transport Related,D,Contract Hire n Operating Leas,DB,01/04/2011,PAY00372848,574.54,Revenue,East Sussex County Council
Brighton & Hove City Council,http://statistics.data.gov.uk/id/local-authority/00ML,Central Services To The Public,BVACEN,Support Services (SSC),PPT,Premises Related,C,Repair Maint n Alterations,CA,01/04/2011,PAY00372849,68264.56,Revenue,Fowler Building Contractors Ltd
Brighton & Hove City Council,http://statistics.data.gov.uk/id/local-authority/00ML,Children�s Social Care,BVACSC,Child Srvcs - Fostering,FLF,Third Party Payments,F,Other Establishments,FH,01/04/2011,PAY00372851,1741.13,Revenue,Payment to Individual
Brighton & Hove City Council,http://statistics.data.gov.uk/id/local-authority/00ML,Children�s Social Care,BVACSC,Child Srvcs - Leaving Care,FAL,Third Party Payments,F,Other Establishments,FH,01/04/2011,PAY00372851,82.00,Revenue,Payment to Individual
Brighton & Hove City Council,http://statistics.data.gov.uk/id/local-authority/00ML,Children�s Social Care,BVACSC,Child Srvcs - Leaving Care,FAL,Transfer Payments,G,Other Transfer Payments,GD,01/04/2011,PAY00372851,234.00,Revenue,Payment to Individual
Brighton & Hove City Council,http://statistics.data.gov.uk/id/local-authority/00ML,Children�s Social Care,BVACSC,Child Srvcs - Fostering,FLF,Third Party Payments,F,Other Establishments,FH,01/04/2011,PAY00372852,692.00,Revenue,Payment to Individual
Brighton & Hove City Council,http://statistics.data.gov.uk/id/local-authority/00ML,Children�s Social Care,BVACSC,Child Srvcs - Fostering,FLF,Third Party Payments,F,Other Establishments,FH,01/04/2011,PAY00372853,1110.00,Revenue,Payment to Individual
Brighton & Hove City Council,http://statistics.data.gov.uk/id/local-authority/00ML,Children�s Social Care,BVACSC,Child Srvcs - Fostering,FLF,Third Party Payments,F,Other Establishments,FH,01/04/2011,PAY00372854,622.00,Revenue,Payment to Individual
Brighton & Hove City Council,http://statistics.data.gov.uk/id/local-authority/00ML,Children�s Social Care,BVACSC,Child Srvcs - Fostering,FLF,Third Party Payments,F,Other Establishments,FH,01/04/2011,PAY00372856,982.28,Revenue,Payment to Individual
Brighton & Hove City Council,http://statistics.data.gov.uk/id/local-authority/00ML,Children�s Social Care,BVACSC,Child Srvcs - Leaving Care,FAL,Third Party Payments,F,Other Establishments,FH,01/04/2011,PAY00372856,382.00,Revenue,Payment to Individual
Brighton & Hove City Council,http://statistics.data.gov.uk/id/local-authority/00ML,Children�s Social Care,BVACSC,Child Srvcs - Fostering,FLF,Third Party Payments,F,Other Establishments,FH,01/04/2011,PAY00372859,764.00,Revenue,Payment to Individual
Brighton & Hove City Council,http://statistics.data.gov.uk/id/local-authority/00ML,Children�s Social Care,BVACSC,Child Srvcs - Fostering,FLF,Third Party Payments,F,Other Establishments,FH,01/04/2011,PAY00372862,742.00,Revenue,Payment to Individual
Brighton & Hove City Council,http://statistics.data.gov.uk/id/local-authority/00ML,Children�s Social Care,BVACSC,Child Srvcs - Leaving Care,FAL,Third Party Payments,F,Other Establishments,FH,01/04/2011,PAY00372862,382.00,Revenue,Payment to Individual
Brighton & Hove City Council,http://statistics.data.gov.uk/id/local-authority/00ML,Children�s Social Care,BVACSC,Child Srvcs - Adoption,FAA,Third Party Payments,F,Other Establishments,FH,01/04/2011,PAY00372863,368.60,Revenue,Payment to Individual
Brighton & Hove City Council,http://statistics.data.gov.uk/id/local-authority/00ML,Children�s Social Care,BVACSC,Child Srvcs - Fostering,FLF,Third Party Payments,F,Other Establishments,FH,01/04/2011,PAY00372863,179.14,Revenue,Payment to Individual
Brighton & Hove City Council,http://statistics.data.gov.uk/id/local-authority/00ML,Children�s Social Care,BVACSC,Child Srvcs - Fostering,FLF,Third Party Payments,F,Other Establishments,FH,01/04/2011,PAY00372865,402.00,Revenue,Payment to Individual
Brighton & Hove City Council,http://statistics.data.gov.uk/id/local-authority/00ML,Children�s Social Care,BVACSC,Child Srvcs - Leaving Care,FAL,Third Party Payments,F,Other Establishments,FH,01/04/2011,PAY00372865,382.00,Revenue,Payment to Individual
Brighton & Hove City Council,http://statistics.data.gov.uk/id/local-authority/00ML,Children�s Social Care,BVACSC,Child Srvcs - Fostering,FLF,Third Party Payments,F,Other Establishments,FH,01/04/2011,PAY00372866,382.00,Revenue,Payment to Individual
Brighton & Hove City Council,http://statistics.data.gov.uk/id/local-authority/00ML,Children�s Social Care,BVACSC,Child Srvcs - Leaving Care,FAL,Third Party Payments,F,Other Establishments,FH,01/04/2011,PAY00372866,836.00,Revenue,Payment to Individual
Brighton & Hove City Council,http://statistics.data.gov.uk/id/local-authority/00ML,Children�s Social Care,BVACSC,Child Srvcs - Adoption,FAA,Third Party Payments,F,Other Establishments,FH,01/04/2011,PAY00372869,386.00,Revenue,Payment to Individual
Brighton & Hove City Council,http://statistics.data.gov.uk/id/local-authority/00ML,Children�s Social Care,BVACSC,Child Srvcs - Fostering,FLF,Third Party Payments,F,Other Establishments,FH,01/04/2011,PAY00372869,311.00,Revenue,Payment to Individual
Brighton & Hove City Council,http://statistics.data.gov.uk/id/local-authority/00ML,Children�s Social Care,BVACSC,Child Srvcs - Adoption,FAA,Third Party Payments,F,Other Establishments,FH,01/04/2011,PAY00372871,658.30,Revenue,Payment to Individual
Brighton & Hove City Council,http://statistics.data.gov.uk/id/local-authority/00ML,Children�s Social Care,BVACSC,Child Srvcs - Fostering,FLF,Third Party Payments,F,Other Establishments,FH,01/04/2011,PAY00372873,977.43,Revenue,Payment to Individual
Brighton & Hove City Council,http://statistics.data.gov.uk/id/local-authority/00ML,Children�s Social Care,BVACSC,Child Srvcs - Fostering,FLF,Third Party Payments,F,Other Establishments,FH,01/04/2011,PAY00372876,1017.80,Revenue,Payment to Individual
Brighton & Hove City Council,http://statistics.data.gov.uk/id/local-authority/00ML,Children�s Social Care,BVACSC,Child Srvcs - Fostering,FLF,Third Party Payments,F,Other Establishments,FH,01/04/2011,PAY00372882,382.00,Revenue,Payment to Individual
Brighton & Hove City Council,http://statistics.data.gov.uk/id/local-authority/00ML,Children�s Social Care,BVACSC,Child Srvcs - Leaving Care,FAL,Third Party Payments,F,Other Establishments,FH,01/04/2011,PAY00372882,60.00,Revenue,Payment to Individual
Brighton & Hove City Council,http://statistics.data.gov.uk/id/local-authority/00ML,Children�s Social Care,BVACSC,Child Srvcs - Leaving Care,FAL,Transfer Payments,G,Other Transfer Payments,GD,01/04/2011,PAY00372882,172.00,Revenue,Payment to Individual
Brighton & Hove City Council,http://statistics.data.gov.uk/id/local-authority/00ML,Children�s Social Care,BVACSC,Child Srvcs - Fostering,FLF,Third Party Payments,F,Other Establishments,FH,01/04/2011,PAY00372885,162.57,Revenue,Payment to Individual
Brighton & Hove City Council,http://statistics.data.gov.uk/id/local-authority/00ML,Children�s Social Care,BVACSC,Child Srvcs - Leaving Care,FAL,Third Party Payments,F,Other Establishments,FH,01/04/2011,PAY00372885,382.00,Revenue,Payment to Individual
Brighton & Hove City Council,http://statistics.data.gov.uk/id/local-authority/00ML,Children�s Social Care,BVACSC,Child Srvcs - Fostering,FLF,Third Party Payments,F,Other Establishments,FH,01/04/2011,PAY00372886,311.00,Revenue,Payment to Individual
Brighton & Hove City Council,http://statistics.data.gov.uk/id/local-authority/00ML,Children�s Social Care,BVACSC,Child Srvcs - Leaving Care,FAL,Third Party Payments,F,Other Establishments,FH,01/04/2011,PAY00372886,382.00,Revenue,Payment to Individual
Brighton & Hove City Council,http://statistics.data.gov.uk/id/local-authority/00ML,Children�s Social Care,BVACSC,Child Srvcs - Fostering,FLF,Third Party Payments,F,Other Establishments,FH,01/04/2011,PAY00372890,872.00,Revenue,Payment to Individual
Brighton & Hove City Council,http://statistics.data.gov.uk/id/local-authority/00ML,Children�s Social Care,BVACSC,Child Srvcs - Fostering,FLF,Third Party Payments,F,Other Establishments,FH,01/04/2011,PAY00372892,1004.00,Revenue,Payment to Individual
Brighton & Hove City Council,http://statistics.data.gov.uk/id/local-authority/00ML,Children�s Social Care,BVACSC,Child Srvcs - Fostering,FLF,Third Party Payments,F,Other Establishments,FH,01/04/2011,PAY00372893,724.30,Revenue,Payment to Individual
Brighton & Hove City Council,http://statistics.data.gov.uk/id/local-authority/00ML,Children�s Social Care,BVACSC,Child Srvcs - Fostering,FLF,Third Party Payments,F,Other Establishments,FH,01/04/2011,PAY00372894,764.00,Revenue,Payment to Individual
Brighton & Hove City Council,http://statistics.data.gov.uk/id/local-authority/00ML,Children�s Social Care,BVACSC,Child Srvcs - Fostering,FLF,Third Party Payments,F,Other Establishments,FH,01/04/2011,PAY00372900,728.00,Revenue,Payment to Individual
Brighton & Hove City Council,http://statistics.data.gov.uk/id/local-authority/00ML,Children�s Social Care,BVACSC,Child Srvcs - Asylum Seekers,FAY,Third Party Payments,F,Other Establishments,FH,01/04/2011,PAY00372905,382.00,Revenue,Payment to Individual
Brighton & Hove City Council,http://statistics.data.gov.uk/id/local-authority/00ML,Children�s Social Care,BVACSC,Child Srvcs - Fostering,FLF,Third Party Payments,F,Other Establishments,FH,01/04/2011,PAY00372905,836.00,Revenue,Payment to Individual
Brighton & Hove City Council,http://statistics.data.gov.uk/id/local-authority/00ML,Children�s Social Care,BVACSC,Child Srvcs - Fostering,FLF,Third Party Payments,F,Other Establishments,FH,01/04/2011,PAY00372909,764.00,Revenue,Payment to Individual
Brighton & Hove City Council,http://statistics.data.gov.uk/id/local-authority/00ML,Children�s Social Care,BVACSC,Child Srvcs - Fostering,FLF,Third Party Payments,F,Other Establishments,FH,01/04/2011,PAY00372920,513.09,Revenue,Payment to Individual
Brighton & Hove City Council,http://statistics.data.gov.uk/id/local-authority/00ML,Children�s Social Care,BVACSC,Child Srvcs - Fostering,FLF,Third Party Payments,F,Other Establishments,FH,01/04/2011,PAY00372924,572.00,Revenue,Payment to Individual
Brighton & Hove City Council,http://statistics.data.gov.uk/id/local-authority/00ML,Children�s Social Care,BVACSC,Child Srvcs - Fostering,FLF,Third Party Payments,F,Other Establishments,FH,01/04/2011,PAY00372925,391.00,Revenue,Payment to Individual
Brighton & Hove City Council,http://statistics.data.gov.uk/id/local-authority/00ML,Children�s Social Care,BVACSC,Child Srvcs - Leaving Care,FAL,Third Party Payments,F,Other Establishments,FH,01/04/2011,PAY00372925,60.00,Revenue,Payment to Individual
Brighton & Hove City Council,http://statistics.data.gov.uk/id/local-authority/00ML,Children�s Social Care,BVACSC,Child Srvcs - Leaving Care,FAL,Transfer Payments,G,Other Transfer Payments,GD,01/04/2011,PAY00372925,172.00,Revenue,Payment to Individual
Brighton & Hove City Council,http://statistics.data.gov.uk/id/local-authority/00ML,Children�s Social Care,BVACSC,Child Srvcs - Fostering,FLF,Third Party Payments,F,Other Establishments,FH,01/04/2011,PAY00372927,622.00,Revenue,Payment to Individual
Brighton & Hove City Council,http://statistics.data.gov.uk/id/local-authority/00ML,Children�s Social Care,BVACSC,Child Srvcs - Leaving Care,FAL,Third Party Payments,F,Other Establishments,FH,01/04/2011,PAY00372941,164.00,Revenue,Payment to Individual
Brighton & Hove City Council,http://statistics.data.gov.uk/id/local-authority/00ML,Children�s Social Care,BVACSC,Child Srvcs - Leaving Care,FAL,Transfer Payments,G,Other Transfer Payments,GD,01/04/2011,PAY00372941,344.00,Revenue,Payment to Individual
Brighton & Hove City Council,http://statistics.data.gov.uk/id/local-authority/00ML,Children�s Social Care,BVACSC,Child Srvcs - Fostering,FLF,Third Party Payments,F,Other Establishments,FH,01/04/2011,PAY00372951,622.00,Revenue,Payment to Individual
Brighton & Hove City Council,http://statistics.data.gov.uk/id/local-authority/00ML,Children�s Social Care,BVACSC,Child Srvcs - Fostering,FLF,Third Party Payments,F,Other Establishments,FH,01/04/2011,PAY00372956,1462.00,Revenue,Payment to Individual
Brighton & Hove City Council,http://statistics.data.gov.uk/id/local-authority/00ML,Children�s Social Care,BVACSC,Child Srvcs - Fostering,FLF,Third Party Payments,F,Other Establishments,FH,01/04/2011,PAY00372958,667.00,Revenue,Payment to Individual
Brighton & Hove City Council,http://statistics.data.gov.uk/id/local-authority/00ML,Children�s Social Care,BVACSC,Child Srvcs - Fostering,FLF,Third Party Payments,F,Other Establishments,FH,01/04/2011,PAY00372964,693.00,Revenue,Payment to Individual
Brighton & Hove City Council,http://statistics.data.gov.uk/id/local-authority/00ML,Children�s Social Care,BVACSC,Child Srvcs - Leaving Care,FAL,Third Party Payments,F,Other Establishments,FH,01/04/2011,PAY00372964,382.00,Revenue,Payment to Individual
Brighton & Hove City Council,http://statistics.data.gov.uk/id/local-authority/00ML,Children�s Social Care,BVACSC,Child Srvcs - Fostering,FLF,Third Party Payments,F,Other Establishments,FH,01/04/2011,PAY00372966,975.00,Revenue,Payment to Individual
Brighton & Hove City Council,http://statistics.data.gov.uk/id/local-authority/00ML,Children�s Social Care,BVACSC,Child Srvcs - Fostering,FLF,Third Party Payments,F,Other Establishments,FH,01/04/2011,PAY00372970,1183.00,Revenue,Payment to Individual
Brighton & Hove City Council,http://statistics.data.gov.uk/id/local-authority/00ML,Children�s Social Care,BVACSC,Child Srvcs - Fostering,FLF,Third Party Payments,F,Other Establishments,FH,01/04/2011,PAY00372971,622.00,Revenue,Payment to Individual
Brighton & Hove City Council,http://statistics.data.gov.uk/id/local-authority/00ML,Children�s Social Care,BVACSC,Child Srvcs - Fostering,FLF,Third Party Payments,F,Other Establishments,FH,01/04/2011,PAY00372975,712.00,Revenue,Payment to Individual
Brighton & Hove City Council,http://statistics.data.gov.uk/id/local-authority/00ML,Children�s Social Care,BVACSC,Child Srvcs - Fostering,FLF,Third Party Payments,F,Other Establishments,FH,01/04/2011,PAY00372978,561.54,Revenue,Payment to Individual
Brighton & Hove City Council,http://statistics.data.gov.uk/id/local-authority/00ML,Children�s Social Care,BVACSC,Child Srvcs - Fostering,FLF,Third Party Payments,F,Other Establishments,FH,01/04/2011,PAY00372979,583.00,Revenue,Payment to Individual
Brighton & Hove City Council,http://statistics.data.gov.uk/id/local-authority/00ML,Children�s Social Care,BVACSC,Child Srvcs - Fostering,FLF,Third Party Payments,F,Other Establishments,FH,01/04/2011,PAY00372981,776.10,Revenue,Payment to Individual
Brighton & Hove City Council,http://statistics.data.gov.uk/id/local-authority/00ML,Children�s Social Care,BVACSC,Child Srvcs - Fostering,FLF,Third Party Payments,F,Other Establishments,FH,01/04/2011,PAY00372982,609.86,Revenue,Payment to Individual
Brighton & Hove City Council,http://statistics.data.gov.uk/id/local-authority/00ML,Children�s Social Care,BVACSC,Child Srvcs - Fostering,FLF,Third Party Payments,F,Other Establishments,FH,01/04/2011,PAY00372988,626.00,Revenue,Payment to Individual
Brighton & Hove City Council,http://statistics.data.gov.uk/id/local-authority/00ML,Children�s Social Care,BVACSC,Child Srvcs - Fostering,FLF,Third Party Payments,F,Other Establishments,FH,01/04/2011,PAY00372989,768.00,Revenue,Payment to Individual
Brighton & Hove City Council,http://statistics.data.gov.uk/id/local-authority/00ML,Children�s Social Care,BVACSC,Child Srvcs - Adoption,FAA,Third Party Payments,F,Other Establishments,FH,01/04/2011,PAY00372990,118.60,Revenue,Payment to Individual
Brighton & Hove City Council,http://statistics.data.gov.uk/id/local-authority/00ML,Children�s Social Care,BVACSC,Child Srvcs - Fostering,FLF,Third Party Payments,F,Other Establishments,FH,01/04/2011,PAY00372990,1582.72,Revenue,Payment to Individual
Brighton & Hove City Council,http://statistics.data.gov.uk/id/local-authority/00ML,Children�s Social Care,BVACSC,Child Srvcs - Fostering,FLF,Third Party Payments,F,Other Establishments,FH,01/04/2011,PAY00372992,714.00,Revenue,Payment to Individual
Brighton & Hove City Council,http://statistics.data.gov.uk/id/local-authority/00ML,Children�s Social Care,BVACSC,Child Srvcs - Leaving Care,FAL,Third Party Payments,F,Other Establishments,FH,01/04/2011,PAY00372992,382.00,Revenue,Payment to Individual
Brighton & Hove City Council,http://statistics.data.gov.uk/id/local-authority/00ML,Children�s Social Care,BVACSC,Child Srvcs - Fostering,FLF,Third Party Payments,F,Other Establishments,FH,01/04/2011,PAY00372993,572.99,Revenue,Payment to Individual
Brighton & Hove City Council,http://statistics.data.gov.uk/id/local-authority/00ML,Children�s Social Care,BVACSC,Child Srvcs - Adoption,FAA,Third Party Payments,F,Other Establishments,FH,01/04/2011,PAY00372996,383.26,Revenue,Payment to Individual
Brighton & Hove City Council,http://statistics.data.gov.uk/id/local-authority/00ML,Children�s Social Care,BVACSC,Child Srvcs - Fostering,FLF,Third Party Payments,F,Other Establishments,FH,01/04/2011,PAY00372996,382.00,Revenue,Payment to Individual
Brighton & Hove City Council,http://statistics.data.gov.uk/id/local-authority/00ML,Children�s Social Care,BVACSC,Child Srvcs - Adoption,FAA,Third Party Payments,F,Other Establishments,FH,01/04/2011,PAY00372999,127.70,Revenue,Payment to Individual
Brighton & Hove City Council,http://statistics.data.gov.uk/id/local-authority/00ML,Children�s Social Care,BVACSC,Child Srvcs - Fostering,FLF,Third Party Payments,F,Other Establishments,FH,01/04/2011,PAY00372999,728.00,Revenue,Payment to Individual
Brighton & Hove City Council,http://statistics.data.gov.uk/id/local-authority/00ML,Children�s Social Care,BVACSC,Child Srvcs - Adoption,FAA,Third Party Payments,F,Other Establishments,FH,01/04/2011,PAY00373000,862.83,Revenue,Payment to Individual
Brighton & Hove City Council,http://statistics.data.gov.uk/id/local-authority/00ML,Cultural Environment Planning,BVACEP,Economic Development,ECD,Supplies and Services,E,Grants n Subscriptions,EK,01/04/2011,PAY00373019,6600.00,Revenue,Hampshire County Council
Brighton & Hove City Council,http://statistics.data.gov.uk/id/local-authority/00ML,Highways and Transportation,BVAHRT,Parking Services,PRK,Premises Related,C,Repair Maint n Alterations,CA,01/04/2011,PAY00373020,16894.38,Revenue,Hi Way Services Ltd
Brighton & Hove City Council,http://statistics.data.gov.uk/id/local-authority/00ML,Non BVACOP,BVANON,Cap - Housing Services - GF,4HG,Capital Grants,PF,Level not required,NR5012,01/04/2011,PAY00373022,30025.50,Capital,Payment to Individual
Brighton & Hove City Council,http://statistics.data.gov.uk/id/local-authority/00ML,Cultural Environment Planning,BVACEP,Recreation and sport,REC,Supplies and Services,E,Print Stat & Gen Office Exps,ED,01/04/2011,PAY00373024,81.71,Revenue,Kent County Council (KCS)
Brighton & Hove City Council,http://statistics.data.gov.uk/id/local-authority/00ML,Education Services,BVAEDU,Ed - LA Exp Attrib to Schools,ELA,Supplies and Services,E,Equip't Furniture n Materials,EA,01/04/2011,PAY00373024,12.30,Revenue,Kent County Council (KCS)
Brighton & Hove City Council,http://statistics.data.gov.uk/id/local-authority/00ML,Education Services,BVAEDU,Ed - Nursery Ed,EAE,Premises Related,C,Cleaning n Domestic Supps,CH,01/04/2011,PAY00373024,26.70,Revenue,Kent County Council (KCS)
Brighton & Hove City Council,http://statistics.data.gov.uk/id/local-authority/00ML,Non BVACOP,BVANON,Cap - Education Services,4ED,Plant Machinery n Equipment,PE2,Level not required,NR5025,01/04/2011,PAY00373024,437.68,Capital,Kent County Council (KCS)
Brighton & Hove City Council,http://statistics.data.gov.uk/id/local-authority/00ML,Cultural Environment Planning,BVACEP,Highways and Roads - Mntnce,HRM,Premises Related,C,Repair Maint n Alterations,CA,01/04/2011,PAY00373028,533.92,Revenue,M L Banfield & Sons Ltd
Brighton & Hove City Council,http://statistics.data.gov.uk/id/local-authority/00ML,Education Services,BVAEDU,Ed - Nursery Ed,EAE,Supplies and Services,E,Miscellaneous Expenses,EM,01/04/2011,PAY00373029,560.00,Revenue,Moulsecoomb Neighbourhood Trust
Brighton & Hove City Council,http://statistics.data.gov.uk/id/local-authority/00ML,Education Services,BVAEDU,Ed - Nursery Ed,EAE,Supplies and Services,E,Services,EF,01/04/2011,PAY00373029,469.80,Revenue,Moulsecoomb Neighbourhood Trust
Brighton & Hove City Council,http://statistics.data.gov.uk/id/local-authority/00ML,Cultural Environment Planning,BVACEP,Recreation and sport,REC,Supplies and Services,E,Miscellaneous Expenses,EM,01/04/2011,PAY00373031,523.60,Revenue,Newsquest (Sussex) Ltd
Brighton & Hove City Council,http://statistics.data.gov.uk/id/local-authority/00ML,Education Services,BVAEDU,Ed - Nursery Ed,EAE,Supplies and Services,E,Miscellaneous Expenses,EM,01/04/2011,PAY00373031,250.00,Revenue,Newsquest (Sussex) Ltd
Brighton & Hove City Council,http://statistics.data.gov.uk/id/local-authority/00ML,Adult Social Care,BVASOC,S Svcs - Older People Svcs,PPL,Supplies and Services,E,Print Stat & Gen Office Exps,ED,01/04/2011,PAY00373034,47.86,Revenue,ODM (UK) Ltd
Brighton & Hove City Council,http://statistics.data.gov.uk/id/local-authority/00ML,Children�s Social Care,BVACSC,Child Srvcs - Com & Scl Work,FCW,Supplies and Services,E,Equip't Furniture n Materials,EA,01/04/2011,PAY00373034,410.00,Revenue,ODM (UK) Ltd
Brighton & Hove City Council,http://statistics.data.gov.uk/id/local-authority/00ML,Children�s Social Care,BVACSC,Child Srvcs - Com & Scl Work,FCW,Supplies and Services,E,Print Stat & Gen Office Exps,ED,01/04/2011,PAY00373034,108.99,Revenue,ODM (UK) Ltd
Brighton & Hove City Council,http://statistics.data.gov.uk/id/local-authority/00ML,Cultural Environment Planning,BVACEP,Culture & Heritage,CHG,Supplies and Services,E,Print Stat & Gen Office Exps,ED,01/04/2011,PAY00373034,85.13,Revenue,ODM (UK) Ltd
Brighton & Hove City Council,http://statistics.data.gov.uk/id/local-authority/00ML,Cultural Environment Planning,BVACEP,Management Services (DEC),MGT,Supplies and Services,E,Equip't Furniture n Materials,EA,01/04/2011,PAY00373034,29.99,Revenue,ODM (UK) Ltd
Brighton & Hove City Council,http://statistics.data.gov.uk/id/local-authority/00ML,Housing Services Revnue Acc,BVAHOU,Hsing Management - HRA,HGM,Supplies and Services,E,Print Stat & Gen Office Exps,ED,01/04/2011,PAY00373034,43.28,Revenue,ODM (UK) Ltd
Brighton & Hove City Council,http://statistics.data.gov.uk/id/local-authority/00ML,Cultural Environment Planning,BVACEP,Culture & Heritage,CHG,Supplies and Services,E,Miscellaneous Expenses,EM,01/04/2011,PAY00373035,2035.97,Revenue,Performing Right Society Ltd
Brighton & Hove City Council,http://statistics.data.gov.uk/id/local-authority/00ML,Adult Social Care,BVASOC,S Svcs - Older People Svcs,PPL,Supplies and Services,E,Miscellaneous Expenses,EM,01/04/2011,PAY00373042,4120.29,Revenue,R N I D
Brighton & Hove City Council,http://statistics.data.gov.uk/id/local-authority/00ML,Adult Social Care,BVASOC,S Svcs - Physical Disability,PDY,Third Party Payments,F,Other Establishments,FH,01/04/2011,PAY00373042,352.00,Revenue,R N I D
Brighton & Hove City Council,http://statistics.data.gov.uk/id/local-authority/00ML,Non BVACOP,BVANON,Non service costs,NVC,Third Party Payments,F,Other Agencies,FL,01/04/2011,PAY00373043,13500.00,Revenue,Rottingdean Parish Council
Brighton & Hove City Council,http://statistics.data.gov.uk/id/local-authority/00ML,Housing Services General Fund,BVAHOG,Hsing Welfare,HGW,Transfer Payments,G,Supporting People,GF,01/04/2011,PAY00373044,659.58,Revenue,Sanctuary Housing Association
Brighton & Hove City Council,http://statistics.data.gov.uk/id/local-authority/00ML,Adult Social Care,BVASOC,S Svcs - Older People Svcs,PPL,Premises Related,C,Energy Costs,CB,01/04/2011,PAY00373046,2084.16,Revenue,GB Oils t/a Emo Oil Ltd
Brighton & Hove City Council,http://statistics.data.gov.uk/id/local-authority/00ML,Adult Social Care,BVASOC,S Svcs - Physical Disability,PDY,Transfer Payments,G,Other Transfer Payments,GD,01/04/2011,PAY00373047,1330.20,Revenue,Southern Mobility Centres Ltd
Brighton & Hove City Council,http://statistics.data.gov.uk/id/local-authority/00ML,Children�s Social Care,BVACSC,Equipment & Adaptations,FFA,Supplies and Services,E,Equip't Furniture n Materials,EA,01/04/2011,PAY00373047,100.00,Revenue,Southern Mobility Centres Ltd
Brighton & Hove City Council,http://statistics.data.gov.uk/id/local-authority/00ML,Education Services,BVAEDU,Ed - Special Ed,EKE,Premises Related,C,Fixtures and Fittings,CF,01/04/2011,PAY00373048,223.00,Revenue,Thomas Door & Window Controls Ltd
Brighton & Hove City Council,http://statistics.data.gov.uk/id/local-authority/00ML,Non BVACOP,BVANON,Cap - Housing Services - GF,4HG,Capital Grants,PF,Level not required,NR5012,01/04/2011,PAY00373048,3617.00,Capital,Thomas Door & Window Controls Ltd
Brighton & Hove City Council,http://statistics.data.gov.uk/id/local-authority/00ML,Adult Social Care,BVASOC,S Svcs - Learning Disability,LDY,Premises Related,C,Repair Maint n Alterations,CA,01/04/2011,PAY00373051,256.56,Revenue,Sussex Community NHS Trust
Brighton & Hove City Council,http://statistics.data.gov.uk/id/local-authority/00ML,Adult Social Care,BVASOC,S Svcs - Older People Svcs,PPL,Premises Related,C,Repair Maint n Alterations,CA,01/04/2011,PAY00373051,531.02,Revenue,Sussex Community NHS Trust
Brighton & Hove City Council,http://statistics.data.gov.uk/id/local-authority/00ML,Adult Social Care,BVASOC,S Svcs - Physical Disability,PDY,Direct Employees,A,Salaries,AA,01/04/2011,PAY00373051,15125.00,Revenue,Sussex Community NHS Trust
Brighton & Hove City Council,http://statistics.data.gov.uk/id/local-authority/00ML,Adult Social Care,BVASOC,S Svcs - Physical Disability,PDY,Third Party Payments,F,Health Authorities,FC,01/04/2011,PAY00373051,9090.31,Revenue,Sussex Community NHS Trust
Brighton & Hove City Council,http://statistics.data.gov.uk/id/local-authority/00ML,Cultural Environment Planning,BVACEP,Economic Development,ECD,Supplies and Services,E,Miscellaneous Expenses,EM,01/04/2011,PAY00373051,3000.00,Revenue,Sussex Community NHS Trust
Brighton & Hove City Council,http://statistics.data.gov.uk/id/local-authority/00ML,Education Services,BVAEDU,Ed - Nursery Ed,EAE,Supplies and Services,E,Contributions to Provisions,EL,01/04/2011,PAY00373051,7982.26,Revenue,Sussex Community NHS Trust
Brighton & Hove City Council,http://statistics.data.gov.uk/id/local-authority/00ML,Education Services,BVAEDU,Ed - Nursery Ed,EAE,Third Party Payments,F,Other Establishments,FH,01/04/2011,PAY00373051,18901.42,Revenue,Sussex Community NHS Trust
Brighton & Hove City Council,http://statistics.data.gov.uk/id/local-authority/00ML,Cultural Environment Planning,BVACEP,Culture & Heritage,CHG,Supplies and Services,E,Equip't Furniture n Materials,EA,01/04/2011,PAY00373053,812.00,Revenue,Striking Displays UK Ltd
Brighton & Hove City Council,http://statistics.data.gov.uk/id/local-authority/00ML,Central Services To The Public,BVACEN,Support Services (SSC),PPT,Supplies and Services,E,Services,EF,01/04/2011,PAY00373054,4250.88,Revenue,Technical Engineering Ltd
Brighton & Hove City Council,http://statistics.data.gov.uk/id/local-authority/00ML,Highways and Transportation,BVAHRT,Traffic Mgmnt and Road Safety,TMR,Premises Related,C,Repair Maint n Alterations,CA,01/04/2011,PAY00373054,1740.00,Revenue,Technical Engineering Ltd
Brighton & Hove City Council,http://statistics.data.gov.uk/id/local-authority/00ML,Non BVACOP,BVANON,Cap - Transport,4TR,New Construction n Conversion,PB,Level not required,NR5026,01/04/2011,PAY00373054,508.04,Capital,Technical Engineering Ltd
Brighton & Hove City Council,http://statistics.data.gov.uk/id/local-authority/00ML,Adult Social Care,BVASOC,S Svcs - Other Adult Services,ADT,Indirect Employees,B,Training,BM,01/04/2011,PAY00373057,18000.00,Revenue,University Of Sussex
Brighton & Hove City Council,http://statistics.data.gov.uk/id/local-authority/00ML,Central Services To The Public,BVACEN,Support Services (SSC),PPT,Premises Related,C,Rents Payable,CC,01/04/2011,PAY00373057,238.00,Revenue,University Of Sussex
Brighton & Hove City Council,http://statistics.data.gov.uk/id/local-authority/00ML,Adult Social Care,BVASOC,S Svcs - Learning Disability,LDY,Supplies and Services,E,Equip't Furniture n Materials,EA,01/04/2011,PAY00373058,330.00,Revenue,Wightman & Parrish Ltd
Brighton & Hove City Council,http://statistics.data.gov.uk/id/local-authority/00ML,Adult Social Care,BVASOC,S Svcs - Older People Svcs,PPL,Premises Related,C,Cleaning n Domestic Supps,CH,01/04/2011,PAY00373058,95.86,Revenue,Wightman & Parrish Ltd
Brighton & Hove City Council,http://statistics.data.gov.uk/id/local-authority/00ML,Central Services To The Public,BVACEN,Support Services (SSC),PPT,Premises Related,C,Cleaning n Domestic Supps,CH,01/04/2011,PAY00373058,6838.44,Revenue,Wightman & Parrish Ltd
Brighton & Hove City Council,http://statistics.data.gov.uk/id/local-authority/00ML,Cultural Environment Planning,BVACEP,Management Services (DEC),MGT,Supplies and Services,E,Equip't Furniture n Materials,EA,01/04/2011,PAY00373058,957.46,Revenue,Wightman & Parrish Ltd
Brighton & Hove City Council,http://statistics.data.gov.uk/id/local-authority/00ML,Education Services,BVAEDU,Ed - Nursery Ed,EAE,Premises Related,C,Cleaning n Domestic Supps,CH,01/04/2011,PAY00373058,290.70,Revenue,Wightman & Parrish Ltd
Brighton & Hove City Council,http://statistics.data.gov.uk/id/local-authority/00ML,Education Services,BVAEDU,Ed- Non Sch Fnd -Ad & Cmty Ln,ENA,Supplies and Services,E,Equip't Furniture n Materials,EA,01/04/2011,PAY00373061,496.00,Revenue,Bishop Sports & Leisure Ltd
Brighton & Hove City Council,http://statistics.data.gov.uk/id/local-authority/00ML,Adult Social Care,BVASOC,S Svcs - Older People Svcs,PPL,Third Party Payments,F,Other Establishments,FH,01/04/2011,PAY00373062,2221.60,Revenue,Ashbourne Homes Ltd
Brighton & Hove City Council,http://statistics.data.gov.uk/id/local-authority/00ML,Adult Social Care,BVASOC,S Svcs - Older People Svcs,PPL,Customer n Client Receipts,M,Fees n Charges,MB,01/04/2011,PAY00373063,-10160.60,Revenue,Enara Community Care
Brighton & Hove City Council,http://statistics.data.gov.uk/id/local-authority/00ML,Adult Social Care,BVASOC,S Svcs - Older People Svcs,PPL,Third Party Payments,F,Other Establishments,FH,01/04/2011,PAY00373063,82405.59,Revenue,Enara Community Care
Brighton & Hove City Council,http://statistics.data.gov.uk/id/local-authority/00ML,Adult Social Care,BVASOC,S Svcs - Other Adult Services,ADT,Third Party Payments,F,Other Establishments,FH,01/04/2011,PAY00373063,93.83,Revenue,Enara Community Care
Brighton & Hove City Council,http://statistics.data.gov.uk/id/local-authority/00ML,Adult Social Care,BVASOC,S Svcs - Physical Disability,PDY,Customer n Client Receipts,M,Fees n Charges,MB,01/04/2011,PAY00373063,-3498.72,Revenue,Enara Community Care
Brighton & Hove City Council,http://statistics.data.gov.uk/id/local-authority/00ML,Adult Social Care,BVASOC,S Svcs - Physical Disability,PDY,Third Party Payments,F,Other Establishments,FH,01/04/2011,PAY00373063,19411.53,Revenue,Enara Community Care
Brighton & Hove City Council,http://statistics.data.gov.uk/id/local-authority/00ML,Adult Social Care,BVASOC,S Svcs - Learning Disability,LDY,Third Party Payments,F,Other Establishments,FH,01/04/2011,PAY00373064,2250.00,Revenue,Grace Eyre Foundation
Brighton & Hove City Council,http://statistics.data.gov.uk/id/local-authority/00ML,Adult Social Care,BVASOC,S Svcs - Other Adult Services,ADT,Indirect Employees,B,Training,BM,01/04/2011,PAY00373068,880.00,Revenue,The Makaton Charity
Brighton & Hove City Council,http://statistics.data.gov.uk/id/local-authority/00ML,Education Services,BVAEDU,Ed - Special Ed,EKE,Supplies and Services,E,Equip't Furniture n Materials,EA,01/04/2011,PAY00373068,337.44,Revenue,The Makaton Charity
Brighton & Hove City Council,http://statistics.data.gov.uk/id/local-authority/00ML,Adult Social Care,BVASOC,S Svcs - Older People Svcs,PPL,Customer n Client Receipts,M,Fees n Charges,MB,01/04/2011,PAY00373069,-646.04,Revenue,Rukba 
Brighton & Hove City Council,http://statistics.data.gov.uk/id/local-authority/00ML,Adult Social Care,BVASOC,S Svcs - Older People Svcs,PPL,Third Party Payments,F,Other Establishments,FH,01/04/2011,PAY00373069,2990.45,Revenue,Rukba 
Brighton & Hove City Council,http://statistics.data.gov.uk/id/local-authority/00ML,Education Services,BVAEDU,Ed - Nursery Ed,EAE,Third Party Payments,F,Other Establishments,FH,01/04/2011,PAY00373072,770.00,Revenue,Surrey County Council
Brighton & Hove City Council,http://statistics.data.gov.uk/id/local-authority/00ML,Adult Social Care,BVASOC,S Svcs - Older People Svcs,PPL,Customer n Client Receipts,M,Fees n Charges,MB,01/04/2011,PAY00373073,-520.22,Revenue,Payment to Individual
Brighton & Hove City Council,http://statistics.data.gov.uk/id/local-authority/00ML,Adult Social Care,BVASOC,S Svcs - Older People Svcs,PPL,Third Party Payments,F,Other Establishments,FH,01/04/2011,PAY00373073,1968.00,Revenue,Payment to Individual
Brighton & Hove City Council,http://statistics.data.gov.uk/id/local-authority/00ML,Adult Social Care,BVASOC,S Svcs - Older People Svcs,PPL,Customer n Client Receipts,M,Fees n Charges,MB,01/04/2011,PAY00373074,-642.33,Revenue,Victoria Nursing Homes Ltd
Brighton & Hove City Council,http://statistics.data.gov.uk/id/local-authority/00ML,Adult Social Care,BVASOC,S Svcs - Older People Svcs,PPL,Third Party Payments,F,Other Establishments,FH,01/04/2011,PAY00373074,1568.10,Revenue,Victoria Nursing Homes Ltd
Brighton & Hove City Council,http://statistics.data.gov.uk/id/local-authority/00ML,Adult Social Care,BVASOC,S Svcs - Older People Svcs,PPL,Customer n Client Receipts,M,Fees n Charges,MB,01/04/2011,PAY00373078,-441.20,Revenue,The Royal British Legion Homes
Brighton & Hove City Council,http://statistics.data.gov.uk/id/local-authority/00ML,Adult Social Care,BVASOC,S Svcs - Older People Svcs,PPL,Third Party Payments,F,Other Establishments,FH,01/04/2011,PAY00373078,1560.00,Revenue,The Royal British Legion Homes
Brighton & Hove City Council,http://statistics.data.gov.uk/id/local-authority/00ML,Children�s Social Care,BVACSC,Child Srvcs - Fostering,FLF,Third Party Payments,F,Other Establishments,FH,01/04/2011,PAY00373085,570.90,Revenue,Payment to Individual
Brighton & Hove City Council,http://statistics.data.gov.uk/id/local-authority/00ML,Education Services,BVAEDU,Ed- Non Sch Fnd -Ad & Cmty Ln,ENA,Premises Related,C,Repair Maint n Alterations,CA,01/04/2011,PAY00373094,927.57,Revenue,ADT Fire & Security Plc
Brighton & Hove City Council,http://statistics.data.gov.uk/id/local-authority/00ML,Non BVACOP,BVANON,Cap - Transport,4TR,New Construction n Conversion,PB,Level not required,NR5026,01/04/2011,PAY00373095,21413.29,Capital,Siemens PLC
Brighton & Hove City Council,http://statistics.data.gov.uk/id/local-authority/00ML,Non BVACOP,BVANON,Cap - Libs Culture & Hertage,4LH,New Construction n Conversion,PB,Level not required,NR5026,01/04/2011,PAY00373096,2221.03,Capital,Stonewest Ltd
Brighton & Hove City Council,http://statistics.data.gov.uk/id/local-authority/00ML,Non BVACOP,BVANON,Cap - Housing Services - GF,4HG,Capital Grants,PF,Level not required,NR5012,01/04/2011,PAY00373097,1185.08,Capital,Dormanside Road Ltd t/a Allen & Joy Ltd
Brighton & Hove City Council,http://statistics.data.gov.uk/id/local-authority/00ML,Cultural Environment Planning,BVACEP,Management Services (DEC),MGT,Transport Related,D,Direct Transport Costs,DA,01/04/2011,PAY00373098,144.20,Revenue,Colas Limited
Brighton & Hove City Council,http://statistics.data.gov.uk/id/local-authority/00ML,Non BVACOP,BVANON,Cap - Other Env Services,4EV,New Construction n Conversion,PB,Level not required,NR5026,01/04/2011,PAY00373098,9306.32,Capital,Colas Limited
Brighton & Hove City Council,http://statistics.data.gov.uk/id/local-authority/00ML,Central Services To The Public,BVACEN,Support Services (SSC),PPT,Premises Related,C,Repair Maint n Alterations,CA,01/04/2011,PAY00373099,137.20,Revenue,P H Beck Ltd
Brighton & Hove City Council,http://statistics.data.gov.uk/id/local-authority/00ML,Cultural Environment Planning,BVACEP,Library Service,LBR,Premises Related,C,Repair Maint n Alterations,CA,01/04/2011,PAY00373099,50.00,Revenue,P H Beck Ltd
Brighton & Hove City Council,http://statistics.data.gov.uk/id/local-authority/00ML,Non BVACOP,BVANON,Cap - Social Services,4RV,New Construction n Conversion,PB,Level not required,NR5026,01/04/2011,PAY00373099,3844.18,Capital,P H Beck Ltd
Brighton & Hove City Council,http://statistics.data.gov.uk/id/local-authority/00ML,Non BVACOP,BVANON,Cap - Transport,4TR,New Construction n Conversion,PB,Level not required,NR5026,01/04/2011,PAY00373100,1125.00,Capital,R J Dance (Contractors) Ltd
Brighton & Hove City Council,http://statistics.data.gov.uk/id/local-authority/00ML,Central Services To The Public,BVACEN,Support Services (SSC),PPT,Premises Related,C,Repair Maint n Alterations,CA,01/04/2011,PAY00373101,5980.64,Revenue,Schindler Ltd
Brighton & Hove City Council,http://statistics.data.gov.uk/id/local-authority/00ML,Non BVACOP,BVANON,Cap - Other Env Services,4EV,New Construction n Conversion,PB,Level not required,NR5026,01/04/2011,PAY00373104,89028.22,Capital,Westridge Construction Ltd
Brighton & Hove City Council,http://statistics.data.gov.uk/id/local-authority/00ML,Adult Social Care,BVASOC,S Svcs - Physical Disability,PDY,Supplies and Services,E,Equip't Furniture n Materials,EA,01/04/2011,PAY00373105,543.50,Revenue,Prism Medical UK Westholme Division
Brighton & Hove City Council,http://statistics.data.gov.uk/id/local-authority/00ML,Cultural Environment Planning,BVACEP,Culture & Heritage,CHG,Customer n Client Receipts,M,Fees n Charges,MB,01/04/2011,PAY00373106,-30896.00,Revenue,Columns Ltd T/A 3A Entertainment Ltd
Brighton & Hove City Council,http://statistics.data.gov.uk/id/local-authority/00ML,Cultural Environment Planning,BVACEP,Culture & Heritage,CHG,Customer n Client Receipts,M,Sales,MA,01/04/2011,PAY00373106,236320.39,Revenue,Columns Ltd T/A 3A Entertainment Ltd
Brighton & Hove City Council,http://statistics.data.gov.uk/id/local-authority/00ML,Cultural Environment Planning,BVACEP,Culture & Heritage,CHG,Supplies and Services,E,Miscellaneous Expenses,EM,01/04/2011,PAY00373106,-8295.70,Revenue,Columns Ltd T/A 3A Entertainment Ltd
Brighton & Hove City Council,http://statistics.data.gov.uk/id/local-authority/00ML,Cultural Environment Planning,BVACEP,Culture & Heritage,CHG,Supplies and Services,E,Catering,EB,01/04/2011,PAY00373109,1429.50,Revenue,Catercraft Supplies Ltd
Brighton & Hove City Council,http://statistics.data.gov.uk/id/local-authority/00ML,Education Services,BVAEDU,Ed - Non Sch Fnd - Other,ENF,Premises Related,C,Repair Maint n Alterations,CA,01/04/2011,PAY00373109,1877.69,Revenue,Catercraft Supplies Ltd
Brighton & Hove City Council,http://statistics.data.gov.uk/id/local-authority/00ML,Children�s Social Care,BVACSC,Child Srvcs - Com & Scl Work,FCW,Transport Related,D,Public Transport,DD,01/04/2011,PAY00373110,313.65,Revenue,Brighton & Hove Bus & Coach Co Ltd
Brighton & Hove City Council,http://statistics.data.gov.uk/id/local-authority/00ML,Children�s Social Care,BVACSC,Child Srvcs - Leaving Care,FAL,Transfer Payments,G,Other Transfer Payments,GD,01/04/2011,PAY00373110,1431.45,Revenue,Brighton & Hove Bus & Coach Co Ltd
Brighton & Hove City Council,http://statistics.data.gov.uk/id/local-authority/00ML,Cultural Environment Planning,BVACEP,Environmental Health,EVH,Transport Related,D,Direct Transport Costs,DA,01/04/2011,PAY00373110,271.25,Revenue,Brighton & Hove Bus & Coach Co Ltd
Brighton & Hove City Council,http://statistics.data.gov.uk/id/local-authority/00ML,Cultural Environment Planning,BVACEP,Management Services (DEC),MGT,Transport Related,D,Contract Hire n Operating Leas,DB,01/04/2011,PAY00373110,205.00,Revenue,Brighton & Hove Bus & Coach Co Ltd
Brighton & Hove City Council,http://statistics.data.gov.uk/id/local-authority/00ML,Education Services,BVAEDU,Ed - Non Sch Fnd - Yth Svcs,ENY,Supplies and Services,E,Miscellaneous Expenses,EM,01/04/2011,PAY00373110,188.10,Revenue,Brighton & Hove Bus & Coach Co Ltd
Brighton & Hove City Council,http://statistics.data.gov.uk/id/local-authority/00ML,Education Services,BVAEDU,Ed - Nursery Ed,EAE,Transport Related,D,Public Transport,DD,01/04/2011,PAY00373110,90.90,Revenue,Brighton & Hove Bus & Coach Co Ltd
Brighton & Hove City Council,http://statistics.data.gov.uk/id/local-authority/00ML,Highways and Transportation,BVAHRT,Public transport,PTR,Transport Related,D,Public Transport,DD,01/04/2011,PAY00373110,662869.78,Revenue,Brighton & Hove Bus & Coach Co Ltd
Brighton & Hove City Council,http://statistics.data.gov.uk/id/local-authority/00ML,Cultural Environment Planning,BVACEP,Economic Development,ECD,Supplies and Services,E,Miscellaneous Expenses,EM,01/04/2011,PAY00373113,3048.16,Revenue,West Sussex County Council
Brighton & Hove City Council,http://statistics.data.gov.uk/id/local-authority/00ML,Adult Social Care,BVASOC,S Svcs - Older People Svcs,PPL,Premises Related,C,Water Services,CE,01/04/2011,PAY00373114,270.81,Revenue,Southern Water Services Ltd
Brighton & Hove City Council,http://statistics.data.gov.uk/id/local-authority/00ML,Children�s Social Care,BVACSC,Child Srvcs - Com & Scl Work,FCW,Premises Related,C,Water Services,CE,01/04/2011,PAY00373114,134.90,Revenue,Southern Water Services Ltd
Brighton & Hove City Council,http://statistics.data.gov.uk/id/local-authority/00ML,Cultural Environment Planning,BVACEP,Environmental Health,EVH,Premises Related,C,Water Services,CE,01/04/2011,PAY00373114,146.54,Revenue,Southern Water Services Ltd
Brighton & Hove City Council,http://statistics.data.gov.uk/id/local-authority/00ML,Housing Services Revnue Acc,BVAHOU,Hsing Strategy - HRA,HGT,Premises Related,C,Water Services,CE,01/04/2011,PAY00373114,388.29,Revenue,Southern Water Services Ltd
Brighton & Hove City Council,http://statistics.data.gov.uk/id/local-authority/00ML,Adult Social Care,BVASOC,S Svcs - Learning Disability,LDY,Third Party Payments,F,Other Establishments,FH,01/04/2011,PAY00373115,1629.36,Revenue,Payment to Individual
Brighton & Hove City Council,http://statistics.data.gov.uk/id/local-authority/00ML,Children�s Social Care,BVACSC,Child Srvcs - Fostering,FLF,Third Party Payments,F,Other Establishments,FH,01/04/2011,PAY00373116,714.00,Revenue,Payment to Individual
Brighton & Hove City Council,http://statistics.data.gov.uk/id/local-authority/00ML,Children�s Social Care,BVACSC,Child Srvcs - Leaving Care,FAL,Third Party Payments,F,Other Establishments,FH,01/04/2011,PAY00373116,45.00,Revenue,Payment to Individual
Brighton & Hove City Council,http://statistics.data.gov.uk/id/local-authority/00ML,Children�s Social Care,BVACSC,Child Srvcs - Leaving Care,FAL,Transfer Payments,G,Other Transfer Payments,GD,01/04/2011,PAY00373116,172.00,Revenue,Payment to Individual
Brighton & Hove City Council,http://statistics.data.gov.uk/id/local-authority/00ML,Housing Services General Fund,BVAHOG,Homelessness,HML,Premises Related,C,Rents Payable,CC,01/04/2011,PAY00373119,540.00,Revenue,Sign of Four Limited
Brighton & Hove City Council,http://statistics.data.gov.uk/id/local-authority/00ML,Adult Social Care,BVASOC,S Svcs - Physical Disability,PDY,Customer n Client Receipts,M,Fees n Charges,MB,01/04/2011,PAY00373120,-980.00,Revenue,Payment to Individual
Brighton & Hove City Council,http://statistics.data.gov.uk/id/local-authority/00ML,Adult Social Care,BVASOC,S Svcs - Physical Disability,PDY,Third Party Payments,F,Other Establishments,FH,01/04/2011,PAY00373120,2030.12,Revenue,Payment to Individual
Brighton & Hove City Council,http://statistics.data.gov.uk/id/local-authority/00ML,Adult Social Care,BVASOC,S Svcs - Physical Disability,PDY,Third Party Payments,F,Other Establishments,FH,01/04/2011,PAY00373122,814.00,Revenue,Payment to Individual
Brighton & Hove City Council,http://statistics.data.gov.uk/id/local-authority/00ML,Non BVACOP,BVANON,Cap - Education Services,4ED,New Construction n Conversion,PB,Level not required,NR5026,01/04/2011,PAY00373123,4683.41,Capital,Bricks 2 Mortar Construction Company Ltd
Brighton & Hove City Council,http://statistics.data.gov.uk/id/local-authority/00ML,Adult Social Care,BVASOC,S Svcs - Older People Svcs,PPL,Third Party Payments,F,Other Establishments,FH,01/04/2011,PAY00373125,1030.76,Revenue,Payment to Individual
Brighton & Hove City Council,http://statistics.data.gov.uk/id/local-authority/00ML,Housing Services General Fund,BVAHOG,Homelessness,HML,Premises Related,C,Rents Payable,CC,01/04/2011,PAY00373126,790.00,Revenue,Priors Letting Agency
Brighton & Hove City Council,http://statistics.data.gov.uk/id/local-authority/00ML,Housing Services General Fund,BVAHOG,Homelessness,HML,Premises Related,C,Rents Payable,CC,01/04/2011,PAY00373127,715.00,Revenue,Payment to Individual
Brighton & Hove City Council,http://statistics.data.gov.uk/id/local-authority/00ML,Housing Services General Fund,BVAHOG,Homelessness,HML,Premises Related,C,Rents Payable,CC,01/04/2011,PAY00373128,760.00,Revenue,Payment to Individual
Brighton & Hove City Council,http://statistics.data.gov.uk/id/local-authority/00ML,Adult Social Care,BVASOC,S Svcs - Learning Disability,LDY,Third Party Payments,F,Other Establishments,FH,01/04/2011,PAY00373131,1935.80,Revenue,Payment to Individual
Brighton & Hove City Council,http://statistics.data.gov.uk/id/local-authority/00ML,Adult Social Care,BVASOC,S Svcs - Physical Disability,PDY,Customer n Client Receipts,M,Fees n Charges,MB,01/04/2011,PAY00373132,-48.00,Revenue,Payment to Individual
Brighton & Hove City Council,http://statistics.data.gov.uk/id/local-authority/00ML,Adult Social Care,BVASOC,S Svcs - Physical Disability,PDY,Third Party Payments,F,Other Establishments,FH,01/04/2011,PAY00373132,1047.44,Revenue,Payment to Individual
Brighton & Hove City Council,http://statistics.data.gov.uk/id/local-authority/00ML,Children�s Social Care,BVACSC,Child Srvcs - Fostering,FLF,Third Party Payments,F,Other Establishments,FH,01/04/2011,PAY00373133,558.35,Revenue,Payment to Individual
Brighton & Hove City Council,http://statistics.data.gov.uk/id/local-authority/00ML,Housing Services General Fund,BVAHOG,Homelessness,HML,Premises Related,C,Rents Payable,CC,01/04/2011,PAY00373135,750.00,Revenue,Payment to Individual
Brighton & Hove City Council,http://statistics.data.gov.uk/id/local-authority/00ML,Adult Social Care,BVASOC,S Svcs - Older People Svcs,PPL,Third Party Payments,F,Other Establishments,FH,01/04/2011,PAY00373137,610.16,Revenue,Payment to Individual
Brighton & Hove City Council,http://statistics.data.gov.uk/id/local-authority/00ML,Adult Social Care,BVASOC,S Svcs - Learning Disability,LDY,Third Party Payments,F,Other Establishments,FH,01/04/2011,PAY00373139,1105.80,Revenue,Payment to Individual
Brighton & Hove City Council,http://statistics.data.gov.uk/id/local-authority/00ML,Adult Social Care,BVASOC,S Svcs - Learning Disability,LDY,Customer n Client Receipts,M,Fees n Charges,MB,01/04/2011,PAY00373141,-256.00,Revenue,Payment to Individual
Brighton & Hove City Council,http://statistics.data.gov.uk/id/local-authority/00ML,Adult Social Care,BVASOC,S Svcs - Learning Disability,LDY,Third Party Payments,F,Other Establishments,FH,01/04/2011,PAY00373141,2577.52,Revenue,Payment to Individual
Brighton & Hove City Council,http://statistics.data.gov.uk/id/local-authority/00ML,Adult Social Care,BVASOC,S Svcs - Physical Disability,PDY,Customer n Client Receipts,M,Fees n Charges,MB,01/04/2011,PAY00373142,-1978.24,Revenue,Payment to Individual
Brighton & Hove City Council,http://statistics.data.gov.uk/id/local-authority/00ML,Adult Social Care,BVASOC,S Svcs - Physical Disability,PDY,Third Party Payments,F,Other Establishments,FH,01/04/2011,PAY00373142,3402.28,Revenue,Payment to Individual
Brighton & Hove City Council,http://statistics.data.gov.uk/id/local-authority/00ML,Education Services,BVAEDU,Ed - Nursery Ed,EAE,Supplies and Services,E,Equip't Furniture n Materials,EA,01/04/2011,PAY00373143,783.07,Revenue,Nexus The Educators Connection Ltd
Brighton & Hove City Council,http://statistics.data.gov.uk/id/local-authority/00ML,Housing Services General Fund,BVAHOG,Homelessness,HML,Premises Related,C,Rents Payable,CC,01/04/2011,PAY00373144,950.00,Revenue,Payment to Individual
Brighton & Hove City Council,http://statistics.data.gov.uk/id/local-authority/00ML,Adult Social Care,BVASOC,S Svcs - Older People Svcs,PPL,Customer n Client Receipts,M,Fees n Charges,MB,01/04/2011,PAY00373147,-56.00,Revenue,Payment to Individual
Brighton & Hove City Council,http://statistics.data.gov.uk/id/local-authority/00ML,Adult Social Care,BVASOC,S Svcs - Older People Svcs,PPL,Third Party Payments,F,Other Establishments,FH,01/04/2011,PAY00373147,2706.00,Revenue,Payment to Individual
Brighton & Hove City Council,http://statistics.data.gov.uk/id/local-authority/00ML,Non BVACOP,BVANON,Cap - Housing Services - GF,4HG,Capital Grants,PF,Level not required,NR5012,01/04/2011,PAY00373148,3232.00,Capital,Wealden Services Ltd
Brighton & Hove City Council,http://statistics.data.gov.uk/id/local-authority/00ML,Highways and Transportation,BVAHRT,Public transport,PTR,Transport Related,D,Public Transport,DD,01/04/2011,PAY00373149,1387.40,Revenue,Metrobus Ltd
Brighton & Hove City Council,http://statistics.data.gov.uk/id/local-authority/00ML,Children�s Social Care,BVACSC,Child Srvcs - Fostering,FLF,Third Party Payments,F,Other Establishments,FH,01/04/2011,PAY00373150,1087.43,Revenue,Payment to Individual
Brighton & Hove City Council,http://statistics.data.gov.uk/id/local-authority/00ML,Children�s Social Care,BVACSC,Child Srvcs - Leaving Care,FAL,Third Party Payments,F,Other Establishments,FH,01/04/2011,PAY00373150,382.00,Revenue,Payment to Individual
Brighton & Hove City Council,http://statistics.data.gov.uk/id/local-authority/00ML,Cultural Environment Planning,BVACEP,Open Spaces,PEN,Supplies and Services,E,Equip't Furniture n Materials,EA,01/04/2011,PAY00373152,922.75,Revenue,Amethyst Horticulture Ltd
Brighton & Hove City Council,http://statistics.data.gov.uk/id/local-authority/00ML,Non BVACOP,BVANON,Cap - Transport,4TR,New Construction n Conversion,PB,Level not required,NR5026,01/04/2011,PAY00373153,5980.00,Capital,JSTSM Ltd
Brighton & Hove City Council,http://statistics.data.gov.uk/id/local-authority/00ML,Housing Services General Fund,BVAHOG,Homelessness,HML,Premises Related,C,Rents Payable,CC,01/04/2011,PAY00373154,805.00,Revenue,Payment to Individual
Brighton & Hove City Council,http://statistics.data.gov.uk/id/local-authority/00ML,Education Services,BVAEDU,Ed - Nursery Ed,EAE,Supplies and Services,E,Grants n Subscriptions,EK,01/04/2011,PAY00373157,833.00,Revenue,Poppies Day Nursery
Brighton & Hove City Council,http://statistics.data.gov.uk/id/local-authority/00ML,Education Services,BVAEDU,Ed - Nursery Ed,EAE,Third Party Payments,F,Other Establishments,FH,01/04/2011,PAY00373157,1072.50,Revenue,Poppies Day Nursery
Brighton & Hove City Council,http://statistics.data.gov.uk/id/local-authority/00ML,Children�s Social Care,BVACSC,Child Srvcs - Fostering,FLF,Third Party Payments,F,Other Establishments,FH,01/04/2011,PAY00373158,1143.00,Revenue,Payment to Individual
Brighton & Hove City Council,http://statistics.data.gov.uk/id/local-authority/00ML,Non BVACOP,BVANON,Cap - Transport,4TR,New Construction n Conversion,PB,Level not required,NR5026,01/04/2011,PAY00373159,2250.00,Capital,Project Centre Ltd
Brighton & Hove City Council,http://statistics.data.gov.uk/id/local-authority/00ML,Education Services,BVAEDU,Ed - Non Sch Fnd - Other,ENF,Direct Employees,A,Salaries,AA,01/04/2011,PAY00373161,13919.00,Revenue,East Sussex Downs and Weald PCT (5P7)
Brighton & Hove City Council,http://statistics.data.gov.uk/id/local-authority/00ML,Adult Social Care,BVASOC,S Svcs - Older People Svcs,PPL,Customer n Client Receipts,M,Fees n Charges,MB,01/04/2011,PAY00373164,-445.65,Revenue,Bupa Care Services
Brighton & Hove City Council,http://statistics.data.gov.uk/id/local-authority/00ML,Adult Social Care,BVASOC,S Svcs - Older People Svcs,PPL,Third Party Payments,F,Other Establishments,FH,01/04/2011,PAY00373164,2282.80,Revenue,Bupa Care Services
Brighton & Hove City Council,http://statistics.data.gov.uk/id/local-authority/00ML,Housing Services General Fund,BVAHOG,Homelessness,HML,Premises Related,C,Rents Payable,CC,01/04/2011,PAY00373165,760.00,Revenue,Sareen Properties & Co
Brighton & Hove City Council,http://statistics.data.gov.uk/id/local-authority/00ML,Housing Services General Fund,BVAHOG,Homelessness,HML,Premises Related,C,Rents Payable,CC,01/04/2011,PAY00373166,750.00,Revenue,Payment to Individual
Brighton & Hove City Council,http://statistics.data.gov.uk/id/local-authority/00ML,Cultural Environment Planning,BVACEP,Court Services,CRT,Supplies and Services,E,Services,EF,01/04/2011,PAY00373167,662.45,Revenue,Payment to Individual
Brighton & Hove City Council,http://statistics.data.gov.uk/id/local-authority/00ML,Adult Social Care,BVASOC,S Svcs - Older People Svcs,PPL,Customer n Client Receipts,M,Fees n Charges,MB,01/04/2011,PAY00373169,-628.00,Revenue,Payment to Individual
Brighton & Hove City Council,http://statistics.data.gov.uk/id/local-authority/00ML,Adult Social Care,BVASOC,S Svcs - Older People Svcs,PPL,Third Party Payments,F,Other Establishments,FH,01/04/2011,PAY00373169,1401.24,Revenue,Payment to Individual
Brighton & Hove City Council,http://statistics.data.gov.uk/id/local-authority/00ML,Adult Social Care,BVASOC,S Svcs - Physical Disability,PDY,Customer n Client Receipts,M,Fees n Charges,MB,01/04/2011,PAY00373170,-24.00,Revenue,Payment to Individual
Brighton & Hove City Council,http://statistics.data.gov.uk/id/local-authority/00ML,Adult Social Care,BVASOC,S Svcs - Physical Disability,PDY,Third Party Payments,F,Other Establishments,FH,01/04/2011,PAY00373170,956.24,Revenue,Payment to Individual
Brighton & Hove City Council,http://statistics.data.gov.uk/id/local-authority/00ML,Cultural Environment Planning,BVACEP,Culture & Heritage,CHG,Supplies and Services,E,Goods for Resale,EG,01/04/2011,PAY00373172,939.52,Revenue,Smudge Products Ltd
Brighton & Hove City Council,http://statistics.data.gov.uk/id/local-authority/00ML,Children�s Social Care,BVACSC,Child Srvcs - Fostering,FLF,Third Party Payments,F,Other Establishments,FH,01/04/2011,PAY00373173,943.00,Revenue,Payment to Individual
Brighton & Hove City Council,http://statistics.data.gov.uk/id/local-authority/00ML,Central Services To The Public,BVACEN,Support Services (SSC),PPT,Supplies and Services,E,Services,EF,01/04/2011,PAY00373179,27901.80,Revenue,Coin Co International PLC
Brighton & Hove City Council,http://statistics.data.gov.uk/id/local-authority/00ML,Adult Social Care,BVASOC,S Svcs - Physical Disability,PDY,Third Party Payments,F,Other Establishments,FH,01/04/2011,PAY00373182,638.08,Revenue,Payment to Individual
Brighton & Hove City Council,http://statistics.data.gov.uk/id/local-authority/00ML,Children�s Social Care,BVACSC,Child Srvcs - Adoption,FAA,Third Party Payments,F,Other Establishments,FH,01/04/2011,PAY00373183,4817.25,Revenue,London Borough of Enfield
Brighton & Hove City Council,http://statistics.data.gov.uk/id/local-authority/00ML,Adult Social Care,BVASOC,S Svcs - Physical Disability,PDY,Customer n Client Receipts,M,Fees n Charges,MB,01/04/2011,PAY00373187,-32.00,Revenue,Payment to Individual
Brighton & Hove City Council,http://statistics.data.gov.uk/id/local-authority/00ML,Adult Social Care,BVASOC,S Svcs - Physical Disability,PDY,Third Party Payments,F,Other Establishments,FH,01/04/2011,PAY00373187,638.40,Revenue,Payment to Individual
Brighton & Hove City Council,http://statistics.data.gov.uk/id/local-authority/00ML,Housing Services General Fund,BVAHOG,Homelessness,HML,Premises Related,C,Rents Payable,CC,01/04/2011,PAY00373188,770.00,Revenue,Payment to Individual
Brighton & Hove City Council,http://statistics.data.gov.uk/id/local-authority/00ML,Children�s Social Care,BVACSC,Child Srvcs - Fostering,FLF,Third Party Payments,F,Other Establishments,FH,01/04/2011,PAY00373189,643.00,Revenue,Payment to Individual
Brighton & Hove City Council,http://statistics.data.gov.uk/id/local-authority/00ML,Housing Services General Fund,BVAHOG,Homelessness,HML,Premises Related,C,Rents Payable,CC,01/04/2011,PAY00373190,900.00,Revenue,Payment to Individual
Brighton & Hove City Council,http://statistics.data.gov.uk/id/local-authority/00ML,Adult Social Care,BVASOC,S Svcs - Older People Svcs,PPL,Third Party Payments,F,Other Establishments,FH,01/04/2011,PAY00373193,1450.92,Revenue,Payment to Individual
Brighton & Hove City Council,http://statistics.data.gov.uk/id/local-authority/00ML,Adult Social Care,BVASOC,S Svcs - Physical Disability,PDY,Third Party Payments,F,Other Establishments,FH,01/04/2011,PAY00373194,1986.64,Revenue,Payment to Individual
Brighton & Hove City Council,http://statistics.data.gov.uk/id/local-authority/00ML,Housing Services General Fund,BVAHOG,Homelessness,HML,Premises Related,C,Rents Payable,CC,01/04/2011,PAY00373195,775.00,Revenue,Payment to Individual
Brighton & Hove City Council,http://statistics.data.gov.uk/id/local-authority/00ML,Central Services To The Public,BVACEN,Support Services (SSC),PPT,Transport Related,D,Other Transport Costs,DG,01/04/2011,PAY00373196,644.50,Revenue,South Coast Taxis
Brighton & Hove City Council,http://statistics.data.gov.uk/id/local-authority/00ML,Education Services,BVAEDU,Ed - LA Exp Attrib to Schools,ELA,Transport Related,D,Other Transport Costs,DG,01/04/2011,PAY00373196,979.00,Revenue,South Coast Taxis
Brighton & Hove City Council,http://statistics.data.gov.uk/id/local-authority/00ML,Adult Social Care,BVASOC,S Svcs - Physical Disability,PDY,Third Party Payments,F,Other Establishments,FH,01/04/2011,PAY00373197,712.36,Revenue,Payment to Individual
Brighton & Hove City Council,http://statistics.data.gov.uk/id/local-authority/00ML,Adult Social Care,BVASOC,S Svcs - Learning Disability,LDY,Third Party Payments,F,Other Establishments,FH,01/04/2011,PAY00373203,1136.32,Revenue,Payment to Individual
Brighton & Hove City Council,http://statistics.data.gov.uk/id/local-authority/00ML,Cultural Environment Planning,BVACEP,Economic Development,ECD,Supplies and Services,E,Miscellaneous Expenses,EM,01/04/2011,PAY00373204,1250.00,Revenue,BandBazi
Brighton & Hove City Council,http://statistics.data.gov.uk/id/local-authority/00ML,Adult Social Care,BVASOC,S Svcs - Learning Disability,LDY,Third Party Payments,F,Other Establishments,FH,01/04/2011,PAY00373205,1398.12,Revenue,Payment to Individual
Brighton & Hove City Council,http://statistics.data.gov.uk/id/local-authority/00ML,Adult Social Care,BVASOC,S Svcs - Physical Disability,PDY,Third Party Payments,F,Other Establishments,FH,01/04/2011,PAY00373207,1047.00,Revenue,Payment to Individual
Brighton & Hove City Council,http://statistics.data.gov.uk/id/local-authority/00ML,Children�s Social Care,BVACSC,Child Srvcs - Fostering,FLF,Third Party Payments,F,Other Establishments,FH,01/04/2011,PAY00373208,678.00,Revenue,Payment to Individual
Brighton & Hove City Council,http://statistics.data.gov.uk/id/local-authority/00ML,Adult Social Care,BVASOC,S Svcs - Physical Disability,PDY,Third Party Payments,F,Other Establishments,FH,01/04/2011,PAY00373214,821.40,Revenue,Payment to Individual
Brighton & Hove City Council,http://statistics.data.gov.uk/id/local-authority/00ML,Non BVACOP,BVANON,Cap - Transport,4TR,New Construction n Conversion,PB,Level not required,NR5026,01/04/2011,PAY00373216,1195.00,Capital,Living Streets
Brighton & Hove City Council,http://statistics.data.gov.uk/id/local-authority/00ML,Housing Services General Fund,BVAHOG,Homelessness,HML,Premises Related,C,Rents Payable,CC,01/04/2011,PAY00373217,815.00,Revenue,Eagle Estates Ltd
Brighton & Hove City Council,http://statistics.data.gov.uk/id/local-authority/00ML,Adult Social Care,BVASOC,S Svcs - Older People Svcs,PPL,Customer n Client Receipts,M,Fees n Charges,MB,01/04/2011,PAY00373219,-74.00,Revenue,Payment to Individual
Brighton & Hove City Council,http://statistics.data.gov.uk/id/local-authority/00ML,Adult Social Care,BVASOC,S Svcs - Older People Svcs,PPL,Third Party Payments,F,Other Establishments,FH,01/04/2011,PAY00373219,4147.44,Revenue,Payment to Individual
Brighton & Hove City Council,http://statistics.data.gov.uk/id/local-authority/00ML,Cultural Environment Planning,BVACEP,Management Services (DEC),MGT,Supplies and Services,E,Equip't Furniture n Materials,EA,01/04/2011,PAY00373220,1302.80,Revenue,PVM Supplies Ltd
Brighton & Hove City Council,http://statistics.data.gov.uk/id/local-authority/00ML,Children�s Social Care,BVACSC,Child Srvcs - Adoption,FAA,Third Party Payments,F,Other Establishments,FH,01/04/2011,PAY00373223,615.20,Revenue,Payment to Individual
Brighton & Hove City Council,http://statistics.data.gov.uk/id/local-authority/00ML,Children�s Social Care,BVACSC,Child Srvcs - Fostering,FLF,Third Party Payments,F,Other Establishments,FH,01/04/2011,PAY00373223,286.00,Revenue,Payment to Individual
Brighton & Hove City Council,http://statistics.data.gov.uk/id/local-authority/00ML,Housing Services General Fund,BVAHOG,Homelessness,HML,Premises Related,C,Rents Payable,CC,01/04/2011,PAY00373224,675.00,Revenue,Payment to Individual
Brighton & Hove City Council,http://statistics.data.gov.uk/id/local-authority/00ML,Adult Social Care,BVASOC,S Svcs - Physical Disability,PDY,Customer n Client Receipts,M,Fees n Charges,MB,01/04/2011,PAY00373227,-76.00,Revenue,Payment to Individual
Brighton & Hove City Council,http://statistics.data.gov.uk/id/local-authority/00ML,Adult Social Care,BVASOC,S Svcs - Physical Disability,PDY,Third Party Payments,F,Other Establishments,FH,01/04/2011,PAY00373227,933.88,Revenue,Payment to Individual
Brighton & Hove City Council,http://statistics.data.gov.uk/id/local-authority/00ML,Children�s Social Care,BVACSC,Child Srvcs - Com & Scl Work,FCW,Supplies and Services,E,Miscellaneous Expenses,EM,01/04/2011,PAY00373229,2645.65,Revenue,Mccall Consultancy
Brighton & Hove City Council,http://statistics.data.gov.uk/id/local-authority/00ML,Housing Services General Fund,BVAHOG,Homelessness,HML,Premises Related,C,Rents Payable,CC,01/04/2011,PAY00373235,1000.00,Revenue,Payment to Individual
Brighton & Hove City Council,http://statistics.data.gov.uk/id/local-authority/00ML,Cultural Environment Planning,BVACEP,Community Safety,CMY,Supplies and Services,E,Miscellaneous Expenses,EM,01/04/2011,PAY00373236,1305.00,Revenue,Payment to Individual
Brighton & Hove City Council,http://statistics.data.gov.uk/id/local-authority/00ML,Cultural Environment Planning,BVACEP,Community Safety,CMY,Transport Related,D,Public Transport,DD,01/04/2011,PAY00373236,19.35,Revenue,Payment to Individual
Brighton & Hove City Council,http://statistics.data.gov.uk/id/local-authority/00ML,Non BVACOP,BVANON,Cap - Education Services,4ED,Plant Machinery n Equipment,PE2,Level not required,NR5025,01/04/2011,PAY00373237,2664.00,Capital,Advanced Connections Ltd
Brighton & Hove City Council,http://statistics.data.gov.uk/id/local-authority/00ML,Non BVACOP,BVANON,Cap - Housing Services - GF,4HG,Capital Grants,PF,Level not required,NR5012,01/04/2011,PAY00373238,5114.08,Capital,Grummitt Wade Ltd T/A Amber
Brighton & Hove City Council,http://statistics.data.gov.uk/id/local-authority/00ML,Housing Services General Fund,BVAHOG,Homelessness,HML,Premises Related,C,Rents Payable,CC,01/04/2011,PAY00373240,520.00,Revenue,C V Howard Investments Ltd
Brighton & Hove City Council,http://statistics.data.gov.uk/id/local-authority/00ML,Children�s Social Care,BVACSC,Child Srvcs - Fostering,FLF,Third Party Payments,F,Other Establishments,FH,01/04/2011,PAY00373241,357.00,Revenue,Payment to Individual
Brighton & Hove City Council,http://statistics.data.gov.uk/id/local-authority/00ML,Children�s Social Care,BVACSC,Child Srvcs - Leaving Care,FAL,Third Party Payments,F,Other Establishments,FH,01/04/2011,PAY00373241,357.00,Revenue,Payment to Individual
Brighton & Hove City Council,http://statistics.data.gov.uk/id/local-authority/00ML,Adult Social Care,BVASOC,S Svcs - Older People Svcs,PPL,Third Party Payments,F,Other Establishments,FH,01/04/2011,PAY00373242,2453.60,Revenue,Pilgrims Way Care Home
Brighton & Hove City Council,http://statistics.data.gov.uk/id/local-authority/00ML,Adult Social Care,BVASOC,S Svcs - Older People Svcs,PPL,Customer n Client Receipts,M,Fees n Charges,MB,01/04/2011,PAY00373243,-256.00,Revenue,Payment to Individual
Brighton & Hove City Council,http://statistics.data.gov.uk/id/local-authority/00ML,Adult Social Care,BVASOC,S Svcs - Older People Svcs,PPL,Third Party Payments,F,Other Establishments,FH,01/04/2011,PAY00373243,2371.28,Revenue,Payment to Individual
Brighton & Hove City Council,http://statistics.data.gov.uk/id/local-authority/00ML,Housing Services General Fund,BVAHOG,Homelessness,HML,Premises Related,C,Rents Payable,CC,01/04/2011,PAY00373244,1150.00,Revenue,Payment to Individual
Brighton & Hove City Council,http://statistics.data.gov.uk/id/local-authority/00ML,Adult Social Care,BVASOC,S Svcs - Physical Disability,PDY,Third Party Payments,F,Other Establishments,FH,01/04/2011,PAY00373246,2572.64,Revenue,Payment to Individual
Brighton & Hove City Council,http://statistics.data.gov.uk/id/local-authority/00ML,Adult Social Care,BVASOC,S Svcs - Physical Disability,PDY,Third Party Payments,F,Other Establishments,FH,01/04/2011,PAY00373247,892.36,Revenue,Payment to Individual
Brighton & Hove City Council,http://statistics.data.gov.uk/id/local-authority/00ML,Cultural Environment Planning,BVACEP,Court Services,CRT,Supplies and Services,E,Equip't Furniture n Materials,EA,01/04/2011,PAY00373249,2613.60,Revenue,Payment to Individual
Brighton & Hove City Council,http://statistics.data.gov.uk/id/local-authority/00ML,Cultural Environment Planning,BVACEP,Court Services,CRT,Supplies and Services,E,Services,EF,01/04/2011,PAY00373249,442.50,Revenue,Payment to Individual
Brighton & Hove City Council,http://statistics.data.gov.uk/id/local-authority/00ML,Housing Services General Fund,BVAHOG,Homelessness,HML,Premises Related,C,Rents Payable,CC,01/04/2011,PAY00373250,740.00,Revenue,Payment to Individual
Brighton & Hove City Council,http://statistics.data.gov.uk/id/local-authority/00ML,Adult Social Care,BVASOC,S Svcs - Older People Svcs,PPL,Customer n Client Receipts,M,Fees n Charges,MB,01/04/2011,PAY00373251,-184.00,Revenue,Payment to Individual
Brighton & Hove City Council,http://statistics.data.gov.uk/id/local-authority/00ML,Adult Social Care,BVASOC,S Svcs - Older People Svcs,PPL,Third Party Payments,F,Other Establishments,FH,01/04/2011,PAY00373251,1024.24,Revenue,Payment to Individual
Brighton & Hove City Council,http://statistics.data.gov.uk/id/local-authority/00ML,Adult Social Care,BVASOC,S Svcs - Learning Disability,LDY,Third Party Payments,F,Other Establishments,FH,01/04/2011,PAY00373254,1309.92,Revenue,Payment to Individual
Brighton & Hove City Council,http://statistics.data.gov.uk/id/local-authority/00ML,Housing Services General Fund,BVAHOG,Homelessness,HML,Premises Related,C,Rents Payable,CC,01/04/2011,PAY00373257,725.00,Revenue,Payment to Individual
Brighton & Hove City Council,http://statistics.data.gov.uk/id/local-authority/00ML,Adult Social Care,BVASOC,S Svcs - Physical Disability,PDY,Third Party Payments,F,Other Establishments,FH,01/04/2011,PAY00373260,1300.40,Revenue,Payment to Individual
Brighton & Hove City Council,http://statistics.data.gov.uk/id/local-authority/00ML,Adult Social Care,BVASOC,S Svcs - Physical Disability,PDY,Third Party Payments,F,Other Establishments,FH,01/04/2011,PAY00373261,563.36,Revenue,Payment to Individual
Brighton & Hove City Council,http://statistics.data.gov.uk/id/local-authority/00ML,Children�s Social Care,BVACSC,Child Srvcs - Fostering,FLF,Third Party Payments,F,Other Establishments,FH,01/04/2011,PAY00373262,382.00,Revenue,Payment to Individual
Brighton & Hove City Council,http://statistics.data.gov.uk/id/local-authority/00ML,Children�s Social Care,BVACSC,Child Srvcs - Leaving Care,FAL,Third Party Payments,F,Other Establishments,FH,01/04/2011,PAY00373262,60.00,Revenue,Payment to Individual
Brighton & Hove City Council,http://statistics.data.gov.uk/id/local-authority/00ML,Children�s Social Care,BVACSC,Child Srvcs - Leaving Care,FAL,Transfer Payments,G,Other Transfer Payments,GD,01/04/2011,PAY00373262,234.00,Revenue,Payment to Individual
Brighton & Hove City Council,http://statistics.data.gov.uk/id/local-authority/00ML,Adult Social Care,BVASOC,S Svcs - Learning Disability,LDY,Customer n Client Receipts,M,Fees n Charges,MB,01/04/2011,PAY00373263,-23.08,Revenue,Payment to Individual
Brighton & Hove City Council,http://statistics.data.gov.uk/id/local-authority/00ML,Adult Social Care,BVASOC,S Svcs - Learning Disability,LDY,Third Party Payments,F,Other Establishments,FH,01/04/2011,PAY00373263,1040.00,Revenue,Payment to Individual
Brighton & Hove City Council,http://statistics.data.gov.uk/id/local-authority/00ML,Housing Services General Fund,BVAHOG,Homelessness,HML,Supplies and Services,E,Miscellaneous Expenses,EM,01/04/2011,PAY00373265,2365.00,Revenue,Bishop`s Move
Brighton & Hove City Council,http://statistics.data.gov.uk/id/local-authority/00ML,Adult Social Care,BVASOC,S Svcs - Physical Disability,PDY,Customer n Client Receipts,M,Fees n Charges,MB,01/04/2011,PAY00373268,-96.00,Revenue,Payment to Individual
Brighton & Hove City Council,http://statistics.data.gov.uk/id/local-authority/00ML,Adult Social Care,BVASOC,S Svcs - Physical Disability,PDY,Third Party Payments,F,Other Establishments,FH,01/04/2011,PAY00373268,1935.80,Revenue,Payment to Individual
Brighton & Hove City Council,http://statistics.data.gov.uk/id/local-authority/00ML,Adult Social Care,BVASOC,S Svcs - Older People Svcs,PPL,Customer n Client Receipts,M,Fees n Charges,MB,01/04/2011,PAY00373269,-224.00,Revenue,Payment to Individual
Brighton & Hove City Council,http://statistics.data.gov.uk/id/local-authority/00ML,Adult Social Care,BVASOC,S Svcs - Older People Svcs,PPL,Third Party Payments,F,Other Establishments,FH,01/04/2011,PAY00373269,765.36,Revenue,Payment to Individual
Brighton & Hove City Council,http://statistics.data.gov.uk/id/local-authority/00ML,Adult Social Care,BVASOC,S Svcs - Learning Disability,LDY,Customer n Client Receipts,M,Fees n Charges,MB,01/04/2011,PAY00373270,-32.00,Revenue,Payment to Individual
Brighton & Hove City Council,http://statistics.data.gov.uk/id/local-authority/00ML,Adult Social Care,BVASOC,S Svcs - Learning Disability,LDY,Third Party Payments,F,Other Establishments,FH,01/04/2011,PAY00373270,1698.92,Revenue,Payment to Individual
Brighton & Hove City Council,http://statistics.data.gov.uk/id/local-authority/00ML,Housing Services General Fund,BVAHOG,Homelessness,HML,Premises Related,C,Rents Payable,CC,01/04/2011,PAY00373271,700.00,Revenue,Payment to Individual
Brighton & Hove City Council,http://statistics.data.gov.uk/id/local-authority/00ML,Adult Social Care,BVASOC,S Svcs - Learning Disability,LDY,Third Party Payments,F,Other Establishments,FH,01/04/2011,PAY00373274,4823.92,Revenue,Payment to Individual
Brighton & Hove City Council,http://statistics.data.gov.uk/id/local-authority/00ML,Adult Social Care,BVASOC,S Svcs - Older People Svcs,PPL,Customer n Client Receipts,M,Fees n Charges,MB,01/04/2011,PAY00373275,-152.00,Revenue,Payment to Individual
Brighton & Hove City Council,http://statistics.data.gov.uk/id/local-authority/00ML,Adult Social Care,BVASOC,S Svcs - Older People Svcs,PPL,Third Party Payments,F,Other Establishments,FH,01/04/2011,PAY00373275,2286.28,Revenue,Payment to Individual
Brighton & Hove City Council,http://statistics.data.gov.uk/id/local-authority/00ML,Adult Social Care,BVASOC,S Svcs - Older People Svcs,PPL,Third Party Payments,F,Other Establishments,FH,01/04/2011,PAY00373276,1025.40,Revenue,Payment to Individual
Brighton & Hove City Council,http://statistics.data.gov.uk/id/local-authority/00ML,Adult Social Care,BVASOC,S Svcs - Physical Disability,PDY,Customer n Client Receipts,M,Fees n Charges,MB,01/04/2011,PAY00373277,-40.00,Revenue,Payment to Individual
Brighton & Hove City Council,http://statistics.data.gov.uk/id/local-authority/00ML,Adult Social Care,BVASOC,S Svcs - Physical Disability,PDY,Third Party Payments,F,Other Establishments,FH,01/04/2011,PAY00373277,3433.04,Revenue,Payment to Individual
Brighton & Hove City Council,http://statistics.data.gov.uk/id/local-authority/00ML,Adult Social Care,BVASOC,S Svcs - Older People Svcs,PPL,Third Party Payments,F,Other Establishments,FH,01/04/2011,PAY00373278,715.24,Revenue,Payment to Individual
Brighton & Hove City Council,http://statistics.data.gov.uk/id/local-authority/00ML,Highways and Transportation,BVAHRT,Public transport,PTR,Transport Related,D,Public Transport,DD,01/04/2011,PAY00373280,34600.35,Revenue,Stagecoach Services Ltd t/a Stagecoach South
Brighton & Hove City Council,http://statistics.data.gov.uk/id/local-authority/00ML,Adult Social Care,BVASOC,S Svcs - Older People Svcs,PPL,Customer n Client Receipts,M,Fees n Charges,MB,01/04/2011,PAY00373281,-108.00,Revenue,Payment to Individual
Brighton & Hove City Council,http://statistics.data.gov.uk/id/local-authority/00ML,Adult Social Care,BVASOC,S Svcs - Older People Svcs,PPL,Third Party Payments,F,Other Establishments,FH,01/04/2011,PAY00373281,2522.28,Revenue,Payment to Individual
Brighton & Hove City Council,http://statistics.data.gov.uk/id/local-authority/00ML,Adult Social Care,BVASOC,S Svcs - Older People Svcs,PPL,Third Party Payments,F,Other Establishments,FH,01/04/2011,PAY00373282,1082.48,Revenue,Payment to Individual
Brighton & Hove City Council,http://statistics.data.gov.uk/id/local-authority/00ML,Adult Social Care,BVASOC,S Svcs - Older People Svcs,PPL,Third Party Payments,F,Other Establishments,FH,01/04/2011,PAY00373285,575.76,Revenue,Payment to Individual
Brighton & Hove City Council,http://statistics.data.gov.uk/id/local-authority/00ML,Adult Social Care,BVASOC,S Svcs - Older People Svcs,PPL,Customer n Client Receipts,M,Fees n Charges,MB,01/04/2011,PAY00373286,-192.00,Revenue,Payment to Individual
Brighton & Hove City Council,http://statistics.data.gov.uk/id/local-authority/00ML,Adult Social Care,BVASOC,S Svcs - Older People Svcs,PPL,Third Party Payments,F,Other Establishments,FH,01/04/2011,PAY00373286,800.76,Revenue,Payment to Individual
Brighton & Hove City Council,http://statistics.data.gov.uk/id/local-authority/00ML,Adult Social Care,BVASOC,S Svcs - Physical Disability,PDY,Customer n Client Receipts,M,Fees n Charges,MB,01/04/2011,PAY00373287,-580.00,Revenue,Payment to Individual
Brighton & Hove City Council,http://statistics.data.gov.uk/id/local-authority/00ML,Adult Social Care,BVASOC,S Svcs - Physical Disability,PDY,Third Party Payments,F,Other Establishments,FH,01/04/2011,PAY00373287,1781.28,Revenue,Payment to Individual
Brighton & Hove City Council,http://statistics.data.gov.uk/id/local-authority/00ML,Adult Social Care,BVASOC,S Svcs - Physical Disability,PDY,Third Party Payments,F,Other Establishments,FH,01/04/2011,PAY00373288,1703.28,Revenue,Payment to Individual
Brighton & Hove City Council,http://statistics.data.gov.uk/id/local-authority/00ML,Adult Social Care,BVASOC,S Svcs - Physical Disability,PDY,Customer n Client Receipts,M,Fees n Charges,MB,01/04/2011,PAY00373290,-324.00,Revenue,Payment to Individual
Brighton & Hove City Council,http://statistics.data.gov.uk/id/local-authority/00ML,Adult Social Care,BVASOC,S Svcs - Physical Disability,PDY,Third Party Payments,F,Other Establishments,FH,01/04/2011,PAY00373290,3932.00,Revenue,Payment to Individual
Brighton & Hove City Council,http://statistics.data.gov.uk/id/local-authority/00ML,Housing Services General Fund,BVAHOG,Homelessness,HML,Premises Related,C,Rents Payable,CC,01/04/2011,PAY00373291,550.00,Revenue,Payment to Individual
Brighton & Hove City Council,http://statistics.data.gov.uk/id/local-authority/00ML,Adult Social Care,BVASOC,S Svcs - Physical Disability,PDY,Third Party Payments,F,Other Establishments,FH,01/04/2011,PAY00373296,536.44,Revenue,Payment to Individual
Brighton & Hove City Council,http://statistics.data.gov.uk/id/local-authority/00ML,Adult Social Care,BVASOC,S Svcs - Physical Disability,PDY,Third Party Payments,F,Other Establishments,FH,01/04/2011,PAY00373297,2369.64,Revenue,Payment to Individual
Brighton & Hove City Council,http://statistics.data.gov.uk/id/local-authority/00ML,Adult Social Care,BVASOC,S Svcs - Physical Disability,PDY,Third Party Payments,F,Other Establishments,FH,01/04/2011,PAY00373298,947.20,Revenue,Payment to Individual
Brighton & Hove City Council,http://statistics.data.gov.uk/id/local-authority/00ML,Housing Services General Fund,BVAHOG,Homelessness,HML,Premises Related,C,Rents Payable,CC,01/04/2011,PAY00373299,1000.00,Revenue,Payment to Individual
Brighton & Hove City Council,http://statistics.data.gov.uk/id/local-authority/00ML,Central Services To The Public,BVACEN,Support Services (SSC),PPT,Indirect Employees,B,Training,BM,01/04/2011,PAY00373300,675.00,Revenue,The Life Project CIC
Brighton & Hove City Council,http://statistics.data.gov.uk/id/local-authority/00ML,Housing Services General Fund,BVAHOG,Homelessness,HML,Premises Related,C,Rents Payable,CC,01/04/2011,PAY00373303,615.00,Revenue,Sigma Estates Limited
Brighton & Hove City Council,http://statistics.data.gov.uk/id/local-authority/00ML,Adult Social Care,BVASOC,S Svcs - Physical Disability,PDY,Third Party Payments,F,Other Establishments,FH,01/04/2011,PAY00373304,727.72,Revenue,Payment to Individual
Brighton & Hove City Council,http://statistics.data.gov.uk/id/local-authority/00ML,Non BVACOP,BVANON,Cap - Education Services,4ED,New Construction n Conversion,PB,Level not required,NR5026,01/04/2011,PAY00373305,4270.00,Capital,PD Harris (Henfield) Ltd
Brighton & Hove City Council,http://statistics.data.gov.uk/id/local-authority/00ML,Housing Services General Fund,BVAHOG,Homelessness,HML,Premises Related,C,Rents Payable,CC,01/04/2011,PAY00373306,760.00,Revenue,Payment to Individual
Brighton & Hove City Council,http://statistics.data.gov.uk/id/local-authority/00ML,Adult Social Care,BVASOC,S Svcs - Learning Disability,LDY,Third Party Payments,F,Other Establishments,FH,01/04/2011,PAY00373307,772.40,Revenue,Payment to Individual
Brighton & Hove City Council,http://statistics.data.gov.uk/id/local-authority/00ML,Adult Social Care,BVASOC,S Svcs - Physical Disability,PDY,Third Party Payments,F,Other Establishments,FH,01/04/2011,PAY00373311,610.16,Revenue,Payment to Individual
Brighton & Hove City Council,http://statistics.data.gov.uk/id/local-authority/00ML,Cultural Environment Planning,BVACEP,Management Services (DEC),MGT,Premises Related,C,Repair Maint n Alterations,CA,01/04/2011,PAY00373312,2207.20,Revenue,Cox Skips Ltd
Brighton & Hove City Council,http://statistics.data.gov.uk/id/local-authority/00ML,Adult Social Care,BVASOC,S Svcs - Older People Svcs,PPL,Customer n Client Receipts,M,Fees n Charges,MB,01/04/2011,PAY00373313,-184.00,Revenue,Payment to Individual
Brighton & Hove City Council,http://statistics.data.gov.uk/id/local-authority/00ML,Adult Social Care,BVASOC,S Svcs - Older People Svcs,PPL,Third Party Payments,F,Other Establishments,FH,01/04/2011,PAY00373313,3307.72,Revenue,Payment to Individual
Brighton & Hove City Council,http://statistics.data.gov.uk/id/local-authority/00ML,Adult Social Care,BVASOC,S Svcs - Learning Disability,LDY,Customer n Client Receipts,M,Fees n Charges,MB,01/04/2011,PAY00373314,-33.60,Revenue,Payment to Individual
Brighton & Hove City Council,http://statistics.data.gov.uk/id/local-authority/00ML,Adult Social Care,BVASOC,S Svcs - Learning Disability,LDY,Third Party Payments,F,Other Establishments,FH,01/04/2011,PAY00373314,1033.96,Revenue,Payment to Individual
Brighton & Hove City Council,http://statistics.data.gov.uk/id/local-authority/00ML,Adult Social Care,BVASOC,S Svcs - Older People Svcs,PPL,Customer n Client Receipts,M,Fees n Charges,MB,01/04/2011,PAY00373316,-156.00,Revenue,Payment to Individual
Brighton & Hove City Council,http://statistics.data.gov.uk/id/local-authority/00ML,Adult Social Care,BVASOC,S Svcs - Older People Svcs,PPL,Third Party Payments,F,Other Establishments,FH,01/04/2011,PAY00373316,986.00,Revenue,Payment to Individual
Brighton & Hove City Council,http://statistics.data.gov.uk/id/local-authority/00ML,Adult Social Care,BVASOC,S Svcs - Physical Disability,PDY,Third Party Payments,F,Other Establishments,FH,01/04/2011,PAY00373318,610.16,Revenue,Payment to Individual
Brighton & Hove City Council,http://statistics.data.gov.uk/id/local-authority/00ML,Children�s Social Care,BVACSC,Child Srvcs - Fostering,FLF,Third Party Payments,F,Other Establishments,FH,01/04/2011,PAY00373321,678.00,Revenue,Payment to Individual
Brighton & Hove City Council,http://statistics.data.gov.uk/id/local-authority/00ML,Adult Social Care,BVASOC,S Svcs - Learning Disability,LDY,Third Party Payments,F,Other Establishments,FH,01/04/2011,PAY00373323,2646.56,Revenue,Payment to Individual
Brighton & Hove City Council,http://statistics.data.gov.uk/id/local-authority/00ML,Adult Social Care,BVASOC,S Svcs - Learning Disability,LDY,Third Party Payments,F,Other Establishments,FH,01/04/2011,PAY00373326,742.08,Revenue,Payment to Individual
Brighton & Hove City Council,http://statistics.data.gov.uk/id/local-authority/00ML,Adult Social Care,BVASOC,S Svcs - Older People Svcs,PPL,Customer n Client Receipts,M,Fees n Charges,MB,01/04/2011,PAY00373327,-112.00,Revenue,Payment to Individual
Brighton & Hove City Council,http://statistics.data.gov.uk/id/local-authority/00ML,Adult Social Care,BVASOC,S Svcs - Older People Svcs,PPL,Third Party Payments,F,Other Establishments,FH,01/04/2011,PAY00373327,1136.60,Revenue,Payment to Individual
Brighton & Hove City Council,http://statistics.data.gov.uk/id/local-authority/00ML,Housing Services General Fund,BVAHOG,Homelessness,HML,Premises Related,C,Rents Payable,CC,01/04/2011,PAY00373328,850.00,Revenue,Payment to Individual
Brighton & Hove City Council,http://statistics.data.gov.uk/id/local-authority/00ML,Non BVACOP,BVANON,Cap - Housing Services - GF,4HG,Capital Grants,PF,Level not required,NR5012,01/04/2011,PAY00373335,1781.00,Capital,TLC Stairlifts Ltd
Brighton & Hove City Council,http://statistics.data.gov.uk/id/local-authority/00ML,Adult Social Care,BVASOC,S Svcs - Physical Disability,PDY,Third Party Payments,F,Other Establishments,FH,01/04/2011,PAY00373337,507.04,Revenue,Payment to Individual
Brighton & Hove City Council,http://statistics.data.gov.uk/id/local-authority/00ML,Adult Social Care,BVASOC,S Svcs - Learning Disability,LDY,Third Party Payments,F,Other Establishments,FH,01/04/2011,PAY00373339,1463.88,Revenue,Payment to Individual
Brighton & Hove City Council,http://statistics.data.gov.uk/id/local-authority/00ML,Adult Social Care,BVASOC,S Svcs - Learning Disability,LDY,Customer n Client Receipts,M,Fees n Charges,MB,01/04/2011,PAY00373340,-730.00,Revenue,Payment to Individual
Brighton & Hove City Council,http://statistics.data.gov.uk/id/local-authority/00ML,Adult Social Care,BVASOC,S Svcs - Learning Disability,LDY,Third Party Payments,F,Other Establishments,FH,01/04/2011,PAY00373340,1511.52,Revenue,Payment to Individual
Brighton & Hove City Council,http://statistics.data.gov.uk/id/local-authority/00ML,Housing Services General Fund,BVAHOG,Homelessness,HML,Premises Related,C,Rents Payable,CC,01/04/2011,PAY00373342,750.00,Revenue,Payment to Individual
Brighton & Hove City Council,http://statistics.data.gov.uk/id/local-authority/00ML,Non BVACOP,BVANON,Cap - Housing Services - GF,4HG,Capital Grants,PF,Level not required,NR5012,01/04/2011,PAY00373343,5775.00,Capital,GMS Adaptations
Brighton & Hove City Council,http://statistics.data.gov.uk/id/local-authority/00ML,Adult Social Care,BVASOC,S Svcs - Older People Svcs,PPL,Customer n Client Receipts,M,Fees n Charges,MB,01/04/2011,PAY00373345,-36.00,Revenue,Payment to Individual
Brighton & Hove City Council,http://statistics.data.gov.uk/id/local-authority/00ML,Adult Social Care,BVASOC,S Svcs - Older People Svcs,PPL,Third Party Payments,F,Other Establishments,FH,01/04/2011,PAY00373345,856.20,Revenue,Payment to Individual
Brighton & Hove City Council,http://statistics.data.gov.uk/id/local-authority/00ML,Adult Social Care,BVASOC,S Svcs - Physical Disability,PDY,Third Party Payments,F,Other Establishments,FH,01/04/2011,PAY00373346,1036.12,Revenue,Payment to Individual
Brighton & Hove City Council,http://statistics.data.gov.uk/id/local-authority/00ML,Adult Social Care,BVASOC,S Svcs - Older People Svcs,PPL,Third Party Payments,F,Other Establishments,FH,01/04/2011,PAY00373347,1094.32,Revenue,Payment to Individual
Brighton & Hove City Council,http://statistics.data.gov.uk/id/local-authority/00ML,Adult Social Care,BVASOC,S Svcs - Older People Svcs,PPL,Customer n Client Receipts,M,Fees n Charges,MB,01/04/2011,PAY00373350,-104.00,Revenue,Payment to Individual
Brighton & Hove City Council,http://statistics.data.gov.uk/id/local-authority/00ML,Adult Social Care,BVASOC,S Svcs - Older People Svcs,PPL,Third Party Payments,F,Other Establishments,FH,01/04/2011,PAY00373350,695.76,Revenue,Payment to Individual
Brighton & Hove City Council,http://statistics.data.gov.uk/id/local-authority/00ML,Housing Services General Fund,BVAHOG,Homelessness,HML,Premises Related,C,Rents Payable,CC,01/04/2011,PAY00373352,850.00,Revenue,Payment to Individual
Brighton & Hove City Council,http://statistics.data.gov.uk/id/local-authority/00ML,Adult Social Care,BVASOC,S Svcs - Physical Disability,PDY,Customer n Client Receipts,M,Fees n Charges,MB,01/04/2011,PAY00373355,-64.00,Revenue,Payment to Individual
Brighton & Hove City Council,http://statistics.data.gov.uk/id/local-authority/00ML,Adult Social Care,BVASOC,S Svcs - Physical Disability,PDY,Third Party Payments,F,Other Establishments,FH,01/04/2011,PAY00373355,804.84,Revenue,Payment to Individual
Brighton & Hove City Council,http://statistics.data.gov.uk/id/local-authority/00ML,Cultural Environment Planning,BVACEP,Culture & Heritage,CHG,Supplies and Services,E,Miscellaneous Expenses,EM,01/04/2011,PAY00373357,3000.00,Revenue,Assess All Areas Ltd
Brighton & Hove City Council,http://statistics.data.gov.uk/id/local-authority/00ML,Adult Social Care,BVASOC,S Svcs - Physical Disability,PDY,Customer n Client Receipts,M,Fees n Charges,MB,01/04/2011,PAY00373359,-84.00,Revenue,Payment to Individual
Brighton & Hove City Council,http://statistics.data.gov.uk/id/local-authority/00ML,Adult Social Care,BVASOC,S Svcs - Physical Disability,PDY,Third Party Payments,F,Other Establishments,FH,01/04/2011,PAY00373359,1207.48,Revenue,Payment to Individual
Brighton & Hove City Council,http://statistics.data.gov.uk/id/local-authority/00ML,Adult Social Care,BVASOC,S Svcs - Physical Disability,PDY,Customer n Client Receipts,M,Fees n Charges,MB,01/04/2011,PAY00373360,-12.00,Revenue,Payment to Individual
Brighton & Hove City Council,http://statistics.data.gov.uk/id/local-authority/00ML,Adult Social Care,BVASOC,S Svcs - Physical Disability,PDY,Third Party Payments,F,Other Establishments,FH,01/04/2011,PAY00373360,900.32,Revenue,Payment to Individual
Brighton & Hove City Council,http://statistics.data.gov.uk/id/local-authority/00ML,Cultural Environment Planning,BVACEP,Open Spaces,PEN,Third Party Payments,F,Private Contractors,FJ,01/04/2011,PAY00373361,1767.00,Revenue,Payment to Individual
Brighton & Hove City Council,http://statistics.data.gov.uk/id/local-authority/00ML,Highways and Transportation,BVAHRT,Public transport,PTR,Transport Related,D,Public Transport,DD,01/04/2011,PAY00373363,7664.84,Revenue,Countryliner Sussex Ltd
Brighton & Hove City Council,http://statistics.data.gov.uk/id/local-authority/00ML,Adult Social Care,BVASOC,S Svcs - Older People Svcs,PPL,Third Party Payments,F,Other Establishments,FH,01/04/2011,PAY00373364,2802.20,Revenue,Payment to Individual
Brighton & Hove City Council,http://statistics.data.gov.uk/id/local-authority/00ML,Adult Social Care,BVASOC,S Svcs - Mental Health,MHT,Third Party Payments,F,Other Establishments,FH,01/04/2011,PAY00373369,818.64,Revenue,Payment to Individual
Brighton & Hove City Council,http://statistics.data.gov.uk/id/local-authority/00ML,Adult Social Care,BVASOC,S Svcs - Physical Disability,PDY,Third Party Payments,F,Other Establishments,FH,01/04/2011,PAY00373371,628.72,Revenue,Payment to Individual
Brighton & Hove City Council,http://statistics.data.gov.uk/id/local-authority/00ML,Housing Services General Fund,BVAHOG,Homelessness,HML,Premises Related,C,Rents Payable,CC,01/04/2011,PAY00373373,800.00,Revenue,Payment to Individual
Brighton & Hove City Council,http://statistics.data.gov.uk/id/local-authority/00ML,Adult Social Care,BVASOC,S Svcs - Learning Disability,LDY,Customer n Client Receipts,M,Fees n Charges,MB,01/04/2011,PAY00373376,-29.44,Revenue,Payment to Individual
Brighton & Hove City Council,http://statistics.data.gov.uk/id/local-authority/00ML,Adult Social Care,BVASOC,S Svcs - Learning Disability,LDY,Third Party Payments,F,Other Establishments,FH,01/04/2011,PAY00373376,1822.84,Revenue,Payment to Individual
Brighton & Hove City Council,http://statistics.data.gov.uk/id/local-authority/00ML,Education Services,BVAEDU,Ed - Special Ed,EKE,Supplies and Services,E,Services,EF,01/04/2011,PAY00373379,800.00,Revenue,Long Nose Puppets
Brighton & Hove City Council,http://statistics.data.gov.uk/id/local-authority/00ML,Adult Social Care,BVASOC,S Svcs - Mental Health,MHT,Third Party Payments,F,Other Establishments,FH,01/04/2011,PAY00373380,549.36,Revenue,Payment to Individual
Brighton & Hove City Council,http://statistics.data.gov.uk/id/local-authority/00ML,Housing Services General Fund,BVAHOG,Homelessness,HML,Premises Related,C,Rents Payable,CC,01/04/2011,PAY00373382,725.00,Revenue,Payment to Individual
Brighton & Hove City Council,http://statistics.data.gov.uk/id/local-authority/00ML,Housing Services General Fund,BVAHOG,Homelessness,HML,Premises Related,C,Rents Payable,CC,01/04/2011,PAY00373385,765.00,Revenue,Payment to Individual
Brighton & Hove City Council,http://statistics.data.gov.uk/id/local-authority/00ML,Children�s Social Care,BVACSC,Child Srvcs - Fostering,FLF,Third Party Payments,F,Other Establishments,FH,01/04/2011,PAY00373387,941.40,Revenue,Payment to Individual
Brighton & Hove City Council,http://statistics.data.gov.uk/id/local-authority/00ML,Adult Social Care,BVASOC,S Svcs - Physical Disability,PDY,Third Party Payments,F,Other Establishments,FH,01/04/2011,PAY00373388,706.32,Revenue,Payment to Individual
Brighton & Hove City Council,http://statistics.data.gov.uk/id/local-authority/00ML,Adult Social Care,BVASOC,S Svcs - Physical Disability,PDY,Third Party Payments,F,Other Establishments,FH,01/04/2011,PAY00373389,588.64,Revenue,Payment to Individual
Brighton & Hove City Council,http://statistics.data.gov.uk/id/local-authority/00ML,Central Services To The Public,BVACEN,Support Services (SSC),PPT,Supplies and Services,E,Services,EF,01/04/2011,PAY00373393,1549.00,Revenue,Treetop Design & Print
Brighton & Hove City Council,http://statistics.data.gov.uk/id/local-authority/00ML,Adult Social Care,BVASOC,S Svcs - Older People Svcs,PPL,Customer n Client Receipts,M,Fees n Charges,MB,01/04/2011,PAY00373394,-80.00,Revenue,Payment to Individual
Brighton & Hove City Council,http://statistics.data.gov.uk/id/local-authority/00ML,Adult Social Care,BVASOC,S Svcs - Older People Svcs,PPL,Third Party Payments,F,Other Establishments,FH,01/04/2011,PAY00373394,1216.24,Revenue,Payment to Individual
Brighton & Hove City Council,http://statistics.data.gov.uk/id/local-authority/00ML,Adult Social Care,BVASOC,S Svcs - Physical Disability,PDY,Customer n Client Receipts,M,Fees n Charges,MB,01/04/2011,PAY00373395,-20.00,Revenue,Payment to Individual
Brighton & Hove City Council,http://statistics.data.gov.uk/id/local-authority/00ML,Adult Social Care,BVASOC,S Svcs - Physical Disability,PDY,Third Party Payments,F,Other Establishments,FH,01/04/2011,PAY00373395,891.72,Revenue,Payment to Individual
Brighton & Hove City Council,http://statistics.data.gov.uk/id/local-authority/00ML,Adult Social Care,BVASOC,S Svcs - Physical Disability,PDY,Customer n Client Receipts,M,Fees n Charges,MB,01/04/2011,PAY00373396,-32.00,Revenue,Payment to Individual
Brighton & Hove City Council,http://statistics.data.gov.uk/id/local-authority/00ML,Adult Social Care,BVASOC,S Svcs - Physical Disability,PDY,Third Party Payments,F,Other Establishments,FH,01/04/2011,PAY00373396,756.24,Revenue,Payment to Individual
Brighton & Hove City Council,http://statistics.data.gov.uk/id/local-authority/00ML,Adult Social Care,BVASOC,S Svcs - Physical Disability,PDY,Third Party Payments,F,Other Establishments,FH,01/04/2011,PAY00373399,947.80,Revenue,Payment to Individual
Brighton & Hove City Council,http://statistics.data.gov.uk/id/local-authority/00ML,Housing Services General Fund,BVAHOG,Homelessness,HML,Premises Related,C,Rents Payable,CC,01/04/2011,PAY00373403,750.00,Revenue,Payment to Individual
Brighton & Hove City Council,http://statistics.data.gov.uk/id/local-authority/00ML,Adult Social Care,BVASOC,S Svcs - Physical Disability,PDY,Third Party Payments,F,Other Establishments,FH,01/04/2011,PAY00373404,2415.95,Revenue,Payment to Individual
Brighton & Hove City Council,http://statistics.data.gov.uk/id/local-authority/00ML,Adult Social Care,BVASOC,S Svcs - Learning Disability,LDY,Customer n Client Receipts,M,Fees n Charges,MB,01/04/2011,PAY00373406,-814.00,Revenue,Payment to Individual
Brighton & Hove City Council,http://statistics.data.gov.uk/id/local-authority/00ML,Adult Social Care,BVASOC,S Svcs - Learning Disability,LDY,Third Party Payments,F,Other Establishments,FH,01/04/2011,PAY00373406,1324.24,Revenue,Payment to Individual
Brighton & Hove City Council,http://statistics.data.gov.uk/id/local-authority/00ML,Housing Services General Fund,BVAHOG,Homelessness,HML,Premises Related,C,Rents Payable,CC,01/04/2011,PAY00373410,750.00,Revenue,Coserve Ltd
Brighton & Hove City Council,http://statistics.data.gov.uk/id/local-authority/00ML,Adult Social Care,BVASOC,S Svcs - Physical Disability,PDY,Third Party Payments,F,Other Establishments,FH,01/04/2011,PAY00373412,598.00,Revenue,Payment to Individual
Brighton & Hove City Council,http://statistics.data.gov.uk/id/local-authority/00ML,Adult Social Care,BVASOC,S Svcs - Learning Disability,LDY,Third Party Payments,F,Other Establishments,FH,01/04/2011,PAY00373413,2631.24,Revenue,Payment to Individual
Brighton & Hove City Council,http://statistics.data.gov.uk/id/local-authority/00ML,Adult Social Care,BVASOC,S Svcs - Physical Disability,PDY,Third Party Payments,F,Other Establishments,FH,01/04/2011,PAY00373414,560.60,Revenue,Payment to Individual
Brighton & Hove City Council,http://statistics.data.gov.uk/id/local-authority/00ML,Adult Social Care,BVASOC,S Svcs - Physical Disability,PDY,Third Party Payments,F,Other Establishments,FH,01/04/2011,PAY00373420,947.92,Revenue,Payment to Individual
Brighton & Hove City Council,http://statistics.data.gov.uk/id/local-authority/00ML,Children�s Social Care,BVACSC,Child Srvcs - Fostering,FLF,Third Party Payments,F,Other Establishments,FH,01/04/2011,PAY00373421,620.00,Revenue,Payment to Individual
Brighton & Hove City Council,http://statistics.data.gov.uk/id/local-authority/00ML,Children�s Social Care,BVACSC,Child Srvcs - Adoption,FAA,Third Party Payments,F,Other Establishments,FH,01/04/2011,PAY00373423,636.48,Revenue,Payment to Individual
Brighton & Hove City Council,http://statistics.data.gov.uk/id/local-authority/00ML,Cultural Environment Planning,BVACEP,Tourism,TRM,Supplies and Services,E,Miscellaneous Expenses,EM,01/04/2011,PAY00373424,500.00,Revenue,Fat Sand Productions Ltd
Brighton & Hove City Council,http://statistics.data.gov.uk/id/local-authority/00ML,Housing Services General Fund,BVAHOG,Homelessness,HML,Premises Related,C,Rents Payable,CC,01/04/2011,PAY00373426,725.00,Revenue,Payment to Individual
Brighton & Hove City Council,http://statistics.data.gov.uk/id/local-authority/00ML,Housing Services General Fund,BVAHOG,Homelessness,HML,Premises Related,C,Rents Payable,CC,01/04/2011,PAY00373429,1025.00,Revenue,Payment to Individual
Brighton & Hove City Council,http://statistics.data.gov.uk/id/local-authority/00ML,Adult Social Care,BVASOC,S Svcs - Physical Disability,PDY,Third Party Payments,F,Other Establishments,FH,01/04/2011,PAY00373430,517.68,Revenue,Payment to Individual
Brighton & Hove City Council,http://statistics.data.gov.uk/id/local-authority/00ML,Adult Social Care,BVASOC,S Svcs - Physical Disability,PDY,Third Party Payments,F,Other Establishments,FH,01/04/2011,PAY00373432,845.68,Revenue,Payment to Individual
Brighton & Hove City Council,http://statistics.data.gov.uk/id/local-authority/00ML,Housing Services General Fund,BVAHOG,Homelessness,HML,Premises Related,C,Rents Payable,CC,01/04/2011,PAY00373434,1200.00,Revenue,Payment to Individual
